Body Name,Date Paid,Transaction Number,Amount,Supplier Name,Supplier Type ,Expense Area,Cost Centre Description,Expense Type
Cambridgeshire County Council,01-May-19,51300896558,"-137,773.55",LGSS LAW LTD,TRADE SUPPLIER,Control Accounts,Suspense Account - General,External Legal Fees
Cambridgeshire County Council,15-May-19,51300916266,"-35,000.00",AUTH 0,TRADE SUPPLIER,"Telephony, CPSN & MFD",MFD Recharges,Computer software - purchase
Cambridgeshire County Council,22-May-19,51300924088,"-30,428.57",SOHAM LODGE,CARE ESTABLISHMENT,OP - East Cambs Locality,East Cambs - O P Team,Nursing Care
Cambridgeshire County Council,08-May-19,51300906779,"-17,500.00",GRETTON SCHOOL,EDUCATION,SEN Placements,Placements - Education,Educational Materials
Cambridgeshire County Council,22-May-19,51300923760,"-15,138.34",LITTLEPORT GRANGE,CARE ESTABLISHMENT,OPMH - City & South,Older People Mental Health E Cambs,Residential Care
Cambridgeshire County Council,17-May-19,51300868625,"-15,120.00",Geometric Results International Limited,TRADE SUPPLIER,Children's Services IT System,Children's Services IT System,IT Licenses
Cambridgeshire County Council,01-May-19,51300896556,"-15,119.65",LGSS LAW LTD,TRADE SUPPLIER,Control Accounts,Suspense Account - General,External Legal Fees
Cambridgeshire County Council,07-May-19,51300868631,"-11,666.66",GRETTON SCHOOL,EDUCATION,SEN Placements,Placements - Education,Educational Materials
Cambridgeshire County Council,28-May-19,51300914057,"-11,426.25",EQUITIX EDUCATION (CAMBRIDGESHIRE) LIMITED,EDUCATION,Buildings and Capital,BSF New Projects / Follow On Waves,Building Repair and Maintenance
Cambridgeshire County Council,07-May-19,51300665350,"-7,229.79",Sun Network,COMPANY,Drug & Alcohol Misuse,User Involvement,Professional Fees and Hired Services
Cambridgeshire County Council,03-May-19,51300905680,"-6,703.00",BOTTISHAM VILLAGE COLLEGE,EDUCATION,Bottisham Village College,Bottisham Village College,Furniture - Fixtures and Fittings
Cambridgeshire County Council,03-May-19,51300868629,"-6,613.86",Mountain View Priory,CARE ESTABLISHMENT,SEN Placements,Placements - Education,Educational Materials
Cambridgeshire County Council,03-May-19,51300570022,"-6,290.88",CAMBRIDGE CITY COUNCIL,OTHER PUBLIC BODIES,BM - Corporate Offices,FM Caretaker Housing,Building alterations
Cambridgeshire County Council,20-May-19,51300810041,"-6,240.00",INSIGHT DIRECT (UK) LTD,TRADE SUPPLIER,Corporate IT Managed,Corporate Office IT Assets,Computer hardware - purchase
Cambridgeshire County Council,03-May-19,51300868628,"-6,123.24",TARMAC TRADING LIMITED,COMPANY,Highways - 90m Mtce,Highways - 90m Mtce,Construction - External Professional Fees
Cambridgeshire County Council,09-May-19,51300831943,"-5,745.21",GLENHOLME HEALTHCARE LTD,CARE ESTABLISHMENT,LD - Young Adults Team,LD - Young Adults - Special Needs,Residential Care
Cambridgeshire County Council,09-May-19,51300831948,"-5,745.21",GLENHOLME HEALTHCARE LTD,CARE ESTABLISHMENT,LD - Young Adults Team,LD - Young Adults - Special Needs,Residential Care
Cambridgeshire County Council,09-May-19,51300831941,"-5,745.21",GLENHOLME HEALTHCARE LTD,CARE ESTABLISHMENT,LD - Young Adults Team,LD - Young Adults - Special Needs,Residential Care
Cambridgeshire County Council,09-May-19,51300831949,"-5,745.21",GLENHOLME HEALTHCARE LTD,CARE ESTABLISHMENT,LD - Young Adults Team,LD - Young Adults - Special Needs,Residential Care
Cambridgeshire County Council,09-May-19,51300831945,"-5,745.21",GLENHOLME HEALTHCARE LTD,CARE ESTABLISHMENT,LD - Young Adults Team,LD - Young Adults - Special Needs,Residential Care
Cambridgeshire County Council,09-May-19,51300831958,"-5,745.21",GLENHOLME HEALTHCARE LTD,CARE ESTABLISHMENT,LD - Young Adults Team,LD - Young Adults - Special Needs,Residential Care
Cambridgeshire County Council,09-May-19,51300831953,"-5,745.21",GLENHOLME HEALTHCARE LTD,CARE ESTABLISHMENT,LD - Young Adults Team,LD - Young Adults - Special Needs,Residential Care
Cambridgeshire County Council,09-May-19,51300831944,"-5,745.21",GLENHOLME HEALTHCARE LTD,CARE ESTABLISHMENT,LD - Young Adults Team,LD - Young Adults - Special Needs,Residential Care
Cambridgeshire County Council,09-May-19,51300831959,"-5,745.21",GLENHOLME HEALTHCARE LTD,CARE ESTABLISHMENT,LD - Young Adults Team,LD - Young Adults - Special Needs,Residential Care
Cambridgeshire County Council,22-May-19,51300923763,"-5,717.88",CROMWELL HOUSE HEALTH CARE,CARE ESTABLISHMENT,OPMH - City & South,Older People Mental Health E Cambs,Nursing Care
Cambridgeshire County Council,09-May-19,51300831942,"-4,924.47",GLENHOLME HEALTHCARE LTD,CARE ESTABLISHMENT,LD - Young Adults Team,LD - Young Adults - Special Needs,Residential Care
Cambridgeshire County Council,09-May-19,51300912223,"-4,655.00",Accomplish Group Support Limited,CARE ESTABLISHMENT,LD - Hunts Locality,LD - Huntigndonshire  - Care,Rehabilitation And Respite Care
Cambridgeshire County Council,09-May-19,51300912215,"-4,655.00",Accomplish Group Support Limited,CARE ESTABLISHMENT,LD - Hunts Locality,LD - Huntigndonshire  - Care,Rehabilitation And Respite Care
Cambridgeshire County Council,09-May-19,51300912210,"-4,655.00",Accomplish Group Support Limited,CARE ESTABLISHMENT,LD - Hunts Locality,LD - Huntigndonshire  - Care,Rehabilitation And Respite Care
Cambridgeshire County Council,09-May-19,51300912219,"-4,655.00",Accomplish Group Support Limited,CARE ESTABLISHMENT,LD - Hunts Locality,LD - Huntigndonshire  - Care,Rehabilitation And Respite Care
Cambridgeshire County Council,09-May-19,51300904900,"-4,655.00",Accomplish Group Support Limited,CARE ESTABLISHMENT,LD - Hunts Locality,LD - Huntigndonshire  - Special Needs,Rehabilitation And Respite Care
Cambridgeshire County Council,09-May-19,51300904901,"-4,655.00",Accomplish Group Support Limited,CARE ESTABLISHMENT,LD - Hunts Locality,LD - Huntigndonshire  - Special Needs,Rehabilitation And Respite Care
Cambridgeshire County Council,09-May-19,51300904898,"-4,655.00",Accomplish Group Support Limited,CARE ESTABLISHMENT,LD - Hunts Locality,LD - Huntigndonshire  - Care,Rehabilitation And Respite Care
Cambridgeshire County Council,09-May-19,51300904892,"-4,655.00",Accomplish Group Support Limited,CARE ESTABLISHMENT,LD - Hunts Locality,LD - Huntigndonshire  - Care,Rehabilitation And Respite Care
Cambridgeshire County Council,09-May-19,51300904895,"-4,655.00",Accomplish Group Support Limited,CARE ESTABLISHMENT,LD - Hunts Locality,LD - Huntigndonshire  - Care,Rehabilitation And Respite Care
Cambridgeshire County Council,09-May-19,51300912213,"-4,655.00",Accomplish Group Support Limited,CARE ESTABLISHMENT,LD - Hunts Locality,LD - Huntigndonshire  - Care,Rehabilitation And Respite Care
Cambridgeshire County Council,09-May-19,51300912220,"-4,655.00",Accomplish Group Support Limited,CARE ESTABLISHMENT,LD - Hunts Locality,LD - Huntigndonshire  - Care,Rehabilitation And Respite Care
Cambridgeshire County Council,09-May-19,51300904897,"-4,655.00",Accomplish Group Support Limited,CARE ESTABLISHMENT,LD - Hunts Locality,LD - Huntigndonshire  - Special Needs,Rehabilitation And Respite Care
Cambridgeshire County Council,09-May-19,51300904903,"-4,655.00",Accomplish Group Support Limited,CARE ESTABLISHMENT,LD - Hunts Locality,LD - Huntigndonshire  - Special Needs,Rehabilitation And Respite Care
Cambridgeshire County Council,09-May-19,51300912216,"-4,655.00",Accomplish Group Support Limited,CARE ESTABLISHMENT,LD - Hunts Locality,LD - Huntigndonshire  - Special Needs,Rehabilitation And Respite Care
Cambridgeshire County Council,09-May-19,51300904902,"-4,655.00",Accomplish Group Support Limited,CARE ESTABLISHMENT,LD - Hunts Locality,LD - Huntigndonshire  - Special Needs,Rehabilitation And Respite Care
Cambridgeshire County Council,09-May-19,51300912222,"-4,655.00",Accomplish Group Support Limited,CARE ESTABLISHMENT,LD - Hunts Locality,LD - Huntigndonshire  - Special Needs,Rehabilitation And Respite Care
Cambridgeshire County Council,09-May-19,51300912228,"-4,655.00",Accomplish Group Support Limited,CARE ESTABLISHMENT,LD - Hunts Locality,LD - Huntigndonshire  - Special Needs,Rehabilitation And Respite Care
Cambridgeshire County Council,09-May-19,51300904904,"-4,655.00",Accomplish Group Support Limited,CARE ESTABLISHMENT,LD - Hunts Locality,LD - Huntigndonshire  - Special Needs,Rehabilitation And Respite Care
Cambridgeshire County Council,22-May-19,51300921732,"-4,655.00",Accomplish Group Support Limited,CARE ESTABLISHMENT,LD - Hunts Locality,LD - Huntigndonshire  - Care,Rehabilitation And Respite Care
Cambridgeshire County Council,22-May-19,51300921720,"-4,655.00",Accomplish Group Support Limited,CARE ESTABLISHMENT,LD - Hunts Locality,LD - Huntigndonshire  - Care,Rehabilitation And Respite Care
Cambridgeshire County Council,22-May-19,51300921725,"-4,655.00",Accomplish Group Support Limited,CARE ESTABLISHMENT,LD - Hunts Locality,LD - Huntigndonshire  - Care,Rehabilitation And Respite Care
Cambridgeshire County Council,22-May-19,51300921736,"-4,655.00",Accomplish Group Support Limited,CARE ESTABLISHMENT,LD - Hunts Locality,LD - Huntigndonshire  - Care,Rehabilitation And Respite Care
Cambridgeshire County Council,22-May-19,51300921729,"-4,655.00",Accomplish Group Support Limited,CARE ESTABLISHMENT,LD - Hunts Locality,LD - Huntigndonshire  - Special Needs,Rehabilitation And Respite Care
Cambridgeshire County Council,22-May-19,51300921724,"-4,655.00",Accomplish Group Support Limited,CARE ESTABLISHMENT,LD - Hunts Locality,LD - Huntigndonshire  - Special Needs,Rehabilitation And Respite Care
Cambridgeshire County Council,22-May-19,51300921726,"-4,655.00",Accomplish Group Support Limited,CARE ESTABLISHMENT,LD - Hunts Locality,LD - Huntigndonshire  - Special Needs,Rehabilitation And Respite Care
Cambridgeshire County Council,22-May-19,51300921735,"-4,655.00",Accomplish Group Support Limited,CARE ESTABLISHMENT,LD - Hunts Locality,LD - Huntigndonshire  - Special Needs,Rehabilitation And Respite Care
Cambridgeshire County Council,22-May-19,51300921719,"-4,655.00",Accomplish Group Support Limited,CARE ESTABLISHMENT,LD - Hunts Locality,LD - Huntigndonshire  - Special Needs,Rehabilitation And Respite Care
Cambridgeshire County Council,15-May-19,51300916250,"-4,522.11",LGSS LAW LTD,TRADE SUPPLIER,Legal Proceedings,Legal Proceedings,External Legal Fees
Cambridgeshire County Council,16-May-19,51300810438,"-4,520.00",CHS GROUP,CARE ESTABLISHMENT,Local Assistance Scheme,Local Assistance Scheme,Grants to Voluntary Bodies
Cambridgeshire County Council,09-May-19,51300813922,"-4,474.00",GLENHOLME HEALTHCARE LTD,CARE ESTABLISHMENT,LD - Young Adults Team,LD - Young Adults - Special Needs,Residential Care
Cambridgeshire County Council,09-May-19,51300813930,"-4,474.00",GLENHOLME HEALTHCARE LTD,CARE ESTABLISHMENT,LD - Young Adults Team,LD - Young Adults - Special Needs,Residential Care
Cambridgeshire County Council,09-May-19,51300813925,"-4,474.00",GLENHOLME HEALTHCARE LTD,CARE ESTABLISHMENT,LD - Young Adults Team,LD - Young Adults - Special Needs,Residential Care
Cambridgeshire County Council,09-May-19,51300813923,"-4,474.00",GLENHOLME HEALTHCARE LTD,CARE ESTABLISHMENT,LD - Young Adults Team,LD - Young Adults - Special Needs,Residential Care
Cambridgeshire County Council,09-May-19,51300813924,"-4,474.00",GLENHOLME HEALTHCARE LTD,CARE ESTABLISHMENT,LD - Young Adults Team,LD - Young Adults - Special Needs,Residential Care
Cambridgeshire County Council,09-May-19,51300813927,"-4,474.00",GLENHOLME HEALTHCARE LTD,CARE ESTABLISHMENT,LD - Young Adults Team,LD - Young Adults - Special Needs,Residential Care
Cambridgeshire County Council,09-May-19,51300813926,"-4,474.00",GLENHOLME HEALTHCARE LTD,CARE ESTABLISHMENT,LD - Young Adults Team,LD - Young Adults - Special Needs,Residential Care
Cambridgeshire County Council,07-May-19,51300906255,"-3,980.10",VIRGIN MEDIA LTD,COMPANY,"Telephony, CPSN & MFD",CPSN,Telephone costs
Cambridgeshire County Council,31-May-19,51300809550,"-3,920.16",SOFTCAT LTD,TRADE SUPPLIER,ICT Service,ICT Service Business Support,Computer software - purchase
Cambridgeshire County Council,09-May-19,51300813929,"-3,834.86",GLENHOLME HEALTHCARE LTD,CARE ESTABLISHMENT,LD - Young Adults Team,LD - Young Adults - Special Needs,Residential Care
Cambridgeshire County Council,23-May-19,51300867258,"-3,559.04",Ambito Care and Education,COMPANY,LD - City Locality,LD - City - Special Needs,Residential Care
Cambridgeshire County Council,23-May-19,51300867253,"-3,559.04",Ambito Care and Education,COMPANY,LD - City Locality,LD - City - Special Needs,Residential Care
Cambridgeshire County Council,23-May-19,51300867254,"-3,559.04",Ambito Care and Education,COMPANY,LD - City Locality,LD - City - Special Needs,Residential Care
Cambridgeshire County Council,23-May-19,51300867256,"-3,559.04",Ambito Care and Education,COMPANY,LD - City Locality,LD - City - Special Needs,Residential Care
Cambridgeshire County Council,23-May-19,51300867255,"-3,559.04",Ambito Care and Education,COMPANY,LD - City Locality,LD - City - Special Needs,Residential Care
Cambridgeshire County Council,23-May-19,51300867257,"-3,559.04",Ambito Care and Education,COMPANY,LD - City Locality,LD - City - Special Needs,Residential Care
Cambridgeshire County Council,09-May-19,51300912225,"-3,325.00",Accomplish Group Support Limited,CARE ESTABLISHMENT,LD - Hunts Locality,LD - Huntigndonshire  - Special Needs,Rehabilitation And Respite Care
Cambridgeshire County Council,09-May-19,51300904899,"-3,325.00",Accomplish Group Support Limited,CARE ESTABLISHMENT,LD - Hunts Locality,LD - Huntigndonshire  - Special Needs,Rehabilitation And Respite Care
Cambridgeshire County Council,22-May-19,51300921737,"-3,325.00",Accomplish Group Support Limited,CARE ESTABLISHMENT,LD - Hunts Locality,LD - Huntigndonshire  - Special Needs,Rehabilitation And Respite Care
Cambridgeshire County Council,24-May-19,53300018338,"-3,301.60",HMRC - PAYE,OTHER PUBLIC BODIES,Financing items,Additional Pension Contribution,Pay
Cambridgeshire County Council,15-May-19,51300914427,"-3,290.17",CAMBRIDGE CITY COUNCIL,OTHER PUBLIC BODIES,Buildings and Capital,Education Property Strategy Manager,Rents and Leases - Income (non HRA)
Cambridgeshire County Council,24-May-19,53300018338,"-3,180.78",HMRC - PAYE,OTHER PUBLIC BODIES,Financing items,Additional Pension Contribution,Pay
Cambridgeshire County Council,09-May-19,51300822192,"-3,132.31",CONGREGATION OF THE DAUGHTERS OF THE CROSS OF LIEGE (ST ELIZABETHS CENTRE),CARE ESTABLISHMENT,LD - Hunts Locality,LD - Huntigndonshire  - Special Needs,Residential Care
Cambridgeshire County Council,09-May-19,51300822189,"-3,132.31",CONGREGATION OF THE DAUGHTERS OF THE CROSS OF LIEGE (ST ELIZABETHS CENTRE),CARE ESTABLISHMENT,LD - Hunts Locality,LD - Huntigndonshire  - Special Needs,Residential Care
Cambridgeshire County Council,09-May-19,51300822197,"-3,132.31",CONGREGATION OF THE DAUGHTERS OF THE CROSS OF LIEGE (ST ELIZABETHS CENTRE),CARE ESTABLISHMENT,LD - Hunts Locality,LD - Huntigndonshire  - Special Needs,Residential Care
Cambridgeshire County Council,09-May-19,51300822194,"-3,132.31",CONGREGATION OF THE DAUGHTERS OF THE CROSS OF LIEGE (ST ELIZABETHS CENTRE),CARE ESTABLISHMENT,LD - Hunts Locality,LD - Huntigndonshire  - Special Needs,Residential Care
Cambridgeshire County Council,09-May-19,51300822191,"-3,132.31",CONGREGATION OF THE DAUGHTERS OF THE CROSS OF LIEGE (ST ELIZABETHS CENTRE),CARE ESTABLISHMENT,LD - Hunts Locality,LD - Huntigndonshire  - Special Needs,Residential Care
Cambridgeshire County Council,09-May-19,51300822184,"-3,132.31",CONGREGATION OF THE DAUGHTERS OF THE CROSS OF LIEGE (ST ELIZABETHS CENTRE),CARE ESTABLISHMENT,LD - Hunts Locality,LD - Huntigndonshire  - Special Needs,Residential Care
Cambridgeshire County Council,09-May-19,51300822195,"-3,132.31",CONGREGATION OF THE DAUGHTERS OF THE CROSS OF LIEGE (ST ELIZABETHS CENTRE),CARE ESTABLISHMENT,LD - Hunts Locality,LD - Huntigndonshire  - Special Needs,Residential Care
Cambridgeshire County Council,09-May-19,51300822188,"-3,132.31",CONGREGATION OF THE DAUGHTERS OF THE CROSS OF LIEGE (ST ELIZABETHS CENTRE),CARE ESTABLISHMENT,LD - Hunts Locality,LD - Huntigndonshire  - Special Needs,Residential Care
Cambridgeshire County Council,09-May-19,51300836921,"-3,040.00",AURORA ORCHARD MANOR,CARE ESTABLISHMENT,LD - South Locality,LD - South Cambs - Special Needs,Residential Care
Cambridgeshire County Council,09-May-19,51300836906,"-3,040.00",AURORA ORCHARD MANOR,CARE ESTABLISHMENT,LD - South Locality,LD - South Cambs - Special Needs,Residential Care
Cambridgeshire County Council,09-May-19,51300836915,"-3,040.00",AURORA ORCHARD MANOR,CARE ESTABLISHMENT,LD - South Locality,LD - South Cambs - Special Needs,Residential Care
Cambridgeshire County Council,09-May-19,51300836908,"-3,040.00",AURORA ORCHARD MANOR,CARE ESTABLISHMENT,LD - South Locality,LD - South Cambs - Special Needs,Residential Care
Cambridgeshire County Council,09-May-19,51300836912,"-3,040.00",AURORA ORCHARD MANOR,CARE ESTABLISHMENT,LD - South Locality,LD - South Cambs - Special Needs,Residential Care
Cambridgeshire County Council,09-May-19,51300836913,"-3,040.00",AURORA ORCHARD MANOR,CARE ESTABLISHMENT,LD - South Locality,LD - South Cambs - Special Needs,Residential Care
Cambridgeshire County Council,09-May-19,51300840747,"-2,948.30",CONQUEST CARE HOMES PETERBOROUGH,CARE ESTABLISHMENT,LD - Young Adults Team,LD - Young Adults - Special Needs,Residential Care
Cambridgeshire County Council,09-May-19,51300840703,"-2,948.30",CONQUEST CARE HOMES PETERBOROUGH,CARE ESTABLISHMENT,LD - Young Adults Team,LD - Young Adults - Special Needs,Residential Care
Cambridgeshire County Council,09-May-19,51300840693,"-2,948.30",CONQUEST CARE HOMES PETERBOROUGH,CARE ESTABLISHMENT,LD - Young Adults Team,LD - Young Adults - Special Needs,Residential Care
Cambridgeshire County Council,09-May-19,51300840734,"-2,948.30",CONQUEST CARE HOMES PETERBOROUGH,CARE ESTABLISHMENT,LD - Young Adults Team,LD - Young Adults - Special Needs,Residential Care
Cambridgeshire County Council,09-May-19,51300840702,"-2,948.30",CONQUEST CARE HOMES PETERBOROUGH,CARE ESTABLISHMENT,LD - Young Adults Team,LD - Young Adults - Special Needs,Residential Care
Cambridgeshire County Council,09-May-19,51300840784,"-2,948.30",CONQUEST CARE HOMES PETERBOROUGH,CARE ESTABLISHMENT,LD - Young Adults Team,LD - Young Adults - Special Needs,Residential Care
Cambridgeshire County Council,09-May-19,51300840780,"-2,948.30",CONQUEST CARE HOMES PETERBOROUGH,CARE ESTABLISHMENT,LD - Young Adults Team,LD - Young Adults - Special Needs,Residential Care
Cambridgeshire County Council,09-May-19,51300840694,"-2,948.30",CONQUEST CARE HOMES PETERBOROUGH,CARE ESTABLISHMENT,LD - Young Adults Team,LD - Young Adults - Special Needs,Residential Care
Cambridgeshire County Council,09-May-19,51300812973,"-2,919.43",AURORA ORCHARD MANOR,CARE ESTABLISHMENT,LD - Young Adults Team,LD - Young Adults - Special Needs,Residential Care
Cambridgeshire County Council,09-May-19,51300812970,"-2,919.43",AURORA ORCHARD MANOR,CARE ESTABLISHMENT,LD - Young Adults Team,LD - Young Adults - Special Needs,Residential Care
Cambridgeshire County Council,09-May-19,51300812965,"-2,919.43",AURORA ORCHARD MANOR,CARE ESTABLISHMENT,LD - Young Adults Team,LD - Young Adults - Special Needs,Residential Care
Cambridgeshire County Council,09-May-19,51300812978,"-2,919.43",AURORA ORCHARD MANOR,CARE ESTABLISHMENT,LD - Young Adults Team,LD - Young Adults - Special Needs,Residential Care
Cambridgeshire County Council,09-May-19,51300812961,"-2,919.43",AURORA ORCHARD MANOR,CARE ESTABLISHMENT,LD - Young Adults Team,LD - Young Adults - Special Needs,Residential Care
Cambridgeshire County Council,09-May-19,51300812972,"-2,919.43",AURORA ORCHARD MANOR,CARE ESTABLISHMENT,LD - Young Adults Team,LD - Young Adults - Special Needs,Residential Care
Cambridgeshire County Council,09-May-19,51300812968,"-2,919.43",AURORA ORCHARD MANOR,CARE ESTABLISHMENT,LD - Young Adults Team,LD - Young Adults - Special Needs,Residential Care
Cambridgeshire County Council,09-May-19,51300812977,"-2,919.43",AURORA ORCHARD MANOR,CARE ESTABLISHMENT,LD - Young Adults Team,LD - Young Adults - Special Needs,Residential Care
Cambridgeshire County Council,09-May-19,51300816383,"-2,843.57",CONQUEST CARE HOMES PETERBOROUGH,CARE ESTABLISHMENT,LD - Hunts Locality,LD - Huntigndonshire  - Special Needs,Residential Care
Cambridgeshire County Council,09-May-19,51300816378,"-2,843.57",CONQUEST CARE HOMES PETERBOROUGH,CARE ESTABLISHMENT,LD - Hunts Locality,LD - Huntigndonshire  - Special Needs,Residential Care
Cambridgeshire County Council,09-May-19,51300816381,"-2,843.57",CONQUEST CARE HOMES PETERBOROUGH,CARE ESTABLISHMENT,LD - Hunts Locality,LD - Huntigndonshire  - Special Needs,Residential Care
Cambridgeshire County Council,09-May-19,51300816384,"-2,843.57",CONQUEST CARE HOMES PETERBOROUGH,CARE ESTABLISHMENT,LD - Hunts Locality,LD - Huntigndonshire  - Special Needs,Residential Care
Cambridgeshire County Council,09-May-19,51300816377,"-2,843.57",CONQUEST CARE HOMES PETERBOROUGH,CARE ESTABLISHMENT,LD - Hunts Locality,LD - Huntigndonshire  - Special Needs,Residential Care
Cambridgeshire County Council,09-May-19,51300816379,"-2,843.57",CONQUEST CARE HOMES PETERBOROUGH,CARE ESTABLISHMENT,LD - Hunts Locality,LD - Huntigndonshire  - Special Needs,Residential Care
Cambridgeshire County Council,09-May-19,51300816385,"-2,843.57",CONQUEST CARE HOMES PETERBOROUGH,CARE ESTABLISHMENT,LD - Hunts Locality,LD - Huntigndonshire  - Special Needs,Residential Care
Cambridgeshire County Council,09-May-19,51300816386,"-2,843.57",CONQUEST CARE HOMES PETERBOROUGH,CARE ESTABLISHMENT,LD - Hunts Locality,LD - Huntigndonshire  - Special Needs,Residential Care
Cambridgeshire County Council,24-May-19,53300018338,"-2,765.90",HMRC - PAYE,OTHER PUBLIC BODIES,Financing items,Additional Pension Contribution,Pay
Cambridgeshire County Council,24-May-19,51300934997,"-2,743.20",NATIONAL TEACHING & ADVISORY SERVICE FOR LOOKED AFTER CHILDREN (NT & AS),OTHER PUBLIC BODIES,Out of School Tuition,Out of School Provision - Education and Settings,Independent School Placements
Cambridgeshire County Council,09-May-19,51300822190,"-2,684.84",CONGREGATION OF THE DAUGHTERS OF THE CROSS OF LIEGE (ST ELIZABETHS CENTRE),CARE ESTABLISHMENT,LD - Hunts Locality,LD - Huntigndonshire  - Special Needs,Residential Care
Cambridgeshire County Council,09-May-19,51300812843,"-2,635.93",AURORA ORCHARD MANOR,CARE ESTABLISHMENT,LD - Young Adults Team,LD - Young Adults - Special Needs,Residential Care
Cambridgeshire County Council,09-May-19,51300812827,"-2,635.93",AURORA ORCHARD MANOR,CARE ESTABLISHMENT,LD - Young Adults Team,LD - Young Adults - Special Needs,Residential Care
Cambridgeshire County Council,09-May-19,51300812840,"-2,635.93",AURORA ORCHARD MANOR,CARE ESTABLISHMENT,LD - Young Adults Team,LD - Young Adults - Special Needs,Residential Care
Cambridgeshire County Council,09-May-19,51300812859,"-2,635.93",AURORA ORCHARD MANOR,CARE ESTABLISHMENT,LD - Young Adults Team,LD - Young Adults - Special Needs,Residential Care
Cambridgeshire County Council,09-May-19,51300812864,"-2,635.93",AURORA ORCHARD MANOR,CARE ESTABLISHMENT,LD - Young Adults Team,LD - Young Adults - Special Needs,Residential Care
Cambridgeshire County Council,09-May-19,51300812874,"-2,635.93",AURORA ORCHARD MANOR,CARE ESTABLISHMENT,LD - Young Adults Team,LD - Young Adults - Special Needs,Residential Care
Cambridgeshire County Council,09-May-19,51300836920,"-2,605.71",AURORA ORCHARD MANOR,CARE ESTABLISHMENT,LD - South Locality,LD - South Cambs - Special Needs,Residential Care
Cambridgeshire County Council,28-May-19,51300935022,"-2,604.13",RED BALLOON OF THE AIR,CARE ESTABLISHMENT,SEN Placements,Placements - Education,Independent School Placements
Cambridgeshire County Council,09-May-19,51300840710,"-2,527.11",CONQUEST CARE HOMES PETERBOROUGH,CARE ESTABLISHMENT,LD - Young Adults Team,LD - Young Adults - Special Needs,Residential Care
Cambridgeshire County Council,09-May-19,51300812967,"-2,502.37",AURORA ORCHARD MANOR,CARE ESTABLISHMENT,LD - Young Adults Team,LD - Young Adults - Special Needs,Residential Care
Cambridgeshire County Council,09-May-19,51300816382,"-2,437.35",CONQUEST CARE HOMES PETERBOROUGH,CARE ESTABLISHMENT,LD - Hunts Locality,LD - Huntigndonshire  - Special Needs,Residential Care
Cambridgeshire County Council,09-May-19,51300825984,"-2,345.39",CONQUEST CARE HOMES PETERBOROUGH,CARE ESTABLISHMENT,LD - Hunts Locality,LD - Huntigndonshire  - Special Needs,Residential Care
Cambridgeshire County Council,09-May-19,51300825992,"-2,345.39",CONQUEST CARE HOMES PETERBOROUGH,CARE ESTABLISHMENT,LD - Hunts Locality,LD - Huntigndonshire  - Special Needs,Residential Care
Cambridgeshire County Council,09-May-19,51300825991,"-2,345.39",CONQUEST CARE HOMES PETERBOROUGH,CARE ESTABLISHMENT,LD - Hunts Locality,LD - Huntigndonshire  - Special Needs,Residential Care
Cambridgeshire County Council,09-May-19,51300825990,"-2,345.39",CONQUEST CARE HOMES PETERBOROUGH,CARE ESTABLISHMENT,LD - Hunts Locality,LD - Huntigndonshire  - Special Needs,Residential Care
Cambridgeshire County Council,09-May-19,51300825987,"-2,345.39",CONQUEST CARE HOMES PETERBOROUGH,CARE ESTABLISHMENT,LD - Hunts Locality,LD - Huntigndonshire  - Special Needs,Residential Care
Cambridgeshire County Council,09-May-19,51300825985,"-2,345.39",CONQUEST CARE HOMES PETERBOROUGH,CARE ESTABLISHMENT,LD - Hunts Locality,LD - Huntigndonshire  - Special Needs,Residential Care
Cambridgeshire County Council,09-May-19,51300825986,"-2,345.39",CONQUEST CARE HOMES PETERBOROUGH,CARE ESTABLISHMENT,LD - Hunts Locality,LD - Huntigndonshire  - Special Needs,Residential Care
Cambridgeshire County Council,09-May-19,51300825993,"-2,345.39",CONQUEST CARE HOMES PETERBOROUGH,CARE ESTABLISHMENT,LD - Hunts Locality,LD - Huntigndonshire  - Special Needs,Residential Care
Cambridgeshire County Council,09-May-19,51300833164,"-2,340.74",GLENHOLME HEALTHCARE LTD,CARE ESTABLISHMENT,LD - Hunts Locality,LD - Huntigndonshire  - Special Needs,Residential Care
Cambridgeshire County Council,09-May-19,51300833178,"-2,340.74",GLENHOLME HEALTHCARE LTD,CARE ESTABLISHMENT,LD - Hunts Locality,LD - Huntigndonshire  - Special Needs,Residential Care
Cambridgeshire County Council,09-May-19,51300833171,"-2,340.74",GLENHOLME HEALTHCARE LTD,CARE ESTABLISHMENT,LD - Hunts Locality,LD - Huntigndonshire  - Special Needs,Residential Care
Cambridgeshire County Council,09-May-19,51300833169,"-2,340.74",GLENHOLME HEALTHCARE LTD,CARE ESTABLISHMENT,LD - Hunts Locality,LD - Huntigndonshire  - Special Needs,Residential Care
Cambridgeshire County Council,09-May-19,51300833165,"-2,340.74",GLENHOLME HEALTHCARE LTD,CARE ESTABLISHMENT,LD - Hunts Locality,LD - Huntigndonshire  - Special Needs,Residential Care
Cambridgeshire County Council,09-May-19,51300833163,"-2,340.74",GLENHOLME HEALTHCARE LTD,CARE ESTABLISHMENT,LD - Hunts Locality,LD - Huntigndonshire  - Special Needs,Residential Care
Cambridgeshire County Council,23-May-19,51300920300,"-2,337.29",DIMENSIONS (UK) LTD,CARE ESTABLISHMENT,LD - South Locality,LD - South Cambs - Special Needs,Supported Living
Cambridgeshire County Council,23-May-19,51300902621,"-2,337.29",DIMENSIONS (UK) LTD,CARE ESTABLISHMENT,LD - South Locality,LD - South Cambs - Special Needs,Supported Living
Cambridgeshire County Council,23-May-19,51300920284,"-2,337.29",DIMENSIONS (UK) LTD,CARE ESTABLISHMENT,LD - South Locality,LD - South Cambs - Special Needs,Supported Living
Cambridgeshire County Council,23-May-19,51300902612,"-2,337.29",DIMENSIONS (UK) LTD,CARE ESTABLISHMENT,LD - South Locality,LD - South Cambs - Special Needs,Supported Living
Cambridgeshire County Council,23-May-19,51300920289,"-2,337.29",DIMENSIONS (UK) LTD,CARE ESTABLISHMENT,LD - South Locality,LD - South Cambs - Special Needs,Supported Living
Cambridgeshire County Council,23-May-19,51300902610,"-2,337.29",DIMENSIONS (UK) LTD,CARE ESTABLISHMENT,LD - South Locality,LD - South Cambs - Special Needs,Supported Living
Cambridgeshire County Council,23-May-19,51300902611,"-2,337.29",DIMENSIONS (UK) LTD,CARE ESTABLISHMENT,LD - South Locality,LD - South Cambs - Special Needs,Supported Living
Cambridgeshire County Council,23-May-19,51300910964,"-2,337.29",DIMENSIONS (UK) LTD,CARE ESTABLISHMENT,LD - City Locality,LD - City - Special Needs,Supported Living
Cambridgeshire County Council,23-May-19,51300910965,"-2,337.29",DIMENSIONS (UK) LTD,CARE ESTABLISHMENT,LD - City Locality,LD - City - Special Needs,Supported Living
Cambridgeshire County Council,23-May-19,51300910958,"-2,337.29",DIMENSIONS (UK) LTD,CARE ESTABLISHMENT,LD - City Locality,LD - City - Special Needs,Supported Living
Cambridgeshire County Council,23-May-19,51300910951,"-2,337.29",DIMENSIONS (UK) LTD,CARE ESTABLISHMENT,LD - City Locality,LD - City - Special Needs,Supported Living
Cambridgeshire County Council,23-May-19,51300920287,"-2,337.29",DIMENSIONS (UK) LTD,CARE ESTABLISHMENT,LD - City Locality,LD - City - Special Needs,Supported Living
Cambridgeshire County Council,23-May-19,51300920290,"-2,337.29",DIMENSIONS (UK) LTD,CARE ESTABLISHMENT,LD - City Locality,LD - City - Special Needs,Supported Living
Cambridgeshire County Council,23-May-19,51300902613,"-2,337.29",DIMENSIONS (UK) LTD,CARE ESTABLISHMENT,LD - City Locality,LD - City - Special Needs,Supported Living
Cambridgeshire County Council,23-May-19,51300910954,"-2,337.29",DIMENSIONS (UK) LTD,CARE ESTABLISHMENT,LD - City Locality,LD - City - Special Needs,Supported Living
Cambridgeshire County Council,23-May-19,51300920296,"-2,337.29",DIMENSIONS (UK) LTD,CARE ESTABLISHMENT,LD - City Locality,LD - City - Special Needs,Supported Living
Cambridgeshire County Council,23-May-19,51300920298,"-2,337.29",DIMENSIONS (UK) LTD,CARE ESTABLISHMENT,LD - South Locality,LD - South Cambs - Special Needs,Supported Living
Cambridgeshire County Council,23-May-19,51300910955,"-2,337.29",DIMENSIONS (UK) LTD,CARE ESTABLISHMENT,LD - South Locality,LD - South Cambs - Special Needs,Supported Living
Cambridgeshire County Council,23-May-19,51300910957,"-2,337.29",DIMENSIONS (UK) LTD,CARE ESTABLISHMENT,LD - South Locality,LD - South Cambs - Special Needs,Supported Living
Cambridgeshire County Council,23-May-19,51300910956,"-2,337.29",DIMENSIONS (UK) LTD,CARE ESTABLISHMENT,LD - South Locality,LD - South Cambs - Special Needs,Supported Living
Cambridgeshire County Council,23-May-19,51300902615,"-2,337.29",DIMENSIONS (UK) LTD,CARE ESTABLISHMENT,LD - South Locality,LD - South Cambs - Special Needs,Supported Living
Cambridgeshire County Council,23-May-19,51300902618,"-2,337.29",DIMENSIONS (UK) LTD,CARE ESTABLISHMENT,LD - South Locality,LD - South Cambs - Special Needs,Supported Living
Cambridgeshire County Council,23-May-19,51300902617,"-2,337.29",DIMENSIONS (UK) LTD,CARE ESTABLISHMENT,LD - South Locality,LD - South Cambs - Special Needs,Supported Living
Cambridgeshire County Council,23-May-19,51300920283,"-2,337.29",DIMENSIONS (UK) LTD,CARE ESTABLISHMENT,LD - City Locality,LD - City - Special Needs,Supported Living
Cambridgeshire County Council,09-May-19,51300824680,"-2,321.81",AURORA ORCHARD MANOR,CARE ESTABLISHMENT,LD - South Locality,LD - South Cambs - Special Needs,Residential Care
Cambridgeshire County Council,09-May-19,51300824688,"-2,321.81",AURORA ORCHARD MANOR,CARE ESTABLISHMENT,LD - South Locality,LD - South Cambs - Special Needs,Residential Care
Cambridgeshire County Council,09-May-19,51300824657,"-2,321.81",AURORA ORCHARD MANOR,CARE ESTABLISHMENT,LD - South Locality,LD - South Cambs - Special Needs,Residential Care
Cambridgeshire County Council,09-May-19,51300824656,"-2,321.81",AURORA ORCHARD MANOR,CARE ESTABLISHMENT,LD - South Locality,LD - South Cambs - Special Needs,Residential Care
Cambridgeshire County Council,09-May-19,51300824661,"-2,321.81",AURORA ORCHARD MANOR,CARE ESTABLISHMENT,LD - South Locality,LD - South Cambs - Special Needs,Residential Care
Cambridgeshire County Council,09-May-19,51300824682,"-2,321.81",AURORA ORCHARD MANOR,CARE ESTABLISHMENT,LD - South Locality,LD - South Cambs - Special Needs,Residential Care
Cambridgeshire County Council,09-May-19,51300830555,"-2,318.80",AURORA ORCHARD MANOR,CARE ESTABLISHMENT,LD - Hunts Locality,LD - Huntigndonshire  - Special Needs,Residential Care
Cambridgeshire County Council,09-May-19,51300830567,"-2,318.80",AURORA ORCHARD MANOR,CARE ESTABLISHMENT,LD - Hunts Locality,LD - Huntigndonshire  - Special Needs,Residential Care
Cambridgeshire County Council,09-May-19,51300830550,"-2,318.80",AURORA ORCHARD MANOR,CARE ESTABLISHMENT,LD - Hunts Locality,LD - Huntigndonshire  - Special Needs,Residential Care
Cambridgeshire County Council,09-May-19,51300830565,"-2,318.80",AURORA ORCHARD MANOR,CARE ESTABLISHMENT,LD - Hunts Locality,LD - Huntigndonshire  - Special Needs,Residential Care
Cambridgeshire County Council,09-May-19,51300830554,"-2,318.80",AURORA ORCHARD MANOR,CARE ESTABLISHMENT,LD - Hunts Locality,LD - Huntigndonshire  - Special Needs,Residential Care
Cambridgeshire County Council,09-May-19,51300830548,"-2,318.80",AURORA ORCHARD MANOR,CARE ESTABLISHMENT,LD - Hunts Locality,LD - Huntigndonshire  - Special Needs,Residential Care
Cambridgeshire County Council,09-May-19,51300830564,"-2,318.80",AURORA ORCHARD MANOR,CARE ESTABLISHMENT,LD - Hunts Locality,LD - Huntigndonshire  - Special Needs,Residential Care
Cambridgeshire County Council,09-May-19,51300830569,"-2,318.80",AURORA ORCHARD MANOR,CARE ESTABLISHMENT,LD - Hunts Locality,LD - Huntigndonshire  - Special Needs,Residential Care
Cambridgeshire County Council,09-May-19,51300859147,"-2,273.52",GLENHOLME HEALTHCARE LTD,CARE ESTABLISHMENT,LD - Hunts Locality,LD - Huntigndonshire  - Special Needs,Supported Living
Cambridgeshire County Council,09-May-19,51300859146,"-2,273.52",GLENHOLME HEALTHCARE LTD,CARE ESTABLISHMENT,LD - Hunts Locality,LD - Huntigndonshire  - Special Needs,Supported Living
Cambridgeshire County Council,09-May-19,51300859148,"-2,273.52",GLENHOLME HEALTHCARE LTD,CARE ESTABLISHMENT,LD - Hunts Locality,LD - Huntigndonshire  - Special Needs,Supported Living
Cambridgeshire County Council,30-May-19,51300960952,"-2,268.21",THERA EAST ANGLIA,CARE ESTABLISHMENT,LD - East Locality,LD - East Cambs - Special Needs,Supported Living
Cambridgeshire County Council,30-May-19,51300960962,"-2,268.21",THERA EAST ANGLIA,CARE ESTABLISHMENT,LD - East Locality,LD - East Cambs - Special Needs,Supported Living
Cambridgeshire County Council,30-May-19,51300960979,"-2,268.21",THERA EAST ANGLIA,CARE ESTABLISHMENT,LD - East Locality,LD - East Cambs - Special Needs,Supported Living
Cambridgeshire County Council,30-May-19,51300960950,"-2,268.21",THERA EAST ANGLIA,CARE ESTABLISHMENT,LD - East Locality,LD - East Cambs - Special Needs,Supported Living
Cambridgeshire County Council,30-May-19,51300960961,"-2,268.21",THERA EAST ANGLIA,CARE ESTABLISHMENT,LD - East Locality,LD - East Cambs - Special Needs,Supported Living
Cambridgeshire County Council,30-May-19,51300960967,"-2,268.21",THERA EAST ANGLIA,CARE ESTABLISHMENT,LD - East Locality,LD - East Cambs - Special Needs,Supported Living
Cambridgeshire County Council,30-May-19,51300960966,"-2,268.21",THERA EAST ANGLIA,CARE ESTABLISHMENT,LD - East Locality,LD - East Cambs - Special Needs,Supported Living
Cambridgeshire County Council,15-May-19,51300916251,"-2,260.00",LGSS LAW LTD,TRADE SUPPLIER,Legal Proceedings,Legal Proceedings,External Legal Fees
Cambridgeshire County Council,09-May-19,51300812818,"-2,259.37",AURORA ORCHARD MANOR,CARE ESTABLISHMENT,LD - Young Adults Team,LD - Young Adults - Special Needs,Residential Care
Cambridgeshire County Council,30-May-19,51300968653,"-2,192.52",THERA EAST ANGLIA,CARE ESTABLISHMENT,LD - East Locality,LD - East Cambs - Care,Supported Living
Cambridgeshire County Council,30-May-19,51300968657,"-2,192.52",THERA EAST ANGLIA,CARE ESTABLISHMENT,LD - East Locality,LD - East Cambs - Care,Supported Living
Cambridgeshire County Council,30-May-19,51300968645,"-2,192.52",THERA EAST ANGLIA,CARE ESTABLISHMENT,LD - East Locality,LD - East Cambs - Care,Supported Living
Cambridgeshire County Council,30-May-19,51300968655,"-2,192.52",THERA EAST ANGLIA,CARE ESTABLISHMENT,LD - East Locality,LD - East Cambs - Care,Supported Living
Cambridgeshire County Council,30-May-19,51300968650,"-2,192.52",THERA EAST ANGLIA,CARE ESTABLISHMENT,LD - East Locality,LD - East Cambs - Care,Supported Living
Cambridgeshire County Council,30-May-19,51300968647,"-2,192.52",THERA EAST ANGLIA,CARE ESTABLISHMENT,LD - East Locality,LD - East Cambs - Care,Supported Living
Cambridgeshire County Council,30-May-19,51300968636,"-2,192.52",THERA EAST ANGLIA,CARE ESTABLISHMENT,LD - East Locality,LD - East Cambs - Care,Supported Living
Cambridgeshire County Council,09-May-19,51300825989,"-2,010.33",CONQUEST CARE HOMES PETERBOROUGH,CARE ESTABLISHMENT,LD - Hunts Locality,LD - Huntigndonshire  - Special Needs,Residential Care
Cambridgeshire County Council,09-May-19,51300833166,"-2,006.35",GLENHOLME HEALTHCARE LTD,CARE ESTABLISHMENT,LD - Hunts Locality,LD - Huntigndonshire  - Special Needs,Residential Care
Cambridgeshire County Council,09-May-19,51300826302,"-1,996.94",CONQUEST CARE HOMES PETERBOROUGH,CARE ESTABLISHMENT,LD - Hunts Locality,LD - Huntigndonshire  - Special Needs,Residential Care
Cambridgeshire County Council,09-May-19,51300826333,"-1,996.94",CONQUEST CARE HOMES PETERBOROUGH,CARE ESTABLISHMENT,LD - Hunts Locality,LD - Huntigndonshire  - Special Needs,Residential Care
Cambridgeshire County Council,09-May-19,51300826306,"-1,996.94",CONQUEST CARE HOMES PETERBOROUGH,CARE ESTABLISHMENT,LD - Hunts Locality,LD - Huntigndonshire  - Special Needs,Residential Care
Cambridgeshire County Council,09-May-19,51300826331,"-1,996.94",CONQUEST CARE HOMES PETERBOROUGH,CARE ESTABLISHMENT,LD - Hunts Locality,LD - Huntigndonshire  - Special Needs,Residential Care
Cambridgeshire County Council,09-May-19,51300826338,"-1,996.94",CONQUEST CARE HOMES PETERBOROUGH,CARE ESTABLISHMENT,LD - Hunts Locality,LD - Huntigndonshire  - Special Needs,Residential Care
Cambridgeshire County Council,09-May-19,51300826324,"-1,996.94",CONQUEST CARE HOMES PETERBOROUGH,CARE ESTABLISHMENT,LD - Hunts Locality,LD - Huntigndonshire  - Special Needs,Residential Care
Cambridgeshire County Council,09-May-19,51300826318,"-1,996.94",CONQUEST CARE HOMES PETERBOROUGH,CARE ESTABLISHMENT,LD - Hunts Locality,LD - Huntigndonshire  - Special Needs,Residential Care
Cambridgeshire County Council,09-May-19,51300826312,"-1,996.94",CONQUEST CARE HOMES PETERBOROUGH,CARE ESTABLISHMENT,LD - Hunts Locality,LD - Huntigndonshire  - Special Needs,Residential Care
Cambridgeshire County Council,09-May-19,51300824670,"-1,990.12",AURORA ORCHARD MANOR,CARE ESTABLISHMENT,LD - South Locality,LD - South Cambs - Special Needs,Residential Care
Cambridgeshire County Council,09-May-19,51300830563,"-1,987.54",AURORA ORCHARD MANOR,CARE ESTABLISHMENT,LD - Hunts Locality,LD - Huntigndonshire  - Special Needs,Residential Care
Cambridgeshire County Council,29-May-19,51300837263,"-1,979.60",PARK HOUSE (BEDFORD),CARE ESTABLISHMENT,Physical Disablity,Countywide PD Service - Care,Residential Care
Cambridgeshire County Council,29-May-19,51300837302,"-1,979.60",PARK HOUSE (BEDFORD),CARE ESTABLISHMENT,Physical Disablity,Countywide PD Service - Care,Residential Care
Cambridgeshire County Council,29-May-19,51300837270,"-1,979.60",PARK HOUSE (BEDFORD),CARE ESTABLISHMENT,Physical Disablity,Countywide PD Service - Care,Residential Care
Cambridgeshire County Council,29-May-19,51300837282,"-1,979.60",PARK HOUSE (BEDFORD),CARE ESTABLISHMENT,Physical Disablity,Countywide PD Service - Care,Residential Care
Cambridgeshire County Council,29-May-19,51300837262,"-1,979.60",PARK HOUSE (BEDFORD),CARE ESTABLISHMENT,Physical Disablity,Countywide PD Service - Care,Residential Care
Cambridgeshire County Council,29-May-19,51300837295,"-1,979.60",PARK HOUSE (BEDFORD),CARE ESTABLISHMENT,Physical Disablity,Countywide PD Service - Care,Residential Care
Cambridgeshire County Council,29-May-19,51300841539,"-1,960.00",PARK HOUSE (BEDFORD),CARE ESTABLISHMENT,Physical Disablity,Countywide PD Service - Care,Residential Care
Cambridgeshire County Council,29-May-19,51300841534,"-1,960.00",PARK HOUSE (BEDFORD),CARE ESTABLISHMENT,Physical Disablity,Countywide PD Service - Care,Residential Care
Cambridgeshire County Council,29-May-19,51300841532,"-1,960.00",PARK HOUSE (BEDFORD),CARE ESTABLISHMENT,Physical Disablity,Countywide PD Service - Care,Residential Care
Cambridgeshire County Council,29-May-19,51300841531,"-1,960.00",PARK HOUSE (BEDFORD),CARE ESTABLISHMENT,Physical Disablity,Countywide PD Service - Care,Residential Care
Cambridgeshire County Council,29-May-19,51300841537,"-1,960.00",PARK HOUSE (BEDFORD),CARE ESTABLISHMENT,Physical Disablity,Countywide PD Service - Care,Residential Care
Cambridgeshire County Council,29-May-19,51300841538,"-1,960.00",PARK HOUSE (BEDFORD),CARE ESTABLISHMENT,Physical Disablity,Countywide PD Service - Care,Residential Care
Cambridgeshire County Council,30-May-19,51300960976,"-1,944.18",THERA EAST ANGLIA,CARE ESTABLISHMENT,LD - East Locality,LD - East Cambs - Special Needs,Supported Living
Cambridgeshire County Council,09-May-19,51300827763,"-1,930.86",GLENHOLME HEALTHCARE LTD,CARE ESTABLISHMENT,AMH - Hunts & Fens,Hunts Mental Health Team,Residential Care
Cambridgeshire County Council,09-May-19,51300827772,"-1,930.86",GLENHOLME HEALTHCARE LTD,CARE ESTABLISHMENT,AMH - Hunts & Fens,Hunts Mental Health Team,Residential Care
Cambridgeshire County Council,09-May-19,51300827770,"-1,930.86",GLENHOLME HEALTHCARE LTD,CARE ESTABLISHMENT,AMH - Hunts & Fens,Hunts Mental Health Team,Residential Care
Cambridgeshire County Council,09-May-19,51300827762,"-1,930.86",GLENHOLME HEALTHCARE LTD,CARE ESTABLISHMENT,AMH - Hunts & Fens,Hunts Mental Health Team,Residential Care
Cambridgeshire County Council,09-May-19,51300827768,"-1,930.86",GLENHOLME HEALTHCARE LTD,CARE ESTABLISHMENT,AMH - Hunts & Fens,Hunts Mental Health Team,Residential Care
Cambridgeshire County Council,09-May-19,51300827756,"-1,930.86",GLENHOLME HEALTHCARE LTD,CARE ESTABLISHMENT,AMH - Hunts & Fens,Hunts Mental Health Team,Residential Care
Cambridgeshire County Council,09-May-19,51300827755,"-1,930.86",GLENHOLME HEALTHCARE LTD,CARE ESTABLISHMENT,AMH - Hunts & Fens,Hunts Mental Health Team,Residential Care
Cambridgeshire County Council,09-May-19,51300827764,"-1,930.86",GLENHOLME HEALTHCARE LTD,CARE ESTABLISHMENT,AMH - Hunts & Fens,Hunts Mental Health Team,Residential Care
Cambridgeshire County Council,09-May-19,51300812522,"-1,890.26",GLENHOLME HEALTHCARE LTD,CARE ESTABLISHMENT,LD - Hunts Locality,LD - Huntigndonshire  - Special Needs,Residential Care
Cambridgeshire County Council,09-May-19,51300832791,"-1,890.26",GLENHOLME HEALTHCARE LTD,CARE ESTABLISHMENT,LD - Hunts Locality,LD - Huntigndonshire  - Special Needs,Residential Care
Cambridgeshire County Council,09-May-19,51300832780,"-1,890.26",GLENHOLME HEALTHCARE LTD,CARE ESTABLISHMENT,LD - Hunts Locality,LD - Huntigndonshire  - Special Needs,Residential Care
Cambridgeshire County Council,09-May-19,51300812513,"-1,890.26",GLENHOLME HEALTHCARE LTD,CARE ESTABLISHMENT,LD - Hunts Locality,LD - Huntigndonshire  - Special Needs,Residential Care
Cambridgeshire County Council,09-May-19,51300812523,"-1,890.26",GLENHOLME HEALTHCARE LTD,CARE ESTABLISHMENT,LD - Hunts Locality,LD - Huntigndonshire  - Special Needs,Residential Care
Cambridgeshire County Council,09-May-19,51300832786,"-1,890.26",GLENHOLME HEALTHCARE LTD,CARE ESTABLISHMENT,LD - Hunts Locality,LD - Huntigndonshire  - Special Needs,Residential Care
Cambridgeshire County Council,09-May-19,51300832731,"-1,890.26",GLENHOLME HEALTHCARE LTD,CARE ESTABLISHMENT,LD - Hunts Locality,LD - Huntigndonshire  - Special Needs,Residential Care
Cambridgeshire County Council,09-May-19,51300832730,"-1,890.26",GLENHOLME HEALTHCARE LTD,CARE ESTABLISHMENT,LD - Hunts Locality,LD - Huntigndonshire  - Special Needs,Residential Care
Cambridgeshire County Council,09-May-19,51300832754,"-1,890.26",GLENHOLME HEALTHCARE LTD,CARE ESTABLISHMENT,LD - Hunts Locality,LD - Huntigndonshire  - Special Needs,Residential Care
Cambridgeshire County Council,09-May-19,51300812516,"-1,890.26",GLENHOLME HEALTHCARE LTD,CARE ESTABLISHMENT,LD - Hunts Locality,LD - Huntigndonshire  - Special Needs,Residential Care
Cambridgeshire County Council,09-May-19,51300812521,"-1,890.26",GLENHOLME HEALTHCARE LTD,CARE ESTABLISHMENT,LD - Hunts Locality,LD - Huntigndonshire  - Special Needs,Residential Care
Cambridgeshire County Council,09-May-19,51300812517,"-1,890.26",GLENHOLME HEALTHCARE LTD,CARE ESTABLISHMENT,LD - Hunts Locality,LD - Huntigndonshire  - Special Needs,Residential Care
Cambridgeshire County Council,30-May-19,51300968659,"-1,879.30",THERA EAST ANGLIA,CARE ESTABLISHMENT,LD - East Locality,LD - East Cambs - Care,Supported Living
Cambridgeshire County Council,23-May-19,51300405194,"-1,877.50",SOFTCAT LTD,TRADE SUPPLIER,ICT Service,ICT Service Business Support,Computer software - purchase
Cambridgeshire County Council,09-May-19,51300832497,"-1,862.65",GLENHOLME HEALTHCARE LTD,CARE ESTABLISHMENT,LD - Hunts Locality,LD - Huntigndonshire  - Special Needs,Residential Care
Cambridgeshire County Council,09-May-19,51300832496,"-1,862.65",GLENHOLME HEALTHCARE LTD,CARE ESTABLISHMENT,LD - Hunts Locality,LD - Huntigndonshire  - Special Needs,Residential Care
Cambridgeshire County Council,09-May-19,51300832486,"-1,862.65",GLENHOLME HEALTHCARE LTD,CARE ESTABLISHMENT,LD - Hunts Locality,LD - Huntigndonshire  - Special Needs,Residential Care
Cambridgeshire County Council,09-May-19,51300832498,"-1,862.65",GLENHOLME HEALTHCARE LTD,CARE ESTABLISHMENT,LD - Hunts Locality,LD - Huntigndonshire  - Special Needs,Residential Care
Cambridgeshire County Council,09-May-19,51300832488,"-1,862.65",GLENHOLME HEALTHCARE LTD,CARE ESTABLISHMENT,LD - Hunts Locality,LD - Huntigndonshire  - Special Needs,Residential Care
Cambridgeshire County Council,09-May-19,51300832500,"-1,862.65",GLENHOLME HEALTHCARE LTD,CARE ESTABLISHMENT,LD - Hunts Locality,LD - Huntigndonshire  - Special Needs,Residential Care
Cambridgeshire County Council,30-May-19,51300962558,"-1,799.57",THERA EAST ANGLIA,CARE ESTABLISHMENT,LD - East Locality,LD - East Cambs - Special Needs,Supported Living
Cambridgeshire County Council,30-May-19,51300962577,"-1,799.57",THERA EAST ANGLIA,CARE ESTABLISHMENT,LD - East Locality,LD - East Cambs - Special Needs,Supported Living
Cambridgeshire County Council,30-May-19,51300960807,"-1,799.57",THERA EAST ANGLIA,CARE ESTABLISHMENT,LD - East Locality,LD - East Cambs - Special Needs,Supported Living
Cambridgeshire County Council,30-May-19,51300960838,"-1,799.57",THERA EAST ANGLIA,CARE ESTABLISHMENT,LD - East Locality,LD - East Cambs - Special Needs,Supported Living
Cambridgeshire County Council,30-May-19,51300962526,"-1,799.57",THERA EAST ANGLIA,CARE ESTABLISHMENT,LD - East Locality,LD - East Cambs - Special Needs,Supported Living
Cambridgeshire County Council,30-May-19,51300962556,"-1,799.57",THERA EAST ANGLIA,CARE ESTABLISHMENT,LD - East Locality,LD - East Cambs - Special Needs,Supported Living
Cambridgeshire County Council,30-May-19,51300962575,"-1,799.57",THERA EAST ANGLIA,CARE ESTABLISHMENT,LD - East Locality,LD - East Cambs - Special Needs,Supported Living
Cambridgeshire County Council,30-May-19,51300960806,"-1,799.57",THERA EAST ANGLIA,CARE ESTABLISHMENT,LD - East Locality,LD - East Cambs - Special Needs,Supported Living
Cambridgeshire County Council,30-May-19,51300962539,"-1,799.57",THERA EAST ANGLIA,CARE ESTABLISHMENT,LD - East Locality,LD - East Cambs - Special Needs,Supported Living
Cambridgeshire County Council,30-May-19,51300960813,"-1,799.57",THERA EAST ANGLIA,CARE ESTABLISHMENT,LD - East Locality,LD - East Cambs - Special Needs,Supported Living
Cambridgeshire County Council,30-May-19,51300960820,"-1,799.57",THERA EAST ANGLIA,CARE ESTABLISHMENT,LD - East Locality,LD - East Cambs - Special Needs,Supported Living
Cambridgeshire County Council,30-May-19,51300960808,"-1,799.57",THERA EAST ANGLIA,CARE ESTABLISHMENT,LD - East Locality,LD - East Cambs - Special Needs,Supported Living
Cambridgeshire County Council,30-May-19,51300960821,"-1,799.57",THERA EAST ANGLIA,CARE ESTABLISHMENT,LD - East Locality,LD - East Cambs - Special Needs,Supported Living
Cambridgeshire County Council,30-May-19,51300962570,"-1,799.57",THERA EAST ANGLIA,CARE ESTABLISHMENT,LD - East Locality,LD - East Cambs - Special Needs,Supported Living
Cambridgeshire County Council,23-May-19,51300920688,"-1,799.38",THERA EAST ANGLIA,CARE ESTABLISHMENT,LD - East Locality,LD - East Cambs - Special Needs,Supported Living
Cambridgeshire County Council,23-May-19,51300920704,"-1,799.38",THERA EAST ANGLIA,CARE ESTABLISHMENT,LD - East Locality,LD - East Cambs - Special Needs,Supported Living
Cambridgeshire County Council,23-May-19,51300920699,"-1,799.38",THERA EAST ANGLIA,CARE ESTABLISHMENT,LD - East Locality,LD - East Cambs - Special Needs,Supported Living
Cambridgeshire County Council,30-May-19,51300961219,"-1,799.38",THERA EAST ANGLIA,CARE ESTABLISHMENT,LD - East Locality,LD - East Cambs - Special Needs,Supported Living
Cambridgeshire County Council,30-May-19,51300961211,"-1,799.38",THERA EAST ANGLIA,CARE ESTABLISHMENT,LD - East Locality,LD - East Cambs - Special Needs,Supported Living
Cambridgeshire County Council,30-May-19,51300961235,"-1,799.38",THERA EAST ANGLIA,CARE ESTABLISHMENT,LD - East Locality,LD - East Cambs - Special Needs,Supported Living
Cambridgeshire County Council,30-May-19,51300961229,"-1,799.38",THERA EAST ANGLIA,CARE ESTABLISHMENT,LD - East Locality,LD - East Cambs - Special Needs,Supported Living
Cambridgeshire County Council,30-May-19,51300961221,"-1,799.38",THERA EAST ANGLIA,CARE ESTABLISHMENT,LD - East Locality,LD - East Cambs - Special Needs,Supported Living
Cambridgeshire County Council,30-May-19,51300961230,"-1,799.38",THERA EAST ANGLIA,CARE ESTABLISHMENT,LD - East Locality,LD - East Cambs - Special Needs,Supported Living
Cambridgeshire County Council,30-May-19,51300961216,"-1,799.38",THERA EAST ANGLIA,CARE ESTABLISHMENT,LD - East Locality,LD - East Cambs - Special Needs,Supported Living
Cambridgeshire County Council,09-May-19,51300839354,"-1,797.78",PAULINE BURNETT HOUSE,CARE ESTABLISHMENT,LD - City Locality,LD - City - Special Needs,Residential Care
Cambridgeshire County Council,09-May-19,51300839344,"-1,797.78",PAULINE BURNETT HOUSE,CARE ESTABLISHMENT,LD - City Locality,LD - City - Special Needs,Residential Care
Cambridgeshire County Council,09-May-19,51300839350,"-1,797.78",PAULINE BURNETT HOUSE,CARE ESTABLISHMENT,LD - City Locality,LD - City - Special Needs,Residential Care
Cambridgeshire County Council,09-May-19,51300839363,"-1,797.78",PAULINE BURNETT HOUSE,CARE ESTABLISHMENT,LD - City Locality,LD - City - Special Needs,Residential Care
Cambridgeshire County Council,09-May-19,51300839353,"-1,797.78",PAULINE BURNETT HOUSE,CARE ESTABLISHMENT,LD - City Locality,LD - City - Special Needs,Residential Care
Cambridgeshire County Council,09-May-19,51300839356,"-1,797.78",PAULINE BURNETT HOUSE,CARE ESTABLISHMENT,LD - City Locality,LD - City - Special Needs,Residential Care
Cambridgeshire County Council,09-May-19,51300839347,"-1,797.78",PAULINE BURNETT HOUSE,CARE ESTABLISHMENT,LD - City Locality,LD - City - Special Needs,Residential Care
Cambridgeshire County Council,09-May-19,51300839360,"-1,797.78",PAULINE BURNETT HOUSE,CARE ESTABLISHMENT,LD - City Locality,LD - City - Special Needs,Residential Care
Cambridgeshire County Council,09-May-19,51300817323,"-1,780.17",CONQUEST CARE HOMES PETERBOROUGH,CARE ESTABLISHMENT,LD - Fenland Locality,LD - Fenland  - Special Needs,Residential Care
Cambridgeshire County Council,09-May-19,51300817327,"-1,780.17",CONQUEST CARE HOMES PETERBOROUGH,CARE ESTABLISHMENT,LD - Fenland Locality,LD - Fenland  - Special Needs,Residential Care
Cambridgeshire County Council,09-May-19,51300817322,"-1,780.17",CONQUEST CARE HOMES PETERBOROUGH,CARE ESTABLISHMENT,LD - Fenland Locality,LD - Fenland  - Special Needs,Residential Care
Cambridgeshire County Council,09-May-19,51300817328,"-1,780.17",CONQUEST CARE HOMES PETERBOROUGH,CARE ESTABLISHMENT,LD - Fenland Locality,LD - Fenland  - Special Needs,Residential Care
Cambridgeshire County Council,09-May-19,51300817334,"-1,780.17",CONQUEST CARE HOMES PETERBOROUGH,CARE ESTABLISHMENT,LD - Fenland Locality,LD - Fenland  - Special Needs,Residential Care
Cambridgeshire County Council,09-May-19,51300817316,"-1,780.17",CONQUEST CARE HOMES PETERBOROUGH,CARE ESTABLISHMENT,LD - Fenland Locality,LD - Fenland  - Special Needs,Residential Care
Cambridgeshire County Council,09-May-19,51300817319,"-1,780.17",CONQUEST CARE HOMES PETERBOROUGH,CARE ESTABLISHMENT,LD - Fenland Locality,LD - Fenland  - Special Needs,Residential Care
Cambridgeshire County Council,09-May-19,51300817329,"-1,780.17",CONQUEST CARE HOMES PETERBOROUGH,CARE ESTABLISHMENT,LD - Fenland Locality,LD - Fenland  - Special Needs,Residential Care
Cambridgeshire County Council,09-May-19,51300824566,"-1,779.75",THE BRAMBLES (SOHAM) LTD,CARE ESTABLISHMENT,LD - East Locality,LD - East Cambs - Special Needs,Residential Care
Cambridgeshire County Council,09-May-19,51300824574,"-1,779.75",THE BRAMBLES (SOHAM) LTD,CARE ESTABLISHMENT,LD - East Locality,LD - East Cambs - Special Needs,Residential Care
Cambridgeshire County Council,09-May-19,51300824628,"-1,779.75",THE BRAMBLES (SOHAM) LTD,CARE ESTABLISHMENT,LD - East Locality,LD - East Cambs - Special Needs,Residential Care
Cambridgeshire County Council,09-May-19,51300824612,"-1,779.75",THE BRAMBLES (SOHAM) LTD,CARE ESTABLISHMENT,LD - East Locality,LD - East Cambs - Special Needs,Residential Care
Cambridgeshire County Council,09-May-19,51300824602,"-1,779.75",THE BRAMBLES (SOHAM) LTD,CARE ESTABLISHMENT,LD - East Locality,LD - East Cambs - Special Needs,Residential Care
Cambridgeshire County Council,09-May-19,51300824607,"-1,779.75",THE BRAMBLES (SOHAM) LTD,CARE ESTABLISHMENT,LD - East Locality,LD - East Cambs - Special Needs,Residential Care
Cambridgeshire County Council,09-May-19,51300824606,"-1,779.75",THE BRAMBLES (SOHAM) LTD,CARE ESTABLISHMENT,LD - East Locality,LD - East Cambs - Special Needs,Residential Care
Cambridgeshire County Council,09-May-19,51300824594,"-1,779.75",THE BRAMBLES (SOHAM) LTD,CARE ESTABLISHMENT,LD - East Locality,LD - East Cambs - Special Needs,Residential Care
Cambridgeshire County Council,09-May-19,51300840997,"-1,778.59",CONQUEST CARE HOMES PETERBOROUGH,CARE ESTABLISHMENT,LD - Fenland Locality,LD - Fenland  - Care,Residential Care
Cambridgeshire County Council,09-May-19,51300840994,"-1,778.59",CONQUEST CARE HOMES PETERBOROUGH,CARE ESTABLISHMENT,LD - Fenland Locality,LD - Fenland  - Care,Residential Care
Cambridgeshire County Council,09-May-19,51300840998,"-1,778.59",CONQUEST CARE HOMES PETERBOROUGH,CARE ESTABLISHMENT,LD - Fenland Locality,LD - Fenland  - Care,Residential Care
Cambridgeshire County Council,09-May-19,51300841002,"-1,778.59",CONQUEST CARE HOMES PETERBOROUGH,CARE ESTABLISHMENT,LD - Fenland Locality,LD - Fenland  - Care,Residential Care
Cambridgeshire County Council,09-May-19,51300840989,"-1,778.59",CONQUEST CARE HOMES PETERBOROUGH,CARE ESTABLISHMENT,LD - Fenland Locality,LD - Fenland  - Care,Residential Care
Cambridgeshire County Council,09-May-19,51300840990,"-1,778.59",CONQUEST CARE HOMES PETERBOROUGH,CARE ESTABLISHMENT,LD - Fenland Locality,LD - Fenland  - Care,Residential Care
Cambridgeshire County Council,09-May-19,51300840987,"-1,778.59",CONQUEST CARE HOMES PETERBOROUGH,CARE ESTABLISHMENT,LD - Fenland Locality,LD - Fenland  - Care,Residential Care
Cambridgeshire County Council,09-May-19,51300840982,"-1,778.59",CONQUEST CARE HOMES PETERBOROUGH,CARE ESTABLISHMENT,LD - Fenland Locality,LD - Fenland  - Care,Residential Care
Cambridgeshire County Council,29-May-19,51300822231,"-1,778.00",WESTWARD FARM,CARE ESTABLISHMENT,LD - Hunts Locality,LD - Huntigndonshire  - Special Needs,Residential Care
Cambridgeshire County Council,29-May-19,51300822240,"-1,778.00",WESTWARD FARM,CARE ESTABLISHMENT,LD - Hunts Locality,LD - Huntigndonshire  - Special Needs,Residential Care
Cambridgeshire County Council,29-May-19,51300822227,"-1,778.00",WESTWARD FARM,CARE ESTABLISHMENT,LD - Hunts Locality,LD - Huntigndonshire  - Special Needs,Residential Care
Cambridgeshire County Council,29-May-19,51300822235,"-1,778.00",WESTWARD FARM,CARE ESTABLISHMENT,LD - Hunts Locality,LD - Huntigndonshire  - Special Needs,Residential Care
Cambridgeshire County Council,29-May-19,51300822226,"-1,778.00",WESTWARD FARM,CARE ESTABLISHMENT,LD - Hunts Locality,LD - Huntigndonshire  - Special Needs,Residential Care
Cambridgeshire County Council,29-May-19,51300822239,"-1,778.00",WESTWARD FARM,CARE ESTABLISHMENT,LD - Hunts Locality,LD - Huntigndonshire  - Special Needs,Residential Care
Cambridgeshire County Council,30-May-19,51300966618,"-1,759.50",THERA EAST ANGLIA,CARE ESTABLISHMENT,LD - South Locality,LD - South Cambs - Special Needs,Supported Living
Cambridgeshire County Council,30-May-19,51300966624,"-1,759.50",THERA EAST ANGLIA,CARE ESTABLISHMENT,LD - South Locality,LD - South Cambs - Special Needs,Supported Living
Cambridgeshire County Council,30-May-19,51300966653,"-1,759.50",THERA EAST ANGLIA,CARE ESTABLISHMENT,LD - South Locality,LD - South Cambs - Special Needs,Supported Living
Cambridgeshire County Council,30-May-19,51300966614,"-1,759.50",THERA EAST ANGLIA,CARE ESTABLISHMENT,LD - South Locality,LD - South Cambs - Special Needs,Supported Living
Cambridgeshire County Council,30-May-19,51300966648,"-1,759.50",THERA EAST ANGLIA,CARE ESTABLISHMENT,LD - South Locality,LD - South Cambs - Special Needs,Supported Living
Cambridgeshire County Council,30-May-19,51300966620,"-1,759.50",THERA EAST ANGLIA,CARE ESTABLISHMENT,LD - South Locality,LD - South Cambs - Special Needs,Supported Living
Cambridgeshire County Council,30-May-19,51300966657,"-1,759.50",THERA EAST ANGLIA,CARE ESTABLISHMENT,LD - South Locality,LD - South Cambs - Special Needs,Supported Living
Cambridgeshire County Council,30-May-19,51300966621,"-1,759.50",THERA EAST ANGLIA,CARE ESTABLISHMENT,LD - South Locality,LD - South Cambs - Special Needs,Supported Living
Cambridgeshire County Council,29-May-19,51300813123,"-1,746.00",PINETREES (TRACSCARE 2006 LTD),CARE ESTABLISHMENT,LD - Fenland Locality,LD - Fenland  - Special Needs,Residential Care
Cambridgeshire County Council,29-May-19,51300813104,"-1,746.00",PINETREES (TRACSCARE 2006 LTD),CARE ESTABLISHMENT,LD - Fenland Locality,LD - Fenland  - Special Needs,Residential Care
Cambridgeshire County Council,29-May-19,51300813103,"-1,746.00",PINETREES (TRACSCARE 2006 LTD),CARE ESTABLISHMENT,LD - Fenland Locality,LD - Fenland  - Special Needs,Residential Care
Cambridgeshire County Council,29-May-19,51300813115,"-1,746.00",PINETREES (TRACSCARE 2006 LTD),CARE ESTABLISHMENT,LD - Fenland Locality,LD - Fenland  - Special Needs,Residential Care
Cambridgeshire County Council,29-May-19,51300813122,"-1,746.00",PINETREES (TRACSCARE 2006 LTD),CARE ESTABLISHMENT,LD - Fenland Locality,LD - Fenland  - Special Needs,Residential Care
Cambridgeshire County Council,29-May-19,51300813117,"-1,746.00",PINETREES (TRACSCARE 2006 LTD),CARE ESTABLISHMENT,LD - Fenland Locality,LD - Fenland  - Special Needs,Residential Care
Cambridgeshire County Council,09-May-19,51300826305,"-1,711.66",CONQUEST CARE HOMES PETERBOROUGH,CARE ESTABLISHMENT,LD - Hunts Locality,LD - Huntigndonshire  - Special Needs,Residential Care
Cambridgeshire County Council,23-May-19,51300931216,"-1,711.36",AFFINITY TRUST,CARE ESTABLISHMENT,LD - Fenland Locality,LD - Fenland  - Care,Supported Living
Cambridgeshire County Council,23-May-19,51300910262,"-1,711.36",AFFINITY TRUST,CARE ESTABLISHMENT,LD - Fenland Locality,LD - Fenland  - Care,Supported Living
Cambridgeshire County Council,23-May-19,51300919608,"-1,711.36",AFFINITY TRUST,CARE ESTABLISHMENT,LD - Fenland Locality,LD - Fenland  - Care,Supported Living
Cambridgeshire County Council,23-May-19,51300931219,"-1,711.36",AFFINITY TRUST,CARE ESTABLISHMENT,LD - Fenland Locality,LD - Fenland  - Care,Supported Living
Cambridgeshire County Council,23-May-19,51300910268,"-1,711.36",AFFINITY TRUST,CARE ESTABLISHMENT,LD - Fenland Locality,LD - Fenland  - Care,Supported Living
Cambridgeshire County Council,23-May-19,51300901764,"-1,711.36",AFFINITY TRUST,CARE ESTABLISHMENT,LD - Fenland Locality,LD - Fenland  - Care,Supported Living
Cambridgeshire County Council,23-May-19,51300910251,"-1,711.36",AFFINITY TRUST,CARE ESTABLISHMENT,LD - Fenland Locality,LD - Fenland  - Care,Supported Living
Cambridgeshire County Council,23-May-19,51300931231,"-1,711.36",AFFINITY TRUST,CARE ESTABLISHMENT,LD - Fenland Locality,LD - Fenland  - Care,Supported Living
Cambridgeshire County Council,23-May-19,51300901778,"-1,711.36",AFFINITY TRUST,CARE ESTABLISHMENT,LD - Fenland Locality,LD - Fenland  - Care,Supported Living
Cambridgeshire County Council,23-May-19,51300910270,"-1,711.36",AFFINITY TRUST,CARE ESTABLISHMENT,LD - Fenland Locality,LD - Fenland  - Care,Supported Living
Cambridgeshire County Council,23-May-19,51300910253,"-1,711.36",AFFINITY TRUST,CARE ESTABLISHMENT,LD - Fenland Locality,LD - Fenland  - Care,Supported Living
Cambridgeshire County Council,23-May-19,51300931236,"-1,711.36",AFFINITY TRUST,CARE ESTABLISHMENT,LD - Fenland Locality,LD - Fenland  - Care,Supported Living
Cambridgeshire County Council,23-May-19,51300919598,"-1,711.36",AFFINITY TRUST,CARE ESTABLISHMENT,LD - Fenland Locality,LD - Fenland  - Care,Supported Living
Cambridgeshire County Council,23-May-19,51300919597,"-1,711.36",AFFINITY TRUST,CARE ESTABLISHMENT,LD - Fenland Locality,LD - Fenland  - Care,Supported Living
Cambridgeshire County Council,23-May-19,51300931215,"-1,711.36",AFFINITY TRUST,CARE ESTABLISHMENT,LD - Fenland Locality,LD - Fenland  - Care,Supported Living
Cambridgeshire County Council,23-May-19,51300931207,"-1,711.36",AFFINITY TRUST,CARE ESTABLISHMENT,LD - Fenland Locality,LD - Fenland  - Care,Supported Living
Cambridgeshire County Council,23-May-19,51300910255,"-1,711.36",AFFINITY TRUST,CARE ESTABLISHMENT,LD - Fenland Locality,LD - Fenland  - Care,Supported Living
Cambridgeshire County Council,23-May-19,51300919591,"-1,711.36",AFFINITY TRUST,CARE ESTABLISHMENT,LD - Fenland Locality,LD - Fenland  - Care,Supported Living
Cambridgeshire County Council,23-May-19,51300901776,"-1,711.36",AFFINITY TRUST,CARE ESTABLISHMENT,LD - Fenland Locality,LD - Fenland  - Care,Supported Living
Cambridgeshire County Council,23-May-19,51300901748,"-1,711.36",AFFINITY TRUST,CARE ESTABLISHMENT,LD - Fenland Locality,LD - Fenland  - Care,Supported Living
Cambridgeshire County Council,23-May-19,51300931225,"-1,711.36",AFFINITY TRUST,CARE ESTABLISHMENT,LD - Fenland Locality,LD - Fenland  - Care,Supported Living
Cambridgeshire County Council,23-May-19,51300919612,"-1,711.36",AFFINITY TRUST,CARE ESTABLISHMENT,LD - Fenland Locality,LD - Fenland  - Care,Supported Living
Cambridgeshire County Council,23-May-19,51300931245,"-1,711.36",AFFINITY TRUST,CARE ESTABLISHMENT,LD - Fenland Locality,LD - Fenland  - Care,Supported Living
Cambridgeshire County Council,23-May-19,51300901749,"-1,711.36",AFFINITY TRUST,CARE ESTABLISHMENT,LD - Fenland Locality,LD - Fenland  - Care,Supported Living
Cambridgeshire County Council,23-May-19,51300919590,"-1,711.36",AFFINITY TRUST,CARE ESTABLISHMENT,LD - Fenland Locality,LD - Fenland  - Care,Supported Living
Cambridgeshire County Council,23-May-19,51300901759,"-1,711.36",AFFINITY TRUST,CARE ESTABLISHMENT,LD - Fenland Locality,LD - Fenland  - Care,Supported Living
Cambridgeshire County Council,23-May-19,51300901745,"-1,711.36",AFFINITY TRUST,CARE ESTABLISHMENT,LD - Fenland Locality,LD - Fenland  - Care,Supported Living
Cambridgeshire County Council,23-May-19,51300931210,"-1,711.36",AFFINITY TRUST,CARE ESTABLISHMENT,LD - Fenland Locality,LD - Fenland  - Care,Supported Living
Cambridgeshire County Council,23-May-19,51300919595,"-1,711.36",AFFINITY TRUST,CARE ESTABLISHMENT,LD - Fenland Locality,LD - Fenland  - Care,Supported Living
Cambridgeshire County Council,23-May-19,51300919582,"-1,711.36",AFFINITY TRUST,CARE ESTABLISHMENT,LD - Fenland Locality,LD - Fenland  - Care,Supported Living
Cambridgeshire County Council,23-May-19,51300910256,"-1,711.36",AFFINITY TRUST,CARE ESTABLISHMENT,LD - Fenland Locality,LD - Fenland  - Care,Supported Living
Cambridgeshire County Council,23-May-19,51300910259,"-1,711.36",AFFINITY TRUST,CARE ESTABLISHMENT,LD - Fenland Locality,LD - Fenland  - Care,Supported Living
Cambridgeshire County Council,23-May-19,51300910274,"-1,711.36",AFFINITY TRUST,CARE ESTABLISHMENT,LD - Fenland Locality,LD - Fenland  - Care,Supported Living
Cambridgeshire County Council,23-May-19,51300919586,"-1,711.36",AFFINITY TRUST,CARE ESTABLISHMENT,LD - Fenland Locality,LD - Fenland  - Care,Supported Living
Cambridgeshire County Council,23-May-19,51300931221,"-1,711.36",AFFINITY TRUST,CARE ESTABLISHMENT,LD - Fenland Locality,LD - Fenland  - Care,Supported Living
Cambridgeshire County Council,23-May-19,51300910273,"-1,711.36",AFFINITY TRUST,CARE ESTABLISHMENT,LD - Fenland Locality,LD - Fenland  - Care,Supported Living
Cambridgeshire County Council,23-May-19,51300931239,"-1,711.36",AFFINITY TRUST,CARE ESTABLISHMENT,LD - Fenland Locality,LD - Fenland  - Care,Supported Living
Cambridgeshire County Council,23-May-19,51300910250,"-1,711.36",AFFINITY TRUST,CARE ESTABLISHMENT,LD - Fenland Locality,LD - Fenland  - Care,Supported Living
Cambridgeshire County Council,23-May-19,51300910269,"-1,711.36",AFFINITY TRUST,CARE ESTABLISHMENT,LD - Fenland Locality,LD - Fenland  - Care,Supported Living
Cambridgeshire County Council,23-May-19,51300919587,"-1,711.36",AFFINITY TRUST,CARE ESTABLISHMENT,LD - Fenland Locality,LD - Fenland  - Special Needs,Supported Living
Cambridgeshire County Council,23-May-19,51300901750,"-1,711.36",AFFINITY TRUST,CARE ESTABLISHMENT,LD - Fenland Locality,LD - Fenland  - Special Needs,Supported Living
Cambridgeshire County Council,23-May-19,51300901752,"-1,711.36",AFFINITY TRUST,CARE ESTABLISHMENT,LD - Fenland Locality,LD - Fenland  - Special Needs,Supported Living
Cambridgeshire County Council,23-May-19,51300919603,"-1,711.36",AFFINITY TRUST,CARE ESTABLISHMENT,LD - Fenland Locality,LD - Fenland  - Special Needs,Supported Living
Cambridgeshire County Council,23-May-19,51300919602,"-1,711.36",AFFINITY TRUST,CARE ESTABLISHMENT,LD - Fenland Locality,LD - Fenland  - Special Needs,Supported Living
Cambridgeshire County Council,23-May-19,51300901761,"-1,711.36",AFFINITY TRUST,CARE ESTABLISHMENT,LD - Fenland Locality,LD - Fenland  - Special Needs,Supported Living
Cambridgeshire County Council,23-May-19,51300919613,"-1,711.36",AFFINITY TRUST,CARE ESTABLISHMENT,LD - Fenland Locality,LD - Fenland  - Special Needs,Supported Living
Cambridgeshire County Council,23-May-19,51300931226,"-1,711.36",AFFINITY TRUST,CARE ESTABLISHMENT,LD - Fenland Locality,LD - Fenland  - Special Needs,Supported Living
Cambridgeshire County Council,23-May-19,51300931238,"-1,711.36",AFFINITY TRUST,CARE ESTABLISHMENT,LD - Fenland Locality,LD - Fenland  - Special Needs,Supported Living
Cambridgeshire County Council,23-May-19,51300910263,"-1,711.36",AFFINITY TRUST,CARE ESTABLISHMENT,LD - Fenland Locality,LD - Fenland  - Special Needs,Supported Living
Cambridgeshire County Council,23-May-19,51300901774,"-1,711.36",AFFINITY TRUST,CARE ESTABLISHMENT,LD - Fenland Locality,LD - Fenland  - Special Needs,Supported Living
Cambridgeshire County Council,23-May-19,51300910267,"-1,711.36",AFFINITY TRUST,CARE ESTABLISHMENT,LD - Fenland Locality,LD - Fenland  - Special Needs,Supported Living
Cambridgeshire County Council,23-May-19,51300919584,"-1,711.36",AFFINITY TRUST,CARE ESTABLISHMENT,LD - Fenland Locality,LD - Fenland  - Special Needs,Supported Living
Cambridgeshire County Council,23-May-19,51300910246,"-1,711.36",AFFINITY TRUST,CARE ESTABLISHMENT,LD - Fenland Locality,LD - Fenland  - Special Needs,Supported Living
Cambridgeshire County Council,23-May-19,51300901771,"-1,711.36",AFFINITY TRUST,CARE ESTABLISHMENT,LD - Fenland Locality,LD - Fenland  - Special Needs,Supported Living
Cambridgeshire County Council,23-May-19,51300901751,"-1,711.36",AFFINITY TRUST,CARE ESTABLISHMENT,LD - Fenland Locality,LD - Fenland  - Special Needs,Supported Living
Cambridgeshire County Council,23-May-19,51300901747,"-1,711.36",AFFINITY TRUST,CARE ESTABLISHMENT,LD - Fenland Locality,LD - Fenland  - Special Needs,Supported Living
Cambridgeshire County Council,23-May-19,51300931227,"-1,711.36",AFFINITY TRUST,CARE ESTABLISHMENT,LD - Fenland Locality,LD - Fenland  - Special Needs,Supported Living
Cambridgeshire County Council,23-May-19,51300931229,"-1,711.36",AFFINITY TRUST,CARE ESTABLISHMENT,LD - Fenland Locality,LD - Fenland  - Special Needs,Supported Living
Cambridgeshire County Council,23-May-19,51300901758,"-1,711.36",AFFINITY TRUST,CARE ESTABLISHMENT,LD - Fenland Locality,LD - Fenland  - Special Needs,Supported Living
Cambridgeshire County Council,23-May-19,51300919589,"-1,711.36",AFFINITY TRUST,CARE ESTABLISHMENT,LD - Fenland Locality,LD - Fenland  - Special Needs,Supported Living
Cambridgeshire County Council,23-May-19,51300931247,"-1,711.36",AFFINITY TRUST,CARE ESTABLISHMENT,LD - Fenland Locality,LD - Fenland  - Special Needs,Supported Living
Cambridgeshire County Council,23-May-19,51300910248,"-1,711.36",AFFINITY TRUST,CARE ESTABLISHMENT,LD - Fenland Locality,LD - Fenland  - Special Needs,Supported Living
Cambridgeshire County Council,23-May-19,51300919610,"-1,711.36",AFFINITY TRUST,CARE ESTABLISHMENT,LD - Fenland Locality,LD - Fenland  - Special Needs,Supported Living
Cambridgeshire County Council,23-May-19,51300901773,"-1,711.36",AFFINITY TRUST,CARE ESTABLISHMENT,LD - Fenland Locality,LD - Fenland  - Special Needs,Supported Living
Cambridgeshire County Council,21-May-19,51300922522,"-1,697.15",CHS GROUP,CARE ESTABLISHMENT,LAC Placements,Placements - supported accommodation,Agency Placements - In County
Cambridgeshire County Council,29-May-19,51300837285,"-1,696.80",PARK HOUSE (BEDFORD),CARE ESTABLISHMENT,Physical Disablity,Countywide PD Service - Care,Residential Care
Cambridgeshire County Council,03-May-19,51300810434,"-1,695.06",TARMAC TRADING LIMITED,COMPANY,Highways - 90m Mtce,Highways - 90m Mtce,Construction - External Professional Fees
Cambridgeshire County Council,09-May-19,51300822405,"-1,685.59",THE BRAMBLES (SOHAM) LTD,CARE ESTABLISHMENT,LD - East Locality,LD - East Cambs - Special Needs,Residential Care
Cambridgeshire County Council,09-May-19,51300822418,"-1,685.59",THE BRAMBLES (SOHAM) LTD,CARE ESTABLISHMENT,LD - East Locality,LD - East Cambs - Special Needs,Residential Care
Cambridgeshire County Council,09-May-19,51300822413,"-1,685.59",THE BRAMBLES (SOHAM) LTD,CARE ESTABLISHMENT,LD - East Locality,LD - East Cambs - Special Needs,Residential Care
Cambridgeshire County Council,09-May-19,51300822419,"-1,685.59",THE BRAMBLES (SOHAM) LTD,CARE ESTABLISHMENT,LD - East Locality,LD - East Cambs - Special Needs,Residential Care
Cambridgeshire County Council,09-May-19,51300822400,"-1,685.59",THE BRAMBLES (SOHAM) LTD,CARE ESTABLISHMENT,LD - East Locality,LD - East Cambs - Special Needs,Residential Care
Cambridgeshire County Council,09-May-19,51300822408,"-1,685.59",THE BRAMBLES (SOHAM) LTD,CARE ESTABLISHMENT,LD - East Locality,LD - East Cambs - Special Needs,Residential Care
Cambridgeshire County Council,09-May-19,51300822409,"-1,685.59",THE BRAMBLES (SOHAM) LTD,CARE ESTABLISHMENT,LD - East Locality,LD - East Cambs - Special Needs,Residential Care
Cambridgeshire County Council,09-May-19,51300822412,"-1,685.59",THE BRAMBLES (SOHAM) LTD,CARE ESTABLISHMENT,LD - East Locality,LD - East Cambs - Special Needs,Residential Care
Cambridgeshire County Council,29-May-19,51300841547,"-1,680.00",PARK HOUSE (BEDFORD),CARE ESTABLISHMENT,Physical Disablity,Countywide PD Service - Care,Residential Care
Cambridgeshire County Council,09-May-19,51300828472,"-1,674.55",CONQUEST CARE HOMES PETERBOROUGH,CARE ESTABLISHMENT,LD - Fenland Locality,LD - Fenland  - Special Needs,Residential Care
Cambridgeshire County Council,09-May-19,51300828476,"-1,674.55",CONQUEST CARE HOMES PETERBOROUGH,CARE ESTABLISHMENT,LD - Fenland Locality,LD - Fenland  - Special Needs,Residential Care
Cambridgeshire County Council,09-May-19,51300828462,"-1,674.55",CONQUEST CARE HOMES PETERBOROUGH,CARE ESTABLISHMENT,LD - Fenland Locality,LD - Fenland  - Special Needs,Residential Care
Cambridgeshire County Council,09-May-19,51300828471,"-1,674.55",CONQUEST CARE HOMES PETERBOROUGH,CARE ESTABLISHMENT,LD - Fenland Locality,LD - Fenland  - Special Needs,Residential Care
Cambridgeshire County Council,09-May-19,51300828475,"-1,674.55",CONQUEST CARE HOMES PETERBOROUGH,CARE ESTABLISHMENT,LD - Fenland Locality,LD - Fenland  - Special Needs,Residential Care
Cambridgeshire County Council,09-May-19,51300828463,"-1,674.55",CONQUEST CARE HOMES PETERBOROUGH,CARE ESTABLISHMENT,LD - Fenland Locality,LD - Fenland  - Special Needs,Residential Care
Cambridgeshire County Council,30-May-19,51300961332,"-1,673.96",THERA EAST ANGLIA,CARE ESTABLISHMENT,LD - East Locality,LD - East Cambs - Special Needs,Supported Living
Cambridgeshire County Council,30-May-19,51300961325,"-1,673.96",THERA EAST ANGLIA,CARE ESTABLISHMENT,LD - East Locality,LD - East Cambs - Special Needs,Supported Living
Cambridgeshire County Council,30-May-19,51300961349,"-1,673.96",THERA EAST ANGLIA,CARE ESTABLISHMENT,LD - East Locality,LD - East Cambs - Special Needs,Supported Living
Cambridgeshire County Council,30-May-19,51300961343,"-1,673.96",THERA EAST ANGLIA,CARE ESTABLISHMENT,LD - East Locality,LD - East Cambs - Special Needs,Supported Living
Cambridgeshire County Council,30-May-19,51300961345,"-1,673.96",THERA EAST ANGLIA,CARE ESTABLISHMENT,LD - East Locality,LD - East Cambs - Special Needs,Supported Living
Cambridgeshire County Council,30-May-19,51300961334,"-1,673.96",THERA EAST ANGLIA,CARE ESTABLISHMENT,LD - East Locality,LD - East Cambs - Special Needs,Supported Living
Cambridgeshire County Council,30-May-19,51300961341,"-1,673.96",THERA EAST ANGLIA,CARE ESTABLISHMENT,LD - East Locality,LD - East Cambs - Special Needs,Supported Living
Cambridgeshire County Council,09-May-19,51300827765,"-1,655.02",GLENHOLME HEALTHCARE LTD,CARE ESTABLISHMENT,AMH - Hunts & Fens,Hunts Mental Health Team,Residential Care
Cambridgeshire County Council,09-May-19,51300859145,"-1,623.94",GLENHOLME HEALTHCARE LTD,CARE ESTABLISHMENT,LD - Hunts Locality,LD - Huntigndonshire  - Special Needs,Supported Living
Cambridgeshire County Council,09-May-19,51300812509,"-1,620.22",GLENHOLME HEALTHCARE LTD,CARE ESTABLISHMENT,LD - Hunts Locality,LD - Huntigndonshire  - Special Needs,Residential Care
Cambridgeshire County Council,09-May-19,51300832751,"-1,620.22",GLENHOLME HEALTHCARE LTD,CARE ESTABLISHMENT,LD - Hunts Locality,LD - Huntigndonshire  - Special Needs,Residential Care
Cambridgeshire County Council,14-May-19,51300913916,"-1,617.30",WCL UK LTD,TRADE SUPPLIER,ICT Service,ICT Service Sales,Materials for resale
Cambridgeshire County Council,09-May-19,51300814436,"-1,614.15",LANSDOWNE CARE SERVICES,CARE ESTABLISHMENT,LD - Hunts Locality,LD - Huntigndonshire  - Special Needs,Residential Care
Cambridgeshire County Council,09-May-19,51300814229,"-1,614.15",LANSDOWNE CARE SERVICES,CARE ESTABLISHMENT,LD - Hunts Locality,LD - Huntigndonshire  - Special Needs,Residential Care
Cambridgeshire County Council,09-May-19,51300814345,"-1,614.15",LANSDOWNE CARE SERVICES,CARE ESTABLISHMENT,LD - Hunts Locality,LD - Huntigndonshire  - Special Needs,Residential Care
Cambridgeshire County Council,09-May-19,51300814232,"-1,614.15",LANSDOWNE CARE SERVICES,CARE ESTABLISHMENT,LD - Hunts Locality,LD - Huntigndonshire  - Special Needs,Residential Care
Cambridgeshire County Council,09-May-19,51300814394,"-1,614.15",LANSDOWNE CARE SERVICES,CARE ESTABLISHMENT,LD - Hunts Locality,LD - Huntigndonshire  - Special Needs,Residential Care
Cambridgeshire County Council,09-May-19,51300814230,"-1,614.15",LANSDOWNE CARE SERVICES,CARE ESTABLISHMENT,LD - Hunts Locality,LD - Huntigndonshire  - Special Needs,Residential Care
Cambridgeshire County Council,09-May-19,51300814435,"-1,614.15",LANSDOWNE CARE SERVICES,CARE ESTABLISHMENT,LD - Hunts Locality,LD - Huntigndonshire  - Special Needs,Residential Care
Cambridgeshire County Council,30-May-19,51300895097,"-1,609.42",CARTER JONAS LLP,TRADE SUPPLIER,Corporate Offices,Signet Court,Service Charges
Cambridgeshire County Council,29-May-19,51300822387,"-1,599.00",ST GEORGES,CARE ESTABLISHMENT,LD - Hunts Locality,LD - Huntigndonshire  - Special Needs,Residential Care
Cambridgeshire County Council,29-May-19,51300822385,"-1,599.00",ST GEORGES,CARE ESTABLISHMENT,LD - Hunts Locality,LD - Huntigndonshire  - Special Needs,Residential Care
Cambridgeshire County Council,29-May-19,51300822391,"-1,599.00",ST GEORGES,CARE ESTABLISHMENT,LD - Hunts Locality,LD - Huntigndonshire  - Special Needs,Residential Care
Cambridgeshire County Council,29-May-19,51300822388,"-1,599.00",ST GEORGES,CARE ESTABLISHMENT,LD - Hunts Locality,LD - Huntigndonshire  - Special Needs,Residential Care
Cambridgeshire County Council,29-May-19,51300822379,"-1,599.00",ST GEORGES,CARE ESTABLISHMENT,LD - Hunts Locality,LD - Huntigndonshire  - Special Needs,Residential Care
Cambridgeshire County Council,29-May-19,51300822396,"-1,599.00",ST GEORGES,CARE ESTABLISHMENT,LD - Hunts Locality,LD - Huntigndonshire  - Special Needs,Residential Care
Cambridgeshire County Council,09-May-19,51300832501,"-1,596.56",GLENHOLME HEALTHCARE LTD,CARE ESTABLISHMENT,LD - Hunts Locality,LD - Huntigndonshire  - Special Needs,Residential Care
Cambridgeshire County Council,30-May-19,51300966014,"-1,590.59",THERA EAST ANGLIA,CARE ESTABLISHMENT,LD - East Locality,LD - East Cambs - Special Needs,Supported Living
Cambridgeshire County Council,30-May-19,51300966024,"-1,590.59",THERA EAST ANGLIA,CARE ESTABLISHMENT,LD - East Locality,LD - East Cambs - Special Needs,Supported Living
Cambridgeshire County Council,30-May-19,51300966025,"-1,590.59",THERA EAST ANGLIA,CARE ESTABLISHMENT,LD - East Locality,LD - East Cambs - Special Needs,Supported Living
Cambridgeshire County Council,30-May-19,51300965958,"-1,590.59",THERA EAST ANGLIA,CARE ESTABLISHMENT,LD - East Locality,LD - East Cambs - Special Needs,Supported Living
Cambridgeshire County Council,30-May-19,51300965973,"-1,590.59",THERA EAST ANGLIA,CARE ESTABLISHMENT,LD - East Locality,LD - East Cambs - Special Needs,Supported Living
Cambridgeshire County Council,30-May-19,51300966033,"-1,590.59",THERA EAST ANGLIA,CARE ESTABLISHMENT,LD - East Locality,LD - East Cambs - Special Needs,Supported Living
Cambridgeshire County Council,30-May-19,51300965962,"-1,590.59",THERA EAST ANGLIA,CARE ESTABLISHMENT,LD - East Locality,LD - East Cambs - Special Needs,Supported Living
Cambridgeshire County Council,22-May-19,51300922217,"-1,565.50",NEXUS FOSTERING LTD,CARE ESTABLISHMENT,LAC Placements,Placements - independent fostering,Agency Placements - Out of  County
Cambridgeshire County Council,30-May-19,51300961569,"-1,560.53",HAPPY FUTURES SUPPORT SPECIALISTS LTD,CARE ESTABLISHMENT,LD - Hunts Locality,LD - Huntigndonshire  - Special Needs,Supported Living
Cambridgeshire County Council,30-May-19,51300961567,"-1,560.53",HAPPY FUTURES SUPPORT SPECIALISTS LTD,CARE ESTABLISHMENT,LD - Hunts Locality,LD - Huntigndonshire  - Special Needs,Supported Living
Cambridgeshire County Council,30-May-19,51300961578,"-1,560.53",HAPPY FUTURES SUPPORT SPECIALISTS LTD,CARE ESTABLISHMENT,LD - Hunts Locality,LD - Huntigndonshire  - Special Needs,Supported Living
Cambridgeshire County Council,30-May-19,51300961582,"-1,560.53",HAPPY FUTURES SUPPORT SPECIALISTS LTD,CARE ESTABLISHMENT,LD - Hunts Locality,LD - Huntigndonshire  - Special Needs,Supported Living
Cambridgeshire County Council,30-May-19,51300961568,"-1,560.53",HAPPY FUTURES SUPPORT SPECIALISTS LTD,CARE ESTABLISHMENT,LD - Hunts Locality,LD - Huntigndonshire  - Special Needs,Supported Living
Cambridgeshire County Council,30-May-19,51300961572,"-1,560.53",HAPPY FUTURES SUPPORT SPECIALISTS LTD,CARE ESTABLISHMENT,LD - Hunts Locality,LD - Huntigndonshire  - Special Needs,Supported Living
Cambridgeshire County Council,30-May-19,51300961580,"-1,560.53",HAPPY FUTURES SUPPORT SPECIALISTS LTD,CARE ESTABLISHMENT,LD - Hunts Locality,LD - Huntigndonshire  - Special Needs,Supported Living
Cambridgeshire County Council,30-May-19,51300961575,"-1,560.53",HAPPY FUTURES SUPPORT SPECIALISTS LTD,CARE ESTABLISHMENT,LD - Hunts Locality,LD - Huntigndonshire  - Special Needs,Supported Living
Cambridgeshire County Council,23-May-19,51300920716,"-1,546.50",THERA EAST ANGLIA,CARE ESTABLISHMENT,LD - South Locality,LD - South Cambs - Care,Supported Living
Cambridgeshire County Council,23-May-19,51300920715,"-1,546.50",THERA EAST ANGLIA,CARE ESTABLISHMENT,LD - South Locality,LD - South Cambs - Care,Supported Living
Cambridgeshire County Council,23-May-19,51300920719,"-1,546.50",THERA EAST ANGLIA,CARE ESTABLISHMENT,LD - South Locality,LD - South Cambs - Care,Supported Living
Cambridgeshire County Council,30-May-19,51300960819,"-1,542.49",THERA EAST ANGLIA,CARE ESTABLISHMENT,LD - East Locality,LD - East Cambs - Special Needs,Supported Living
Cambridgeshire County Council,30-May-19,51300962578,"-1,542.49",THERA EAST ANGLIA,CARE ESTABLISHMENT,LD - East Locality,LD - East Cambs - Special Needs,Supported Living
Cambridgeshire County Council,23-May-19,51300920690,"-1,542.33",THERA EAST ANGLIA,CARE ESTABLISHMENT,LD - East Locality,LD - East Cambs - Special Needs,Supported Living
Cambridgeshire County Council,30-May-19,51300961226,"-1,542.33",THERA EAST ANGLIA,CARE ESTABLISHMENT,LD - East Locality,LD - East Cambs - Special Needs,Supported Living
Cambridgeshire County Council,09-May-19,51300839346,"-1,540.95",PAULINE BURNETT HOUSE,CARE ESTABLISHMENT,LD - City Locality,LD - City - Special Needs,Residential Care
Cambridgeshire County Council,09-May-19,51300817335,"-1,525.86",CONQUEST CARE HOMES PETERBOROUGH,CARE ESTABLISHMENT,LD - Fenland Locality,LD - Fenland  - Special Needs,Residential Care
Cambridgeshire County Council,09-May-19,51300824571,"-1,525.50",THE BRAMBLES (SOHAM) LTD,CARE ESTABLISHMENT,LD - East Locality,LD - East Cambs - Special Needs,Residential Care
Cambridgeshire County Council,09-May-19,51300840991,"-1,524.51",CONQUEST CARE HOMES PETERBOROUGH,CARE ESTABLISHMENT,LD - Fenland Locality,LD - Fenland  - Care,Residential Care
Cambridgeshire County Council,29-May-19,51300822230,"-1,524.00",WESTWARD FARM,CARE ESTABLISHMENT,LD - Hunts Locality,LD - Huntigndonshire  - Special Needs,Residential Care
Cambridgeshire County Council,09-May-19,51300838456,"-1,522.58",GLENHOLME HEALTHCARE LTD,CARE ESTABLISHMENT,LD - Hunts Locality,LD - Huntigndonshire  - Special Needs,Residential Care
Cambridgeshire County Council,09-May-19,51300838440,"-1,522.58",GLENHOLME HEALTHCARE LTD,CARE ESTABLISHMENT,LD - Hunts Locality,LD - Huntigndonshire  - Special Needs,Residential Care
Cambridgeshire County Council,09-May-19,51300838209,"-1,522.58",GLENHOLME HEALTHCARE LTD,CARE ESTABLISHMENT,LD - Hunts Locality,LD - Huntigndonshire  - Special Needs,Residential Care
Cambridgeshire County Council,09-May-19,51300838305,"-1,522.58",GLENHOLME HEALTHCARE LTD,CARE ESTABLISHMENT,LD - Hunts Locality,LD - Huntigndonshire  - Special Needs,Residential Care
Cambridgeshire County Council,09-May-19,51300838390,"-1,522.58",GLENHOLME HEALTHCARE LTD,CARE ESTABLISHMENT,LD - Hunts Locality,LD - Huntigndonshire  - Special Needs,Residential Care
Cambridgeshire County Council,09-May-19,51300838247,"-1,522.58",GLENHOLME HEALTHCARE LTD,CARE ESTABLISHMENT,LD - Hunts Locality,LD - Huntigndonshire  - Special Needs,Residential Care
Cambridgeshire County Council,29-May-19,51300813121,"-1,496.57",PINETREES (TRACSCARE 2006 LTD),CARE ESTABLISHMENT,LD - Fenland Locality,LD - Fenland  - Special Needs,Residential Care
Cambridgeshire County Council,09-May-19,51300828901,"-1,476.51",CONQUEST CARE HOMES PETERBOROUGH,CARE ESTABLISHMENT,LD - Young Adults Team,LD - Young Adults - Special Needs,Residential Care
Cambridgeshire County Council,09-May-19,51300828900,"-1,476.51",CONQUEST CARE HOMES PETERBOROUGH,CARE ESTABLISHMENT,LD - Young Adults Team,LD - Young Adults - Special Needs,Residential Care
Cambridgeshire County Council,09-May-19,51300828895,"-1,476.51",CONQUEST CARE HOMES PETERBOROUGH,CARE ESTABLISHMENT,LD - Young Adults Team,LD - Young Adults - Special Needs,Residential Care
Cambridgeshire County Council,09-May-19,51300828893,"-1,476.51",CONQUEST CARE HOMES PETERBOROUGH,CARE ESTABLISHMENT,LD - Young Adults Team,LD - Young Adults - Special Needs,Residential Care
Cambridgeshire County Council,09-May-19,51300828896,"-1,476.51",CONQUEST CARE HOMES PETERBOROUGH,CARE ESTABLISHMENT,LD - Young Adults Team,LD - Young Adults - Special Needs,Residential Care
Cambridgeshire County Council,09-May-19,51300828902,"-1,476.51",CONQUEST CARE HOMES PETERBOROUGH,CARE ESTABLISHMENT,LD - Young Adults Team,LD - Young Adults - Special Needs,Residential Care
Cambridgeshire County Council,09-May-19,51300822353,"-1,471.71",CONQUEST CARE HOMES PETERBOROUGH,CARE ESTABLISHMENT,Physical Disablity,Countywide PD Service - Care,Residential Care
Cambridgeshire County Council,09-May-19,51300822322,"-1,471.71",CONQUEST CARE HOMES PETERBOROUGH,CARE ESTABLISHMENT,Physical Disablity,Countywide PD Service - Care,Residential Care
Cambridgeshire County Council,09-May-19,51300822354,"-1,471.71",CONQUEST CARE HOMES PETERBOROUGH,CARE ESTABLISHMENT,Physical Disablity,Countywide PD Service - Care,Residential Care
Cambridgeshire County Council,09-May-19,51300822355,"-1,471.71",CONQUEST CARE HOMES PETERBOROUGH,CARE ESTABLISHMENT,Physical Disablity,Countywide PD Service - Care,Residential Care
Cambridgeshire County Council,09-May-19,51300822328,"-1,471.71",CONQUEST CARE HOMES PETERBOROUGH,CARE ESTABLISHMENT,Physical Disablity,Countywide PD Service - Care,Residential Care
Cambridgeshire County Council,09-May-19,51300822343,"-1,471.71",CONQUEST CARE HOMES PETERBOROUGH,CARE ESTABLISHMENT,Physical Disablity,Countywide PD Service - Care,Residential Care
Cambridgeshire County Council,09-May-19,51300822360,"-1,471.71",CONQUEST CARE HOMES PETERBOROUGH,CARE ESTABLISHMENT,Physical Disablity,Countywide PD Service - Care,Residential Care
Cambridgeshire County Council,09-May-19,51300822361,"-1,471.71",CONQUEST CARE HOMES PETERBOROUGH,CARE ESTABLISHMENT,Physical Disablity,Countywide PD Service - Care,Residential Care
Cambridgeshire County Council,23-May-19,51300932219,"-1,454.45",THERA EAST ANGLIA,CARE ESTABLISHMENT,LD - East Locality,LD - East Cambs - Care,Supported Living
Cambridgeshire County Council,23-May-19,51300929617,"-1,454.45",THERA EAST ANGLIA,CARE ESTABLISHMENT,LD - East Locality,LD - East Cambs - Special Needs,Supported Living
Cambridgeshire County Council,23-May-19,51300929619,"-1,454.45",THERA EAST ANGLIA,CARE ESTABLISHMENT,LD - East Locality,LD - East Cambs - Special Needs,Supported Living
Cambridgeshire County Council,23-May-19,51300929622,"-1,454.45",THERA EAST ANGLIA,CARE ESTABLISHMENT,LD - East Locality,LD - East Cambs - Special Needs,Supported Living
Cambridgeshire County Council,23-May-19,51300932229,"-1,454.45",THERA EAST ANGLIA,CARE ESTABLISHMENT,LD - East Locality,LD - East Cambs - Care,Supported Living
Cambridgeshire County Council,23-May-19,51300932225,"-1,454.45",THERA EAST ANGLIA,CARE ESTABLISHMENT,LD - East Locality,LD - East Cambs - Care,Supported Living
Cambridgeshire County Council,28-May-19,51300953243,"-1,454.45",THERA EAST ANGLIA,CARE ESTABLISHMENT,LD - East Locality,LD - East Cambs - Special Needs,Supported Living
Cambridgeshire County Council,28-May-19,51300953233,"-1,454.45",THERA EAST ANGLIA,CARE ESTABLISHMENT,LD - East Locality,LD - East Cambs - Special Needs,Supported Living
Cambridgeshire County Council,28-May-19,51300945590,"-1,454.45",THERA EAST ANGLIA,CARE ESTABLISHMENT,LD - East Locality,LD - East Cambs - Special Needs,Supported Living
Cambridgeshire County Council,28-May-19,51300945586,"-1,454.45",THERA EAST ANGLIA,CARE ESTABLISHMENT,LD - East Locality,LD - East Cambs - Special Needs,Supported Living
Cambridgeshire County Council,28-May-19,51300953226,"-1,454.45",THERA EAST ANGLIA,CARE ESTABLISHMENT,LD - East Locality,LD - East Cambs - Special Needs,Supported Living
Cambridgeshire County Council,28-May-19,51300945601,"-1,454.45",THERA EAST ANGLIA,CARE ESTABLISHMENT,LD - East Locality,LD - East Cambs - Special Needs,Supported Living
Cambridgeshire County Council,09-May-19,51300822407,"-1,444.79",THE BRAMBLES (SOHAM) LTD,CARE ESTABLISHMENT,LD - East Locality,LD - East Cambs - Special Needs,Residential Care
Cambridgeshire County Council,09-May-19,51300828190,"-1,436.54",CONQUEST CARE HOMES PETERBOROUGH,CARE ESTABLISHMENT,LD - Hunts Locality,LD - Huntigndonshire  - Special Needs,Residential Care
Cambridgeshire County Council,09-May-19,51300828179,"-1,436.54",CONQUEST CARE HOMES PETERBOROUGH,CARE ESTABLISHMENT,LD - Hunts Locality,LD - Huntigndonshire  - Special Needs,Residential Care
Cambridgeshire County Council,09-May-19,51300828194,"-1,436.54",CONQUEST CARE HOMES PETERBOROUGH,CARE ESTABLISHMENT,LD - Hunts Locality,LD - Huntigndonshire  - Special Needs,Residential Care
Cambridgeshire County Council,09-May-19,51300828177,"-1,436.54",CONQUEST CARE HOMES PETERBOROUGH,CARE ESTABLISHMENT,LD - Hunts Locality,LD - Huntigndonshire  - Special Needs,Residential Care
Cambridgeshire County Council,09-May-19,51300828183,"-1,436.54",CONQUEST CARE HOMES PETERBOROUGH,CARE ESTABLISHMENT,LD - Hunts Locality,LD - Huntigndonshire  - Special Needs,Residential Care
Cambridgeshire County Council,09-May-19,51300828195,"-1,436.54",CONQUEST CARE HOMES PETERBOROUGH,CARE ESTABLISHMENT,LD - Hunts Locality,LD - Huntigndonshire  - Special Needs,Residential Care
Cambridgeshire County Council,09-May-19,51300828186,"-1,436.54",CONQUEST CARE HOMES PETERBOROUGH,CARE ESTABLISHMENT,LD - Hunts Locality,LD - Huntigndonshire  - Special Needs,Residential Care
Cambridgeshire County Council,09-May-19,51300828184,"-1,436.54",CONQUEST CARE HOMES PETERBOROUGH,CARE ESTABLISHMENT,LD - Hunts Locality,LD - Huntigndonshire  - Special Needs,Residential Care
Cambridgeshire County Council,09-May-19,51300828466,"-1,435.33",CONQUEST CARE HOMES PETERBOROUGH,CARE ESTABLISHMENT,LD - Fenland Locality,LD - Fenland  - Special Needs,Residential Care
Cambridgeshire County Council,30-May-19,51300961351,"-1,434.82",THERA EAST ANGLIA,CARE ESTABLISHMENT,LD - East Locality,LD - East Cambs - Special Needs,Supported Living
Cambridgeshire County Council,09-May-19,51300839066,"-1,429.64",HEREWARD CARE SERVICES LIMITED,CARE ESTABLISHMENT,LD - Fenland Locality,LD - Fenland  - Special Needs,Residential Care
Cambridgeshire County Council,09-May-19,51300839095,"-1,429.64",HEREWARD CARE SERVICES LIMITED,CARE ESTABLISHMENT,LD - Fenland Locality,LD - Fenland  - Special Needs,Residential Care
Cambridgeshire County Council,09-May-19,51300839052,"-1,429.64",HEREWARD CARE SERVICES LIMITED,CARE ESTABLISHMENT,LD - Fenland Locality,LD - Fenland  - Special Needs,Residential Care
Cambridgeshire County Council,09-May-19,51300839101,"-1,429.64",HEREWARD CARE SERVICES LIMITED,CARE ESTABLISHMENT,LD - Fenland Locality,LD - Fenland  - Special Needs,Residential Care
Cambridgeshire County Council,09-May-19,51300839084,"-1,429.64",HEREWARD CARE SERVICES LIMITED,CARE ESTABLISHMENT,LD - Fenland Locality,LD - Fenland  - Special Needs,Residential Care
Cambridgeshire County Council,09-May-19,51300839047,"-1,429.64",HEREWARD CARE SERVICES LIMITED,CARE ESTABLISHMENT,LD - Fenland Locality,LD - Fenland  - Special Needs,Residential Care
Cambridgeshire County Council,09-May-19,51300839074,"-1,429.64",HEREWARD CARE SERVICES LIMITED,CARE ESTABLISHMENT,LD - Fenland Locality,LD - Fenland  - Special Needs,Residential Care
Cambridgeshire County Council,09-May-19,51300839072,"-1,429.64",HEREWARD CARE SERVICES LIMITED,CARE ESTABLISHMENT,LD - Fenland Locality,LD - Fenland  - Special Needs,Residential Care
Cambridgeshire County Council,09-May-19,51300842141,"-1,414.34",PAULINE BURNETT HOUSE,CARE ESTABLISHMENT,LD - City Locality,LD - City - Special Needs,Residential Care
Cambridgeshire County Council,09-May-19,51300842131,"-1,414.34",PAULINE BURNETT HOUSE,CARE ESTABLISHMENT,LD - City Locality,LD - City - Special Needs,Residential Care
Cambridgeshire County Council,09-May-19,51300842128,"-1,414.34",PAULINE BURNETT HOUSE,CARE ESTABLISHMENT,LD - City Locality,LD - City - Special Needs,Residential Care
Cambridgeshire County Council,09-May-19,51300842126,"-1,414.34",PAULINE BURNETT HOUSE,CARE ESTABLISHMENT,LD - City Locality,LD - City - Special Needs,Residential Care
Cambridgeshire County Council,09-May-19,51300842134,"-1,414.34",PAULINE BURNETT HOUSE,CARE ESTABLISHMENT,LD - City Locality,LD - City - Special Needs,Residential Care
Cambridgeshire County Council,09-May-19,51300842139,"-1,414.34",PAULINE BURNETT HOUSE,CARE ESTABLISHMENT,LD - City Locality,LD - City - Special Needs,Residential Care
Cambridgeshire County Council,09-May-19,51300842137,"-1,414.34",PAULINE BURNETT HOUSE,CARE ESTABLISHMENT,LD - City Locality,LD - City - Special Needs,Residential Care
Cambridgeshire County Council,09-May-19,51300842140,"-1,414.34",PAULINE BURNETT HOUSE,CARE ESTABLISHMENT,LD - City Locality,LD - City - Special Needs,Residential Care
Cambridgeshire County Council,09-May-19,51300817895,"-1,401.91",WOODLANDS CARE CENTRE,CARE ESTABLISHMENT,OPMH - City & South,Older People Mental Health City & South,Nursing Care
Cambridgeshire County Council,09-May-19,51300817860,"-1,401.91",WOODLANDS CARE CENTRE,CARE ESTABLISHMENT,OPMH - City & South,Older People Mental Health City & South,Nursing Care
Cambridgeshire County Council,09-May-19,51300817887,"-1,401.91",WOODLANDS CARE CENTRE,CARE ESTABLISHMENT,OPMH - City & South,Older People Mental Health City & South,Nursing Care
Cambridgeshire County Council,09-May-19,51300817868,"-1,401.91",WOODLANDS CARE CENTRE,CARE ESTABLISHMENT,OPMH - City & South,Older People Mental Health City & South,Nursing Care
Cambridgeshire County Council,09-May-19,51300817880,"-1,401.91",WOODLANDS CARE CENTRE,CARE ESTABLISHMENT,OPMH - City & South,Older People Mental Health City & South,Nursing Care
Cambridgeshire County Council,09-May-19,51300817861,"-1,401.91",WOODLANDS CARE CENTRE,CARE ESTABLISHMENT,OPMH - City & South,Older People Mental Health City & South,Nursing Care
Cambridgeshire County Council,09-May-19,51300817873,"-1,401.91",WOODLANDS CARE CENTRE,CARE ESTABLISHMENT,OPMH - City & South,Older People Mental Health City & South,Nursing Care
Cambridgeshire County Council,23-May-19,51300919202,"-1,396.72",THERA EAST ANGLIA,CARE ESTABLISHMENT,LD - East Locality,LD - East Cambs - Special Needs,Supported Living
Cambridgeshire County Council,23-May-19,51300921704,"-1,396.72",THERA EAST ANGLIA,CARE ESTABLISHMENT,LD - East Locality,LD - East Cambs - Special Needs,Supported Living
Cambridgeshire County Council,23-May-19,51300919195,"-1,396.72",THERA EAST ANGLIA,CARE ESTABLISHMENT,LD - East Locality,LD - East Cambs - Special Needs,Supported Living
Cambridgeshire County Council,23-May-19,51300921709,"-1,396.72",THERA EAST ANGLIA,CARE ESTABLISHMENT,LD - East Locality,LD - East Cambs - Special Needs,Supported Living
Cambridgeshire County Council,23-May-19,51300919204,"-1,396.72",THERA EAST ANGLIA,CARE ESTABLISHMENT,LD - East Locality,LD - East Cambs - Special Needs,Supported Living
Cambridgeshire County Council,23-May-19,51300921707,"-1,396.72",THERA EAST ANGLIA,CARE ESTABLISHMENT,LD - East Locality,LD - East Cambs - Special Needs,Supported Living
Cambridgeshire County Council,09-May-19,51300814265,"-1,383.56",LANSDOWNE CARE SERVICES,CARE ESTABLISHMENT,LD - Hunts Locality,LD - Huntigndonshire  - Special Needs,Residential Care
Cambridgeshire County Council,29-May-19,51300822399,"-1,370.57",ST GEORGES,CARE ESTABLISHMENT,LD - Hunts Locality,LD - Huntigndonshire  - Special Needs,Residential Care
Cambridgeshire County Council,30-May-19,51300965996,"-1,363.36",THERA EAST ANGLIA,CARE ESTABLISHMENT,LD - East Locality,LD - East Cambs - Special Needs,Supported Living
Cambridgeshire County Council,28-May-19,51300943139,"-1,350.47",THERA EAST ANGLIA,CARE ESTABLISHMENT,LD - East Locality,LD - East Cambs - Special Needs,Supported Living
Cambridgeshire County Council,28-May-19,51300943133,"-1,350.47",THERA EAST ANGLIA,CARE ESTABLISHMENT,LD - East Locality,LD - East Cambs - Special Needs,Supported Living
Cambridgeshire County Council,28-May-19,51300943141,"-1,350.47",THERA EAST ANGLIA,CARE ESTABLISHMENT,LD - East Locality,LD - East Cambs - Special Needs,Supported Living
Cambridgeshire County Council,28-May-19,51300954506,"-1,349.72",THERA EAST ANGLIA,CARE ESTABLISHMENT,LD - East Locality,LD - East Cambs - Special Needs,Supported Living
Cambridgeshire County Council,28-May-19,51300954515,"-1,349.72",THERA EAST ANGLIA,CARE ESTABLISHMENT,LD - East Locality,LD - East Cambs - Special Needs,Supported Living
Cambridgeshire County Council,28-May-19,51300954516,"-1,349.72",THERA EAST ANGLIA,CARE ESTABLISHMENT,LD - East Locality,LD - East Cambs - Special Needs,Supported Living
Cambridgeshire County Council,23-May-19,51300920727,"-1,325.57",THERA EAST ANGLIA,CARE ESTABLISHMENT,LD - South Locality,LD - South Cambs - Care,Supported Living
Cambridgeshire County Council,09-May-19,51300899276,"-1,317.11",ALDERTON HOUSE,CARE ESTABLISHMENT,LD - East Locality,LD - East Cambs - Special Needs,Residential Care
Cambridgeshire County Council,09-May-19,51300908897,"-1,317.11",ALDERTON HOUSE,CARE ESTABLISHMENT,LD - East Locality,LD - East Cambs - Special Needs,Residential Care
Cambridgeshire County Council,09-May-19,51300899267,"-1,317.11",ALDERTON HOUSE,CARE ESTABLISHMENT,LD - East Locality,LD - East Cambs - Special Needs,Residential Care
Cambridgeshire County Council,09-May-19,51300899286,"-1,317.11",ALDERTON HOUSE,CARE ESTABLISHMENT,LD - East Locality,LD - East Cambs - Special Needs,Residential Care
Cambridgeshire County Council,09-May-19,51300899283,"-1,317.11",ALDERTON HOUSE,CARE ESTABLISHMENT,LD - East Locality,LD - East Cambs - Special Needs,Residential Care
Cambridgeshire County Council,09-May-19,51300908832,"-1,317.11",ALDERTON HOUSE,CARE ESTABLISHMENT,LD - East Locality,LD - East Cambs - Special Needs,Residential Care
Cambridgeshire County Council,09-May-19,51300899425,"-1,317.11",ALDERTON HOUSE,CARE ESTABLISHMENT,LD - East Locality,LD - East Cambs - Special Needs,Residential Care
Cambridgeshire County Council,09-May-19,51300899302,"-1,317.11",ALDERTON HOUSE,CARE ESTABLISHMENT,LD - East Locality,LD - East Cambs - Special Needs,Residential Care
Cambridgeshire County Council,09-May-19,51300899367,"-1,317.11",ALDERTON HOUSE,CARE ESTABLISHMENT,LD - East Locality,LD - East Cambs - Special Needs,Residential Care
Cambridgeshire County Council,09-May-19,51300899297,"-1,317.11",ALDERTON HOUSE,CARE ESTABLISHMENT,LD - East Locality,LD - East Cambs - Special Needs,Residential Care
Cambridgeshire County Council,09-May-19,51300908805,"-1,317.11",ALDERTON HOUSE,CARE ESTABLISHMENT,LD - East Locality,LD - East Cambs - Special Needs,Residential Care
Cambridgeshire County Council,09-May-19,51300899346,"-1,317.11",ALDERTON HOUSE,CARE ESTABLISHMENT,LD - East Locality,LD - East Cambs - Special Needs,Residential Care
Cambridgeshire County Council,09-May-19,51300908815,"-1,317.11",ALDERTON HOUSE,CARE ESTABLISHMENT,LD - East Locality,LD - East Cambs - Special Needs,Residential Care
Cambridgeshire County Council,09-May-19,51300899422,"-1,317.11",ALDERTON HOUSE,CARE ESTABLISHMENT,LD - East Locality,LD - East Cambs - Special Needs,Residential Care
Cambridgeshire County Council,09-May-19,51300899361,"-1,317.11",ALDERTON HOUSE,CARE ESTABLISHMENT,LD - East Locality,LD - East Cambs - Special Needs,Residential Care
Cambridgeshire County Council,09-May-19,51300908835,"-1,317.11",ALDERTON HOUSE,CARE ESTABLISHMENT,LD - East Locality,LD - East Cambs - Special Needs,Residential Care
Cambridgeshire County Council,09-May-19,51300908784,"-1,317.11",ALDERTON HOUSE,CARE ESTABLISHMENT,LD - East Locality,LD - East Cambs - Special Needs,Residential Care
Cambridgeshire County Council,09-May-19,51300908830,"-1,317.11",ALDERTON HOUSE,CARE ESTABLISHMENT,LD - East Locality,LD - East Cambs - Special Needs,Residential Care
Cambridgeshire County Council,09-May-19,51300899427,"-1,317.11",ALDERTON HOUSE,CARE ESTABLISHMENT,LD - East Locality,LD - East Cambs - Special Needs,Residential Care
Cambridgeshire County Council,09-May-19,51300899383,"-1,317.11",ALDERTON HOUSE,CARE ESTABLISHMENT,LD - East Locality,LD - East Cambs - Special Needs,Residential Care
Cambridgeshire County Council,09-May-19,51300899277,"-1,317.11",ALDERTON HOUSE,CARE ESTABLISHMENT,LD - East Locality,LD - East Cambs - Special Needs,Residential Care
Cambridgeshire County Council,09-May-19,51300908790,"-1,317.11",ALDERTON HOUSE,CARE ESTABLISHMENT,LD - East Locality,LD - East Cambs - Special Needs,Residential Care
Cambridgeshire County Council,09-May-19,51300908893,"-1,317.11",ALDERTON HOUSE,CARE ESTABLISHMENT,LD - East Locality,LD - East Cambs - Special Needs,Residential Care
Cambridgeshire County Council,09-May-19,51300908821,"-1,317.11",ALDERTON HOUSE,CARE ESTABLISHMENT,LD - East Locality,LD - East Cambs - Special Needs,Residential Care
Cambridgeshire County Council,09-May-19,51300899335,"-1,317.11",ALDERTON HOUSE,CARE ESTABLISHMENT,LD - East Locality,LD - East Cambs - Special Needs,Residential Care
Cambridgeshire County Council,09-May-19,51300908898,"-1,317.11",ALDERTON HOUSE,CARE ESTABLISHMENT,LD - East Locality,LD - East Cambs - Special Needs,Residential Care
Cambridgeshire County Council,09-May-19,51300899316,"-1,317.11",ALDERTON HOUSE,CARE ESTABLISHMENT,LD - East Locality,LD - East Cambs - Special Needs,Residential Care
Cambridgeshire County Council,09-May-19,51300908802,"-1,317.11",ALDERTON HOUSE,CARE ESTABLISHMENT,LD - East Locality,LD - East Cambs - Special Needs,Residential Care
Cambridgeshire County Council,09-May-19,51300899323,"-1,317.11",ALDERTON HOUSE,CARE ESTABLISHMENT,LD - East Locality,LD - East Cambs - Special Needs,Residential Care
Cambridgeshire County Council,09-May-19,51300899391,"-1,317.11",ALDERTON HOUSE,CARE ESTABLISHMENT,LD - East Locality,LD - East Cambs - Special Needs,Residential Care
Cambridgeshire County Council,09-May-19,51300908859,"-1,317.11",ALDERTON HOUSE,CARE ESTABLISHMENT,LD - East Locality,LD - East Cambs - Special Needs,Residential Care
Cambridgeshire County Council,09-May-19,51300899305,"-1,317.11",ALDERTON HOUSE,CARE ESTABLISHMENT,LD - East Locality,LD - East Cambs - Special Needs,Residential Care
Cambridgeshire County Council,09-May-19,51300899402,"-1,317.11",ALDERTON HOUSE,CARE ESTABLISHMENT,LD - East Locality,LD - East Cambs - Special Needs,Residential Care
Cambridgeshire County Council,09-May-19,51300899396,"-1,317.11",ALDERTON HOUSE,CARE ESTABLISHMENT,LD - East Locality,LD - East Cambs - Special Needs,Residential Care
Cambridgeshire County Council,09-May-19,51300899355,"-1,317.11",ALDERTON HOUSE,CARE ESTABLISHMENT,LD - East Locality,LD - East Cambs - Special Needs,Residential Care
Cambridgeshire County Council,09-May-19,51300899381,"-1,317.11",ALDERTON HOUSE,CARE ESTABLISHMENT,LD - East Locality,LD - East Cambs - Special Needs,Residential Care
Cambridgeshire County Council,09-May-19,51300899311,"-1,317.11",ALDERTON HOUSE,CARE ESTABLISHMENT,LD - East Locality,LD - East Cambs - Special Needs,Residential Care
Cambridgeshire County Council,09-May-19,51300899387,"-1,317.11",ALDERTON HOUSE,CARE ESTABLISHMENT,LD - East Locality,LD - East Cambs - Special Needs,Residential Care
Cambridgeshire County Council,09-May-19,51300899377,"-1,317.11",ALDERTON HOUSE,CARE ESTABLISHMENT,LD - East Locality,LD - East Cambs - Special Needs,Residential Care
Cambridgeshire County Council,09-May-19,51300899261,"-1,317.11",ALDERTON HOUSE,CARE ESTABLISHMENT,LD - East Locality,LD - East Cambs - Special Needs,Residential Care
Cambridgeshire County Council,09-May-19,51300899354,"-1,317.11",ALDERTON HOUSE,CARE ESTABLISHMENT,LD - East Locality,LD - East Cambs - Special Needs,Residential Care
Cambridgeshire County Council,09-May-19,51300908848,"-1,317.11",ALDERTON HOUSE,CARE ESTABLISHMENT,LD - East Locality,LD - East Cambs - Special Needs,Residential Care
Cambridgeshire County Council,09-May-19,51300908834,"-1,317.11",ALDERTON HOUSE,CARE ESTABLISHMENT,LD - East Locality,LD - East Cambs - Special Needs,Residential Care
Cambridgeshire County Council,09-May-19,51300899344,"-1,317.11",ALDERTON HOUSE,CARE ESTABLISHMENT,LD - East Locality,LD - East Cambs - Special Needs,Residential Care
Cambridgeshire County Council,09-May-19,51300899424,"-1,317.11",ALDERTON HOUSE,CARE ESTABLISHMENT,LD - East Locality,LD - East Cambs - Special Needs,Residential Care
Cambridgeshire County Council,09-May-19,51300908858,"-1,317.11",ALDERTON HOUSE,CARE ESTABLISHMENT,LD - East Locality,LD - East Cambs - Special Needs,Residential Care
Cambridgeshire County Council,09-May-19,51300908823,"-1,317.11",ALDERTON HOUSE,CARE ESTABLISHMENT,LD - East Locality,LD - East Cambs - Special Needs,Residential Care
Cambridgeshire County Council,09-May-19,51300899296,"-1,317.11",ALDERTON HOUSE,CARE ESTABLISHMENT,LD - East Locality,LD - East Cambs - Special Needs,Residential Care
Cambridgeshire County Council,09-May-19,51300908789,"-1,317.11",ALDERTON HOUSE,CARE ESTABLISHMENT,LD - East Locality,LD - East Cambs - Special Needs,Residential Care
Cambridgeshire County Council,09-May-19,51300899317,"-1,317.11",ALDERTON HOUSE,CARE ESTABLISHMENT,LD - East Locality,LD - East Cambs - Special Needs,Residential Care
Cambridgeshire County Council,09-May-19,51300908899,"-1,317.11",ALDERTON HOUSE,CARE ESTABLISHMENT,LD - East Locality,LD - East Cambs - Special Needs,Residential Care
Cambridgeshire County Council,09-May-19,51300899347,"-1,317.11",ALDERTON HOUSE,CARE ESTABLISHMENT,LD - East Locality,LD - East Cambs - Care,Residential Care
Cambridgeshire County Council,09-May-19,51300908837,"-1,317.11",ALDERTON HOUSE,CARE ESTABLISHMENT,LD - East Locality,LD - East Cambs - Care,Residential Care
Cambridgeshire County Council,09-May-19,51300908807,"-1,317.11",ALDERTON HOUSE,CARE ESTABLISHMENT,LD - East Locality,LD - East Cambs - Care,Residential Care
Cambridgeshire County Council,09-May-19,51300899426,"-1,317.11",ALDERTON HOUSE,CARE ESTABLISHMENT,LD - East Locality,LD - East Cambs - Care,Residential Care
Cambridgeshire County Council,09-May-19,51300899287,"-1,317.11",ALDERTON HOUSE,CARE ESTABLISHMENT,LD - East Locality,LD - East Cambs - Care,Residential Care
Cambridgeshire County Council,09-May-19,51300908827,"-1,317.11",ALDERTON HOUSE,CARE ESTABLISHMENT,LD - East Locality,LD - East Cambs - Care,Residential Care
Cambridgeshire County Council,09-May-19,51300908863,"-1,317.11",ALDERTON HOUSE,CARE ESTABLISHMENT,LD - East Locality,LD - East Cambs - Care,Residential Care
Cambridgeshire County Council,09-May-19,51300899285,"-1,317.11",ALDERTON HOUSE,CARE ESTABLISHMENT,LD - East Locality,LD - East Cambs - Care,Residential Care
Cambridgeshire County Council,09-May-19,51300908801,"-1,317.11",ALDERTON HOUSE,CARE ESTABLISHMENT,LD - East Locality,LD - East Cambs - Care,Residential Care
Cambridgeshire County Council,09-May-19,51300908902,"-1,317.11",ALDERTON HOUSE,CARE ESTABLISHMENT,LD - East Locality,LD - East Cambs - Care,Residential Care
Cambridgeshire County Council,09-May-19,51300899394,"-1,317.11",ALDERTON HOUSE,CARE ESTABLISHMENT,LD - East Locality,LD - East Cambs - Care,Residential Care
Cambridgeshire County Council,09-May-19,51300908901,"-1,317.11",ALDERTON HOUSE,CARE ESTABLISHMENT,LD - East Locality,LD - East Cambs - Care,Residential Care
Cambridgeshire County Council,09-May-19,51300899359,"-1,317.11",ALDERTON HOUSE,CARE ESTABLISHMENT,LD - East Locality,LD - East Cambs - Care,Residential Care
Cambridgeshire County Council,09-May-19,51300908855,"-1,317.11",ALDERTON HOUSE,CARE ESTABLISHMENT,LD - East Locality,LD - East Cambs - Care,Residential Care
Cambridgeshire County Council,09-May-19,51300908806,"-1,317.11",ALDERTON HOUSE,CARE ESTABLISHMENT,LD - East Locality,LD - East Cambs - Care,Residential Care
Cambridgeshire County Council,09-May-19,51300908808,"-1,317.11",ALDERTON HOUSE,CARE ESTABLISHMENT,LD - East Locality,LD - East Cambs - Care,Residential Care
Cambridgeshire County Council,09-May-19,51300908888,"-1,317.11",ALDERTON HOUSE,CARE ESTABLISHMENT,LD - East Locality,LD - East Cambs - Care,Residential Care
Cambridgeshire County Council,09-May-19,51300908836,"-1,317.11",ALDERTON HOUSE,CARE ESTABLISHMENT,LD - East Locality,LD - East Cambs - Care,Residential Care
Cambridgeshire County Council,09-May-19,51300899295,"-1,317.11",ALDERTON HOUSE,CARE ESTABLISHMENT,LD - East Locality,LD - East Cambs - Care,Residential Care
Cambridgeshire County Council,09-May-19,51300908794,"-1,317.11",ALDERTON HOUSE,CARE ESTABLISHMENT,LD - East Locality,LD - East Cambs - Care,Residential Care
Cambridgeshire County Council,09-May-19,51300899374,"-1,317.11",ALDERTON HOUSE,CARE ESTABLISHMENT,LD - East Locality,LD - East Cambs - Care,Residential Care
Cambridgeshire County Council,09-May-19,51300899393,"-1,317.11",ALDERTON HOUSE,CARE ESTABLISHMENT,LD - East Locality,LD - East Cambs - Care,Residential Care
Cambridgeshire County Council,09-May-19,51300908891,"-1,317.11",ALDERTON HOUSE,CARE ESTABLISHMENT,LD - East Locality,LD - East Cambs - Care,Residential Care
Cambridgeshire County Council,09-May-19,51300908849,"-1,317.11",ALDERTON HOUSE,CARE ESTABLISHMENT,LD - East Locality,LD - East Cambs - Care,Residential Care
Cambridgeshire County Council,09-May-19,51300899419,"-1,317.11",ALDERTON HOUSE,CARE ESTABLISHMENT,LD - East Locality,LD - East Cambs - Care,Residential Care
Cambridgeshire County Council,09-May-19,51300899310,"-1,317.11",ALDERTON HOUSE,CARE ESTABLISHMENT,LD - East Locality,LD - East Cambs - Care,Residential Care
Cambridgeshire County Council,09-May-19,51300899412,"-1,317.11",ALDERTON HOUSE,CARE ESTABLISHMENT,LD - East Locality,LD - East Cambs - Care,Residential Care
Cambridgeshire County Council,09-May-19,51300908900,"-1,317.11",ALDERTON HOUSE,CARE ESTABLISHMENT,LD - East Locality,LD - East Cambs - Care,Residential Care
Cambridgeshire County Council,09-May-19,51300908813,"-1,317.11",ALDERTON HOUSE,CARE ESTABLISHMENT,LD - East Locality,LD - East Cambs - Care,Residential Care
Cambridgeshire County Council,09-May-19,51300908829,"-1,317.11",ALDERTON HOUSE,CARE ESTABLISHMENT,LD - East Locality,LD - East Cambs - Care,Residential Care
Cambridgeshire County Council,09-May-19,51300899428,"-1,317.11",ALDERTON HOUSE,CARE ESTABLISHMENT,LD - East Locality,LD - East Cambs - Care,Residential Care
Cambridgeshire County Council,09-May-19,51300908879,"-1,317.11",ALDERTON HOUSE,CARE ESTABLISHMENT,LD - East Locality,LD - East Cambs - Care,Residential Care
Cambridgeshire County Council,09-May-19,51300908860,"-1,317.11",ALDERTON HOUSE,CARE ESTABLISHMENT,LD - East Locality,LD - East Cambs - Care,Residential Care
Cambridgeshire County Council,09-May-19,51300908826,"-1,317.11",ALDERTON HOUSE,CARE ESTABLISHMENT,LD - East Locality,LD - East Cambs - Care,Residential Care
Cambridgeshire County Council,09-May-19,51300908791,"-1,317.11",ALDERTON HOUSE,CARE ESTABLISHMENT,LD - East Locality,LD - East Cambs - Care,Residential Care
Cambridgeshire County Council,09-May-19,51300908824,"-1,317.11",ALDERTON HOUSE,CARE ESTABLISHMENT,LD - East Locality,LD - East Cambs - Care,Residential Care
Cambridgeshire County Council,09-May-19,51300899298,"-1,317.11",ALDERTON HOUSE,CARE ESTABLISHMENT,LD - East Locality,LD - East Cambs - Care,Residential Care
Cambridgeshire County Council,09-May-19,51300899258,"-1,317.11",ALDERTON HOUSE,CARE ESTABLISHMENT,LD - East Locality,LD - East Cambs - Care,Residential Care
Cambridgeshire County Council,09-May-19,51300908854,"-1,317.11",ALDERTON HOUSE,CARE ESTABLISHMENT,LD - East Locality,LD - East Cambs - Care,Residential Care
Cambridgeshire County Council,09-May-19,51300908862,"-1,317.11",ALDERTON HOUSE,CARE ESTABLISHMENT,LD - East Locality,LD - East Cambs - Care,Residential Care
Cambridgeshire County Council,09-May-19,51300908841,"-1,317.11",ALDERTON HOUSE,CARE ESTABLISHMENT,LD - East Locality,LD - East Cambs - Care,Residential Care
Cambridgeshire County Council,09-May-19,51300908820,"-1,317.11",ALDERTON HOUSE,CARE ESTABLISHMENT,LD - East Locality,LD - East Cambs - Care,Residential Care
Cambridgeshire County Council,09-May-19,51300899304,"-1,317.11",ALDERTON HOUSE,CARE ESTABLISHMENT,LD - East Locality,LD - East Cambs - Care,Residential Care
Cambridgeshire County Council,09-May-19,51300899274,"-1,317.11",ALDERTON HOUSE,CARE ESTABLISHMENT,LD - East Locality,LD - East Cambs - Care,Residential Care
Cambridgeshire County Council,09-May-19,51300899369,"-1,317.11",ALDERTON HOUSE,CARE ESTABLISHMENT,LD - East Locality,LD - East Cambs - Care,Residential Care
Cambridgeshire County Council,09-May-19,51300908797,"-1,317.11",ALDERTON HOUSE,CARE ESTABLISHMENT,LD - East Locality,LD - East Cambs - Care,Residential Care
Cambridgeshire County Council,09-May-19,51300908850,"-1,317.11",ALDERTON HOUSE,CARE ESTABLISHMENT,LD - East Locality,LD - East Cambs - Care,Residential Care
Cambridgeshire County Council,09-May-19,51300899380,"-1,317.11",ALDERTON HOUSE,CARE ESTABLISHMENT,LD - East Locality,LD - East Cambs - Care,Residential Care
Cambridgeshire County Council,09-May-19,51300899404,"-1,317.11",ALDERTON HOUSE,CARE ESTABLISHMENT,LD - East Locality,LD - East Cambs - Care,Residential Care
Cambridgeshire County Council,09-May-19,51300908873,"-1,317.11",ALDERTON HOUSE,CARE ESTABLISHMENT,LD - East Locality,LD - East Cambs - Care,Residential Care
Cambridgeshire County Council,09-May-19,51300908812,"-1,317.11",ALDERTON HOUSE,CARE ESTABLISHMENT,LD - East Locality,LD - East Cambs - Care,Residential Care
Cambridgeshire County Council,09-May-19,51300908798,"-1,317.11",ALDERTON HOUSE,CARE ESTABLISHMENT,LD - East Locality,LD - East Cambs - Care,Residential Care
Cambridgeshire County Council,09-May-19,51300908857,"-1,317.11",ALDERTON HOUSE,CARE ESTABLISHMENT,LD - East Locality,LD - East Cambs - Care,Residential Care
Cambridgeshire County Council,09-May-19,51300908825,"-1,317.11",ALDERTON HOUSE,CARE ESTABLISHMENT,LD - East Locality,LD - East Cambs - Care,Residential Care
Cambridgeshire County Council,09-May-19,51300899266,"-1,317.11",ALDERTON HOUSE,CARE ESTABLISHMENT,LD - East Locality,LD - East Cambs - Care,Residential Care
Cambridgeshire County Council,23-May-19,51300918163,"-1,317.11",ALDERTON HOUSE,CARE ESTABLISHMENT,LD - East Locality,LD - East Cambs - Special Needs,Residential Care
Cambridgeshire County Council,23-May-19,51300918187,"-1,317.11",ALDERTON HOUSE,CARE ESTABLISHMENT,LD - East Locality,LD - East Cambs - Special Needs,Residential Care
Cambridgeshire County Council,23-May-19,51300918074,"-1,317.11",ALDERTON HOUSE,CARE ESTABLISHMENT,LD - East Locality,LD - East Cambs - Special Needs,Residential Care
Cambridgeshire County Council,23-May-19,51300918186,"-1,317.11",ALDERTON HOUSE,CARE ESTABLISHMENT,LD - East Locality,LD - East Cambs - Special Needs,Residential Care
Cambridgeshire County Council,23-May-19,51300918060,"-1,317.11",ALDERTON HOUSE,CARE ESTABLISHMENT,LD - East Locality,LD - East Cambs - Special Needs,Residential Care
Cambridgeshire County Council,23-May-19,51300918171,"-1,317.11",ALDERTON HOUSE,CARE ESTABLISHMENT,LD - East Locality,LD - East Cambs - Special Needs,Residential Care
Cambridgeshire County Council,23-May-19,51300918167,"-1,317.11",ALDERTON HOUSE,CARE ESTABLISHMENT,LD - East Locality,LD - East Cambs - Special Needs,Residential Care
Cambridgeshire County Council,23-May-19,51300918160,"-1,317.11",ALDERTON HOUSE,CARE ESTABLISHMENT,LD - East Locality,LD - East Cambs - Special Needs,Residential Care
Cambridgeshire County Council,23-May-19,51300918161,"-1,317.11",ALDERTON HOUSE,CARE ESTABLISHMENT,LD - East Locality,LD - East Cambs - Special Needs,Residential Care
Cambridgeshire County Council,23-May-19,51300918070,"-1,317.11",ALDERTON HOUSE,CARE ESTABLISHMENT,LD - East Locality,LD - East Cambs - Special Needs,Residential Care
Cambridgeshire County Council,23-May-19,51300918106,"-1,317.11",ALDERTON HOUSE,CARE ESTABLISHMENT,LD - East Locality,LD - East Cambs - Special Needs,Residential Care
Cambridgeshire County Council,23-May-19,51300918069,"-1,317.11",ALDERTON HOUSE,CARE ESTABLISHMENT,LD - East Locality,LD - East Cambs - Special Needs,Residential Care
Cambridgeshire County Council,23-May-19,51300918165,"-1,317.11",ALDERTON HOUSE,CARE ESTABLISHMENT,LD - East Locality,LD - East Cambs - Special Needs,Residential Care
Cambridgeshire County Council,23-May-19,51300918097,"-1,317.11",ALDERTON HOUSE,CARE ESTABLISHMENT,LD - East Locality,LD - East Cambs - Special Needs,Residential Care
Cambridgeshire County Council,23-May-19,51300918145,"-1,317.11",ALDERTON HOUSE,CARE ESTABLISHMENT,LD - East Locality,LD - East Cambs - Special Needs,Residential Care
Cambridgeshire County Council,23-May-19,51300918185,"-1,317.11",ALDERTON HOUSE,CARE ESTABLISHMENT,LD - East Locality,LD - East Cambs - Special Needs,Residential Care
Cambridgeshire County Council,23-May-19,51300918189,"-1,317.11",ALDERTON HOUSE,CARE ESTABLISHMENT,LD - East Locality,LD - East Cambs - Special Needs,Residential Care
Cambridgeshire County Council,23-May-19,51300918157,"-1,317.11",ALDERTON HOUSE,CARE ESTABLISHMENT,LD - East Locality,LD - East Cambs - Special Needs,Residential Care
Cambridgeshire County Council,23-May-19,51300918124,"-1,317.11",ALDERTON HOUSE,CARE ESTABLISHMENT,LD - East Locality,LD - East Cambs - Care,Residential Care
Cambridgeshire County Council,23-May-19,51300918178,"-1,317.11",ALDERTON HOUSE,CARE ESTABLISHMENT,LD - East Locality,LD - East Cambs - Care,Residential Care
Cambridgeshire County Council,23-May-19,51300918114,"-1,317.11",ALDERTON HOUSE,CARE ESTABLISHMENT,LD - East Locality,LD - East Cambs - Care,Residential Care
Cambridgeshire County Council,23-May-19,51300918107,"-1,317.11",ALDERTON HOUSE,CARE ESTABLISHMENT,LD - East Locality,LD - East Cambs - Care,Residential Care
Cambridgeshire County Council,23-May-19,51300918066,"-1,317.11",ALDERTON HOUSE,CARE ESTABLISHMENT,LD - East Locality,LD - East Cambs - Care,Residential Care
Cambridgeshire County Council,23-May-19,51300918195,"-1,317.11",ALDERTON HOUSE,CARE ESTABLISHMENT,LD - East Locality,LD - East Cambs - Care,Residential Care
Cambridgeshire County Council,23-May-19,51300918137,"-1,317.11",ALDERTON HOUSE,CARE ESTABLISHMENT,LD - East Locality,LD - East Cambs - Care,Residential Care
Cambridgeshire County Council,23-May-19,51300918117,"-1,317.11",ALDERTON HOUSE,CARE ESTABLISHMENT,LD - East Locality,LD - East Cambs - Care,Residential Care
Cambridgeshire County Council,23-May-19,51300918083,"-1,317.11",ALDERTON HOUSE,CARE ESTABLISHMENT,LD - East Locality,LD - East Cambs - Care,Residential Care
Cambridgeshire County Council,23-May-19,51300918068,"-1,317.11",ALDERTON HOUSE,CARE ESTABLISHMENT,LD - East Locality,LD - East Cambs - Care,Residential Care
Cambridgeshire County Council,23-May-19,51300918135,"-1,317.11",ALDERTON HOUSE,CARE ESTABLISHMENT,LD - East Locality,LD - East Cambs - Care,Residential Care
Cambridgeshire County Council,23-May-19,51300918090,"-1,317.11",ALDERTON HOUSE,CARE ESTABLISHMENT,LD - East Locality,LD - East Cambs - Care,Residential Care
Cambridgeshire County Council,23-May-19,51300918098,"-1,317.11",ALDERTON HOUSE,CARE ESTABLISHMENT,LD - East Locality,LD - East Cambs - Care,Residential Care
Cambridgeshire County Council,23-May-19,51300918071,"-1,317.11",ALDERTON HOUSE,CARE ESTABLISHMENT,LD - East Locality,LD - East Cambs - Care,Residential Care
Cambridgeshire County Council,23-May-19,51300918121,"-1,317.11",ALDERTON HOUSE,CARE ESTABLISHMENT,LD - East Locality,LD - East Cambs - Care,Residential Care
Cambridgeshire County Council,23-May-19,51300918099,"-1,317.11",ALDERTON HOUSE,CARE ESTABLISHMENT,LD - East Locality,LD - East Cambs - Care,Residential Care
Cambridgeshire County Council,23-May-19,51300918149,"-1,317.11",ALDERTON HOUSE,CARE ESTABLISHMENT,LD - East Locality,LD - East Cambs - Care,Residential Care
Cambridgeshire County Council,23-May-19,51300918138,"-1,317.11",ALDERTON HOUSE,CARE ESTABLISHMENT,LD - East Locality,LD - East Cambs - Care,Residential Care
Cambridgeshire County Council,23-May-19,51300918144,"-1,317.11",ALDERTON HOUSE,CARE ESTABLISHMENT,LD - East Locality,LD - East Cambs - Care,Residential Care
Cambridgeshire County Council,23-May-19,51300918067,"-1,317.11",ALDERTON HOUSE,CARE ESTABLISHMENT,LD - East Locality,LD - East Cambs - Care,Residential Care
Cambridgeshire County Council,23-May-19,51300918078,"-1,317.11",ALDERTON HOUSE,CARE ESTABLISHMENT,LD - East Locality,LD - East Cambs - Care,Residential Care
Cambridgeshire County Council,23-May-19,51300918093,"-1,317.11",ALDERTON HOUSE,CARE ESTABLISHMENT,LD - East Locality,LD - East Cambs - Care,Residential Care
Cambridgeshire County Council,23-May-19,51300918062,"-1,317.11",ALDERTON HOUSE,CARE ESTABLISHMENT,LD - East Locality,LD - East Cambs - Care,Residential Care
Cambridgeshire County Council,23-May-19,51300918141,"-1,317.11",ALDERTON HOUSE,CARE ESTABLISHMENT,LD - East Locality,LD - East Cambs - Care,Residential Care
Cambridgeshire County Council,23-May-19,51300918082,"-1,317.11",ALDERTON HOUSE,CARE ESTABLISHMENT,LD - East Locality,LD - East Cambs - Care,Residential Care
Cambridgeshire County Council,23-May-19,51300918116,"-1,317.11",ALDERTON HOUSE,CARE ESTABLISHMENT,LD - East Locality,LD - East Cambs - Care,Residential Care
Cambridgeshire County Council,23-May-19,51300918092,"-1,317.11",ALDERTON HOUSE,CARE ESTABLISHMENT,LD - East Locality,LD - East Cambs - Care,Residential Care
Cambridgeshire County Council,23-May-19,51300918091,"-1,317.11",ALDERTON HOUSE,CARE ESTABLISHMENT,LD - East Locality,LD - East Cambs - Care,Residential Care
Cambridgeshire County Council,23-May-19,51300918133,"-1,317.11",ALDERTON HOUSE,CARE ESTABLISHMENT,LD - East Locality,LD - East Cambs - Care,Residential Care
Cambridgeshire County Council,23-May-19,51300918147,"-1,317.11",ALDERTON HOUSE,CARE ESTABLISHMENT,LD - East Locality,LD - East Cambs - Care,Residential Care
Cambridgeshire County Council,23-May-19,51300918064,"-1,317.11",ALDERTON HOUSE,CARE ESTABLISHMENT,LD - East Locality,LD - East Cambs - Care,Residential Care
Cambridgeshire County Council,23-May-19,51300918079,"-1,317.11",ALDERTON HOUSE,CARE ESTABLISHMENT,LD - East Locality,LD - East Cambs - Care,Residential Care
Cambridgeshire County Council,23-May-19,51300918065,"-1,317.11",ALDERTON HOUSE,CARE ESTABLISHMENT,LD - East Locality,LD - East Cambs - Care,Residential Care
Cambridgeshire County Council,23-May-19,51300918131,"-1,317.11",ALDERTON HOUSE,CARE ESTABLISHMENT,LD - East Locality,LD - East Cambs - Care,Residential Care
Cambridgeshire County Council,23-May-19,51300918168,"-1,317.11",ALDERTON HOUSE,CARE ESTABLISHMENT,LD - East Locality,LD - East Cambs - Care,Residential Care
Cambridgeshire County Council,28-May-19,51300944499,"-1,317.11",ALDERTON HOUSE,CARE ESTABLISHMENT,LD - East Locality,LD - East Cambs - Special Needs,Residential Care
Cambridgeshire County Council,28-May-19,51300944513,"-1,317.11",ALDERTON HOUSE,CARE ESTABLISHMENT,LD - East Locality,LD - East Cambs - Care,Residential Care
Cambridgeshire County Council,30-May-19,51300960409,"-1,314.33",THERA EAST ANGLIA,CARE ESTABLISHMENT,LD - East Locality,LD - East Cambs - Care,Supported Living
Cambridgeshire County Council,30-May-19,51300960414,"-1,314.33",THERA EAST ANGLIA,CARE ESTABLISHMENT,LD - East Locality,LD - East Cambs - Care,Supported Living
Cambridgeshire County Council,30-May-19,51300960421,"-1,314.33",THERA EAST ANGLIA,CARE ESTABLISHMENT,LD - East Locality,LD - East Cambs - Care,Supported Living
Cambridgeshire County Council,30-May-19,51300960410,"-1,314.33",THERA EAST ANGLIA,CARE ESTABLISHMENT,LD - East Locality,LD - East Cambs - Care,Supported Living
Cambridgeshire County Council,30-May-19,51300967027,"-1,314.33",THERA EAST ANGLIA,CARE ESTABLISHMENT,LD - East Locality,LD - East Cambs - Special Needs,Supported Living
Cambridgeshire County Council,30-May-19,51300967033,"-1,314.33",THERA EAST ANGLIA,CARE ESTABLISHMENT,LD - East Locality,LD - East Cambs - Special Needs,Supported Living
Cambridgeshire County Council,30-May-19,51300967006,"-1,314.33",THERA EAST ANGLIA,CARE ESTABLISHMENT,LD - East Locality,LD - East Cambs - Special Needs,Supported Living
Cambridgeshire County Council,30-May-19,51300967023,"-1,314.33",THERA EAST ANGLIA,CARE ESTABLISHMENT,LD - East Locality,LD - East Cambs - Special Needs,Supported Living
Cambridgeshire County Council,30-May-19,51300967028,"-1,314.33",THERA EAST ANGLIA,CARE ESTABLISHMENT,LD - East Locality,LD - East Cambs - Special Needs,Supported Living
Cambridgeshire County Council,30-May-19,51300967013,"-1,314.33",THERA EAST ANGLIA,CARE ESTABLISHMENT,LD - East Locality,LD - East Cambs - Special Needs,Supported Living
Cambridgeshire County Council,30-May-19,51300967043,"-1,314.33",THERA EAST ANGLIA,CARE ESTABLISHMENT,LD - East Locality,LD - East Cambs - Special Needs,Supported Living
Cambridgeshire County Council,30-May-19,51300967040,"-1,314.33",THERA EAST ANGLIA,CARE ESTABLISHMENT,LD - East Locality,LD - East Cambs - Special Needs,Supported Living
Cambridgeshire County Council,30-May-19,51300960435,"-1,314.33",THERA EAST ANGLIA,CARE ESTABLISHMENT,LD - East Locality,LD - East Cambs - Care,Supported Living
Cambridgeshire County Council,30-May-19,51300960418,"-1,314.33",THERA EAST ANGLIA,CARE ESTABLISHMENT,LD - East Locality,LD - East Cambs - Care,Supported Living
Cambridgeshire County Council,30-May-19,51300960427,"-1,314.33",THERA EAST ANGLIA,CARE ESTABLISHMENT,LD - East Locality,LD - East Cambs - Care,Supported Living
Cambridgeshire County Council,30-May-19,51300960432,"-1,314.33",THERA EAST ANGLIA,CARE ESTABLISHMENT,LD - East Locality,LD - East Cambs - Care,Supported Living
Cambridgeshire County Council,09-May-19,51300838399,"-1,305.07",GLENHOLME HEALTHCARE LTD,CARE ESTABLISHMENT,LD - Hunts Locality,LD - Huntigndonshire  - Special Needs,Residential Care
Cambridgeshire County Council,28-May-19,51300938680,"-1,300.69",THERA EAST ANGLIA,CARE ESTABLISHMENT,LD - East Locality,LD - East Cambs - Special Needs,Supported Living
Cambridgeshire County Council,28-May-19,51300938693,"-1,300.69",THERA EAST ANGLIA,CARE ESTABLISHMENT,LD - East Locality,LD - East Cambs - Special Needs,Supported Living
Cambridgeshire County Council,28-May-19,51300938713,"-1,300.69",THERA EAST ANGLIA,CARE ESTABLISHMENT,LD - East Locality,LD - East Cambs - Special Needs,Supported Living
Cambridgeshire County Council,09-May-19,51300837111,"-1,300.00",FARRINGTON CARE HOMES LTD T/A WOODLANDS RESIDENTIAL CARE HOME,CARE ESTABLISHMENT,OP - City & South Locality,Older People - City & South,Residential Care
Cambridgeshire County Council,09-May-19,51300837113,"-1,300.00",FARRINGTON CARE HOMES LTD T/A WOODLANDS RESIDENTIAL CARE HOME,CARE ESTABLISHMENT,OP - City & South Locality,Older People - City & South,Residential Care
Cambridgeshire County Council,09-May-19,51300837114,"-1,300.00",FARRINGTON CARE HOMES LTD T/A WOODLANDS RESIDENTIAL CARE HOME,CARE ESTABLISHMENT,OP - City & South Locality,Older People - City & South,Residential Care
Cambridgeshire County Council,09-May-19,51300837108,"-1,300.00",FARRINGTON CARE HOMES LTD T/A WOODLANDS RESIDENTIAL CARE HOME,CARE ESTABLISHMENT,OP - City & South Locality,Older People - City & South,Residential Care
Cambridgeshire County Council,09-May-19,51300837110,"-1,300.00",FARRINGTON CARE HOMES LTD T/A WOODLANDS RESIDENTIAL CARE HOME,CARE ESTABLISHMENT,OP - City & South Locality,Older People - City & South,Residential Care
Cambridgeshire County Council,09-May-19,51300837109,"-1,300.00",FARRINGTON CARE HOMES LTD T/A WOODLANDS RESIDENTIAL CARE HOME,CARE ESTABLISHMENT,OP - City & South Locality,Older People - City & South,Residential Care
Cambridgeshire County Council,09-May-19,51300837112,"-1,300.00",FARRINGTON CARE HOMES LTD T/A WOODLANDS RESIDENTIAL CARE HOME,CARE ESTABLISHMENT,OP - City & South Locality,Older People - City & South,Residential Care
Cambridgeshire County Council,09-May-19,51300837116,"-1,300.00",FARRINGTON CARE HOMES LTD T/A WOODLANDS RESIDENTIAL CARE HOME,CARE ESTABLISHMENT,OP - City & South Locality,Older People - City & South,Residential Care
Cambridgeshire County Council,30-May-19,51300948860,"-1,300.00",FARRINGTON CARE HOMES LTD T/A WOODLANDS RESIDENTIAL CARE HOME,CARE ESTABLISHMENT,OP - City & South Locality,Older People - City & South,Residential Care
Cambridgeshire County Council,23-May-19,51300926844,"-1,291.16",THERA EAST ANGLIA,CARE ESTABLISHMENT,LD - East Locality,LD - East Cambs - Special Needs,Supported Living
Cambridgeshire County Council,23-May-19,51300926846,"-1,291.16",THERA EAST ANGLIA,CARE ESTABLISHMENT,LD - East Locality,LD - East Cambs - Special Needs,Supported Living
Cambridgeshire County Council,23-May-19,51300931730,"-1,291.16",THERA EAST ANGLIA,CARE ESTABLISHMENT,LD - East Locality,LD - East Cambs - Special Needs,Supported Living
Cambridgeshire County Council,23-May-19,51300931725,"-1,291.16",THERA EAST ANGLIA,CARE ESTABLISHMENT,LD - East Locality,LD - East Cambs - Special Needs,Supported Living
Cambridgeshire County Council,23-May-19,51300931733,"-1,291.16",THERA EAST ANGLIA,CARE ESTABLISHMENT,LD - East Locality,LD - East Cambs - Special Needs,Supported Living
Cambridgeshire County Council,23-May-19,51300926845,"-1,291.16",THERA EAST ANGLIA,CARE ESTABLISHMENT,LD - East Locality,LD - East Cambs - Special Needs,Supported Living
Cambridgeshire County Council,15-May-19,51300560619,"-1,285.22",LGSS LAW LTD,TRADE SUPPLIER,Flood Risk Management,Flood - Projects,Consultancy
Cambridgeshire County Council,09-May-19,51300811836,"-1,283.80",CONQUEST CARE HOMES PETERBOROUGH,CARE ESTABLISHMENT,LD - Hunts Locality,LD - Huntigndonshire  - Special Needs,Residential Care
Cambridgeshire County Council,09-May-19,51300811870,"-1,283.80",CONQUEST CARE HOMES PETERBOROUGH,CARE ESTABLISHMENT,LD - Hunts Locality,LD - Huntigndonshire  - Special Needs,Residential Care
Cambridgeshire County Council,09-May-19,51300811877,"-1,283.80",CONQUEST CARE HOMES PETERBOROUGH,CARE ESTABLISHMENT,LD - Hunts Locality,LD - Huntigndonshire  - Special Needs,Residential Care
Cambridgeshire County Council,09-May-19,51300811878,"-1,283.80",CONQUEST CARE HOMES PETERBOROUGH,CARE ESTABLISHMENT,LD - Hunts Locality,LD - Huntigndonshire  - Special Needs,Residential Care
Cambridgeshire County Council,09-May-19,51300811887,"-1,283.80",CONQUEST CARE HOMES PETERBOROUGH,CARE ESTABLISHMENT,LD - Hunts Locality,LD - Huntigndonshire  - Special Needs,Residential Care
Cambridgeshire County Council,09-May-19,51300811888,"-1,283.80",CONQUEST CARE HOMES PETERBOROUGH,CARE ESTABLISHMENT,LD - Hunts Locality,LD - Huntigndonshire  - Special Needs,Residential Care
Cambridgeshire County Council,09-May-19,51300811840,"-1,283.80",CONQUEST CARE HOMES PETERBOROUGH,CARE ESTABLISHMENT,LD - Hunts Locality,LD - Huntigndonshire  - Special Needs,Residential Care
Cambridgeshire County Council,09-May-19,51300811825,"-1,283.80",CONQUEST CARE HOMES PETERBOROUGH,CARE ESTABLISHMENT,LD - Hunts Locality,LD - Huntigndonshire  - Special Needs,Residential Care
Cambridgeshire County Council,09-May-19,51300815048,"-1,281.00",CONQUEST CARE HOMES PETERBOROUGH,CARE ESTABLISHMENT,LD - Hunts Locality,LD - Huntigndonshire  - Care,Residential Care
Cambridgeshire County Council,09-May-19,51300815054,"-1,281.00",CONQUEST CARE HOMES PETERBOROUGH,CARE ESTABLISHMENT,LD - Hunts Locality,LD - Huntigndonshire  - Care,Residential Care
Cambridgeshire County Council,09-May-19,51300815050,"-1,281.00",CONQUEST CARE HOMES PETERBOROUGH,CARE ESTABLISHMENT,LD - Hunts Locality,LD - Huntigndonshire  - Care,Residential Care
Cambridgeshire County Council,09-May-19,51300815053,"-1,281.00",CONQUEST CARE HOMES PETERBOROUGH,CARE ESTABLISHMENT,LD - Hunts Locality,LD - Huntigndonshire  - Care,Residential Care
Cambridgeshire County Council,09-May-19,51300815051,"-1,281.00",CONQUEST CARE HOMES PETERBOROUGH,CARE ESTABLISHMENT,LD - Hunts Locality,LD - Huntigndonshire  - Care,Residential Care
Cambridgeshire County Council,09-May-19,51300815044,"-1,281.00",CONQUEST CARE HOMES PETERBOROUGH,CARE ESTABLISHMENT,LD - Hunts Locality,LD - Huntigndonshire  - Care,Residential Care
Cambridgeshire County Council,09-May-19,51300815043,"-1,281.00",CONQUEST CARE HOMES PETERBOROUGH,CARE ESTABLISHMENT,LD - Hunts Locality,LD - Huntigndonshire  - Care,Residential Care
Cambridgeshire County Council,09-May-19,51300815052,"-1,281.00",CONQUEST CARE HOMES PETERBOROUGH,CARE ESTABLISHMENT,LD - Hunts Locality,LD - Huntigndonshire  - Care,Residential Care
Cambridgeshire County Council,23-May-19,51300929446,"-1,276.47",THERA EAST ANGLIA,CARE ESTABLISHMENT,LD - Fenland Locality,LD - Fenland  - Care,Supported Living
Cambridgeshire County Council,23-May-19,51300929426,"-1,276.47",THERA EAST ANGLIA,CARE ESTABLISHMENT,LD - Fenland Locality,LD - Fenland  - Care,Supported Living
Cambridgeshire County Council,23-May-19,51300929437,"-1,276.47",THERA EAST ANGLIA,CARE ESTABLISHMENT,LD - Fenland Locality,LD - Fenland  - Care,Supported Living
Cambridgeshire County Council,09-May-19,51300829255,"-1,275.00",WOODLANDS CARE CENTRE,CARE ESTABLISHMENT,OPMH - City & South,Older People Mental Health City & South,Nursing Care
Cambridgeshire County Council,09-May-19,51300829251,"-1,275.00",WOODLANDS CARE CENTRE,CARE ESTABLISHMENT,OPMH - City & South,Older People Mental Health City & South,Nursing Care
Cambridgeshire County Council,09-May-19,51300829254,"-1,275.00",WOODLANDS CARE CENTRE,CARE ESTABLISHMENT,OPMH - City & South,Older People Mental Health City & South,Nursing Care
Cambridgeshire County Council,09-May-19,51300829257,"-1,275.00",WOODLANDS CARE CENTRE,CARE ESTABLISHMENT,OPMH - City & South,Older People Mental Health City & South,Nursing Care
Cambridgeshire County Council,09-May-19,51300829256,"-1,275.00",WOODLANDS CARE CENTRE,CARE ESTABLISHMENT,OPMH - City & South,Older People Mental Health City & South,Nursing Care
Cambridgeshire County Council,09-May-19,51300829252,"-1,275.00",WOODLANDS CARE CENTRE,CARE ESTABLISHMENT,OPMH - City & South,Older People Mental Health City & South,Nursing Care
Cambridgeshire County Council,09-May-19,51300829253,"-1,275.00",WOODLANDS CARE CENTRE,CARE ESTABLISHMENT,OPMH - City & South,Older People Mental Health City & South,Nursing Care
Cambridgeshire County Council,23-May-19,51300931723,"-1,266.66",THERA EAST ANGLIA,CARE ESTABLISHMENT,LD - East Locality,LD - East Cambs - Special Needs,Supported Living
Cambridgeshire County Council,23-May-19,51300931722,"-1,266.66",THERA EAST ANGLIA,CARE ESTABLISHMENT,LD - East Locality,LD - East Cambs - Special Needs,Supported Living
Cambridgeshire County Council,23-May-19,51300931714,"-1,266.66",THERA EAST ANGLIA,CARE ESTABLISHMENT,LD - East Locality,LD - East Cambs - Special Needs,Supported Living
Cambridgeshire County Council,23-May-19,51300909268,"-1,266.59",2 CHEVERIL LANE (VOYAGE),CARE ESTABLISHMENT,LD - Hunts Locality,LD - Huntigndonshire  - Care,Supported Living
Cambridgeshire County Council,23-May-19,51300909267,"-1,266.59",2 CHEVERIL LANE (VOYAGE),CARE ESTABLISHMENT,LD - Hunts Locality,LD - Huntigndonshire  - Care,Supported Living
Cambridgeshire County Council,23-May-19,51300900054,"-1,266.59",2 CHEVERIL LANE (VOYAGE),CARE ESTABLISHMENT,LD - Hunts Locality,LD - Huntigndonshire  - Care,Supported Living
Cambridgeshire County Council,23-May-19,51300918603,"-1,266.59",2 CHEVERIL LANE (VOYAGE),CARE ESTABLISHMENT,LD - Hunts Locality,LD - Huntigndonshire  - Care,Supported Living
Cambridgeshire County Council,23-May-19,51300918607,"-1,266.59",2 CHEVERIL LANE (VOYAGE),CARE ESTABLISHMENT,LD - Hunts Locality,LD - Huntigndonshire  - Care,Supported Living
Cambridgeshire County Council,23-May-19,51300918613,"-1,266.59",2 CHEVERIL LANE (VOYAGE),CARE ESTABLISHMENT,LD - Hunts Locality,LD - Huntigndonshire  - Care,Supported Living
Cambridgeshire County Council,23-May-19,51300900065,"-1,266.59",2 CHEVERIL LANE (VOYAGE),CARE ESTABLISHMENT,LD - Hunts Locality,LD - Huntigndonshire  - Care,Supported Living
Cambridgeshire County Council,23-May-19,51300900070,"-1,266.59",2 CHEVERIL LANE (VOYAGE),CARE ESTABLISHMENT,LD - Hunts Locality,LD - Huntigndonshire  - Care,Supported Living
Cambridgeshire County Council,23-May-19,51300909265,"-1,266.59",2 CHEVERIL LANE (VOYAGE),CARE ESTABLISHMENT,LD - Hunts Locality,LD - Huntigndonshire  - Care,Supported Living
Cambridgeshire County Council,23-May-19,51300909258,"-1,266.59",2 CHEVERIL LANE (VOYAGE),CARE ESTABLISHMENT,LD - Hunts Locality,LD - Huntigndonshire  - Special Needs,Supported Living
Cambridgeshire County Council,23-May-19,51300909263,"-1,266.59",2 CHEVERIL LANE (VOYAGE),CARE ESTABLISHMENT,LD - Hunts Locality,LD - Huntigndonshire  - Special Needs,Supported Living
Cambridgeshire County Council,23-May-19,51300909261,"-1,266.59",2 CHEVERIL LANE (VOYAGE),CARE ESTABLISHMENT,LD - Hunts Locality,LD - Huntigndonshire  - Special Needs,Supported Living
Cambridgeshire County Council,23-May-19,51300909269,"-1,266.59",2 CHEVERIL LANE (VOYAGE),CARE ESTABLISHMENT,LD - Hunts Locality,LD - Huntigndonshire  - Special Needs,Supported Living
Cambridgeshire County Council,23-May-19,51300918612,"-1,266.59",2 CHEVERIL LANE (VOYAGE),CARE ESTABLISHMENT,LD - Hunts Locality,LD - Huntigndonshire  - Special Needs,Supported Living
Cambridgeshire County Council,23-May-19,51300900059,"-1,266.59",2 CHEVERIL LANE (VOYAGE),CARE ESTABLISHMENT,LD - Hunts Locality,LD - Huntigndonshire  - Special Needs,Supported Living
Cambridgeshire County Council,23-May-19,51300900069,"-1,266.59",2 CHEVERIL LANE (VOYAGE),CARE ESTABLISHMENT,LD - Hunts Locality,LD - Huntigndonshire  - Special Needs,Supported Living
Cambridgeshire County Council,23-May-19,51300918621,"-1,266.59",2 CHEVERIL LANE (VOYAGE),CARE ESTABLISHMENT,LD - Hunts Locality,LD - Huntigndonshire  - Special Needs,Supported Living
Cambridgeshire County Council,23-May-19,51300918615,"-1,266.59",2 CHEVERIL LANE (VOYAGE),CARE ESTABLISHMENT,LD - Hunts Locality,LD - Huntigndonshire  - Special Needs,Supported Living
Cambridgeshire County Council,23-May-19,51300909271,"-1,266.59",2 CHEVERIL LANE (VOYAGE),CARE ESTABLISHMENT,LD - Hunts Locality,LD - Huntigndonshire  - Special Needs,Supported Living
Cambridgeshire County Council,23-May-19,51300900056,"-1,266.59",2 CHEVERIL LANE (VOYAGE),CARE ESTABLISHMENT,LD - Hunts Locality,LD - Huntigndonshire  - Special Needs,Supported Living
Cambridgeshire County Council,23-May-19,51300918609,"-1,266.59",2 CHEVERIL LANE (VOYAGE),CARE ESTABLISHMENT,LD - Hunts Locality,LD - Huntigndonshire  - Special Needs,Supported Living
Cambridgeshire County Council,23-May-19,51300900072,"-1,266.59",2 CHEVERIL LANE (VOYAGE),CARE ESTABLISHMENT,LD - Hunts Locality,LD - Huntigndonshire  - Special Needs,Supported Living
Cambridgeshire County Council,23-May-19,51300909274,"-1,266.59",2 CHEVERIL LANE (VOYAGE),CARE ESTABLISHMENT,LD - Hunts Locality,LD - Huntigndonshire  - Special Needs,Supported Living
Cambridgeshire County Council,23-May-19,51300900058,"-1,266.59",2 CHEVERIL LANE (VOYAGE),CARE ESTABLISHMENT,LD - Hunts Locality,LD - Huntigndonshire  - Special Needs,Supported Living
Cambridgeshire County Council,23-May-19,51300918619,"-1,266.59",2 CHEVERIL LANE (VOYAGE),CARE ESTABLISHMENT,LD - Hunts Locality,LD - Huntigndonshire  - Special Needs,Supported Living
Cambridgeshire County Council,23-May-19,51300918614,"-1,266.59",2 CHEVERIL LANE (VOYAGE),CARE ESTABLISHMENT,LD - Hunts Locality,LD - Huntigndonshire  - Special Needs,Supported Living
Cambridgeshire County Council,23-May-19,51300900053,"-1,266.59",2 CHEVERIL LANE (VOYAGE),CARE ESTABLISHMENT,LD - Hunts Locality,LD - Huntigndonshire  - Special Needs,Supported Living
Cambridgeshire County Council,09-May-19,51300828892,"-1,265.58",CONQUEST CARE HOMES PETERBOROUGH,CARE ESTABLISHMENT,LD - Young Adults Team,LD - Young Adults - Special Needs,Residential Care
Cambridgeshire County Council,09-May-19,51300822340,"-1,261.47",CONQUEST CARE HOMES PETERBOROUGH,CARE ESTABLISHMENT,Physical Disablity,Countywide PD Service - Care,Residential Care
Cambridgeshire County Council,28-May-19,51300937043,"-1,258.99",BROAD OAKS VCT LTD,CARE ESTABLISHMENT,LD - Fenland Locality,LD - Fenland  - Care,Residential Care
Cambridgeshire County Council,28-May-19,51300937050,"-1,258.99",BROAD OAKS VCT LTD,CARE ESTABLISHMENT,LD - Fenland Locality,LD - Fenland  - Care,Residential Care
Cambridgeshire County Council,28-May-19,51300937036,"-1,258.99",BROAD OAKS VCT LTD,CARE ESTABLISHMENT,LD - Fenland Locality,LD - Fenland  - Care,Residential Care
Cambridgeshire County Council,28-May-19,51300937047,"-1,258.99",BROAD OAKS VCT LTD,CARE ESTABLISHMENT,LD - Fenland Locality,LD - Fenland  - Care,Residential Care
Cambridgeshire County Council,28-May-19,51300937041,"-1,258.99",BROAD OAKS VCT LTD,CARE ESTABLISHMENT,LD - Fenland Locality,LD - Fenland  - Care,Residential Care
Cambridgeshire County Council,28-May-19,51300937039,"-1,258.99",BROAD OAKS VCT LTD,CARE ESTABLISHMENT,LD - Fenland Locality,LD - Fenland  - Care,Residential Care
Cambridgeshire County Council,28-May-19,51300937037,"-1,258.99",BROAD OAKS VCT LTD,CARE ESTABLISHMENT,LD - Fenland Locality,LD - Fenland  - Care,Residential Care
Cambridgeshire County Council,28-May-19,51300937042,"-1,258.99",BROAD OAKS VCT LTD,CARE ESTABLISHMENT,LD - Fenland Locality,LD - Fenland  - Care,Residential Care
Cambridgeshire County Council,28-May-19,51300937046,"-1,258.99",BROAD OAKS VCT LTD,CARE ESTABLISHMENT,LD - Fenland Locality,LD - Fenland  - Care,Residential Care
Cambridgeshire County Council,22-May-19,51300924030,"-1,258.60",ETHELDRED HOUSE,CARE ESTABLISHMENT,OPMH - City & South,Older People Mental Health E Cambs,Nursing Care
Cambridgeshire County Council,22-May-19,51300924030,"-1,258.60",ETHELDRED HOUSE,CARE ESTABLISHMENT,OPMH - City & South,Older People Mental Health E Cambs,Nursing Care
Cambridgeshire County Council,22-May-19,51300924030,"-1,258.60",ETHELDRED HOUSE,CARE ESTABLISHMENT,OPMH - City & South,Older People Mental Health E Cambs,Nursing Care
Cambridgeshire County Council,22-May-19,51300924030,"-1,258.60",ETHELDRED HOUSE,CARE ESTABLISHMENT,OPMH - City & South,Older People Mental Health E Cambs,Nursing Care
Cambridgeshire County Council,22-May-19,51300924030,"-1,258.60",ETHELDRED HOUSE,CARE ESTABLISHMENT,OPMH - City & South,Older People Mental Health E Cambs,Nursing Care
Cambridgeshire County Council,22-May-19,51300924030,"-1,258.60",ETHELDRED HOUSE,CARE ESTABLISHMENT,OPMH - City & South,Older People Mental Health E Cambs,Nursing Care
Cambridgeshire County Council,22-May-19,51300924030,"-1,258.60",ETHELDRED HOUSE,CARE ESTABLISHMENT,OPMH - City & South,Older People Mental Health E Cambs,Nursing Care
Cambridgeshire County Council,22-May-19,51300924030,"-1,258.60",ETHELDRED HOUSE,CARE ESTABLISHMENT,OPMH - City & South,Older People Mental Health E Cambs,Nursing Care
Cambridgeshire County Council,22-May-19,51300924030,"-1,258.60",ETHELDRED HOUSE,CARE ESTABLISHMENT,OPMH - City & South,Older People Mental Health E Cambs,Nursing Care
Cambridgeshire County Council,22-May-19,51300924030,"-1,258.60",ETHELDRED HOUSE,CARE ESTABLISHMENT,OPMH - City & South,Older People Mental Health E Cambs,Nursing Care
Cambridgeshire County Council,28-May-19,51300948090,"-1,250.45",THERA EAST ANGLIA,CARE ESTABLISHMENT,LD - East Locality,LD - East Cambs - Special Needs,Supported Living
Cambridgeshire County Council,28-May-19,51300948083,"-1,250.45",THERA EAST ANGLIA,CARE ESTABLISHMENT,LD - East Locality,LD - East Cambs - Special Needs,Supported Living
Cambridgeshire County Council,28-May-19,51300948026,"-1,250.45",THERA EAST ANGLIA,CARE ESTABLISHMENT,LD - East Locality,LD - East Cambs - Special Needs,Supported Living
Cambridgeshire County Council,28-May-19,51300940946,"-1,250.45",THERA EAST ANGLIA,CARE ESTABLISHMENT,LD - East Locality,LD - East Cambs - Special Needs,Supported Living
Cambridgeshire County Council,28-May-19,51300940927,"-1,250.45",THERA EAST ANGLIA,CARE ESTABLISHMENT,LD - East Locality,LD - East Cambs - Special Needs,Supported Living
Cambridgeshire County Council,28-May-19,51300940949,"-1,250.45",THERA EAST ANGLIA,CARE ESTABLISHMENT,LD - East Locality,LD - East Cambs - Special Needs,Supported Living
Cambridgeshire County Council,09-May-19,51300833895,"-1,248.34",PAULINE BURNETT HOUSE,CARE ESTABLISHMENT,LD - City Locality,LD - City - Special Needs,Residential Care
Cambridgeshire County Council,09-May-19,51300833888,"-1,248.34",PAULINE BURNETT HOUSE,CARE ESTABLISHMENT,LD - City Locality,LD - City - Special Needs,Residential Care
Cambridgeshire County Council,09-May-19,51300833892,"-1,248.34",PAULINE BURNETT HOUSE,CARE ESTABLISHMENT,LD - City Locality,LD - City - Special Needs,Residential Care
Cambridgeshire County Council,09-May-19,51300833897,"-1,248.34",PAULINE BURNETT HOUSE,CARE ESTABLISHMENT,LD - City Locality,LD - City - Special Needs,Residential Care
Cambridgeshire County Council,09-May-19,51300833894,"-1,248.34",PAULINE BURNETT HOUSE,CARE ESTABLISHMENT,LD - City Locality,LD - City - Special Needs,Residential Care
Cambridgeshire County Council,09-May-19,51300833900,"-1,248.34",PAULINE BURNETT HOUSE,CARE ESTABLISHMENT,LD - City Locality,LD - City - Special Needs,Residential Care
Cambridgeshire County Council,09-May-19,51300833898,"-1,248.34",PAULINE BURNETT HOUSE,CARE ESTABLISHMENT,LD - City Locality,LD - City - Special Needs,Residential Care
Cambridgeshire County Council,09-May-19,51300833891,"-1,248.34",PAULINE BURNETT HOUSE,CARE ESTABLISHMENT,LD - City Locality,LD - City - Special Needs,Residential Care
Cambridgeshire County Council,23-May-19,51300929615,"-1,246.67",THERA EAST ANGLIA,CARE ESTABLISHMENT,LD - East Locality,LD - East Cambs - Special Needs,Supported Living
Cambridgeshire County Council,23-May-19,51300932233,"-1,246.67",THERA EAST ANGLIA,CARE ESTABLISHMENT,LD - East Locality,LD - East Cambs - Care,Supported Living
Cambridgeshire County Council,28-May-19,51300945585,"-1,246.67",THERA EAST ANGLIA,CARE ESTABLISHMENT,LD - East Locality,LD - East Cambs - Special Needs,Supported Living
Cambridgeshire County Council,28-May-19,51300953221,"-1,246.67",THERA EAST ANGLIA,CARE ESTABLISHMENT,LD - East Locality,LD - East Cambs - Special Needs,Supported Living
Cambridgeshire County Council,09-May-19,51300913379,"-1,241.84",WOODLANDS CARE CENTRE,CARE ESTABLISHMENT,OP - City & South Locality,Older People - City & South,Nursing Care
Cambridgeshire County Council,09-May-19,51300888822,"-1,241.84",WOODLANDS CARE CENTRE,CARE ESTABLISHMENT,OP - City & South Locality,Older People - City & South,Nursing Care
Cambridgeshire County Council,09-May-19,51300913379,"-1,241.84",WOODLANDS CARE CENTRE,CARE ESTABLISHMENT,OP - City & South Locality,Older People - City & South,Nursing Care
Cambridgeshire County Council,09-May-19,51300820674,"-1,241.84",WOODLANDS CARE CENTRE,CARE ESTABLISHMENT,OP - City & South Locality,Older People - City & South,Nursing Care
Cambridgeshire County Council,09-May-19,51300888821,"-1,241.84",WOODLANDS CARE CENTRE,CARE ESTABLISHMENT,OP - City & South Locality,Older People - City & South,Nursing Care
Cambridgeshire County Council,09-May-19,51300913379,"-1,241.84",WOODLANDS CARE CENTRE,CARE ESTABLISHMENT,OP - City & South Locality,Older People - City & South,Nursing Care
Cambridgeshire County Council,09-May-19,51300820673,"-1,241.84",WOODLANDS CARE CENTRE,CARE ESTABLISHMENT,OP - City & South Locality,Older People - City & South,Nursing Care
Cambridgeshire County Council,09-May-19,51300820672,"-1,241.84",WOODLANDS CARE CENTRE,CARE ESTABLISHMENT,OP - City & South Locality,Older People - City & South,Nursing Care
Cambridgeshire County Council,09-May-19,51300820676,"-1,241.84",WOODLANDS CARE CENTRE,CARE ESTABLISHMENT,OP - City & South Locality,Older People - City & South,Nursing Care
Cambridgeshire County Council,09-May-19,51300888827,"-1,241.84",WOODLANDS CARE CENTRE,CARE ESTABLISHMENT,OP - City & South Locality,Older People - City & South,Nursing Care
Cambridgeshire County Council,09-May-19,51300913379,"-1,241.84",WOODLANDS CARE CENTRE,CARE ESTABLISHMENT,OP - City & South Locality,Older People - City & South,Nursing Care
Cambridgeshire County Council,09-May-19,51300820677,"-1,241.84",WOODLANDS CARE CENTRE,CARE ESTABLISHMENT,OP - City & South Locality,Older People - City & South,Nursing Care
Cambridgeshire County Council,09-May-19,51300888806,"-1,241.84",WOODLANDS CARE CENTRE,CARE ESTABLISHMENT,OP - City & South Locality,Older People - City & South,Nursing Care
Cambridgeshire County Council,09-May-19,51300820678,"-1,241.84",WOODLANDS CARE CENTRE,CARE ESTABLISHMENT,OP - City & South Locality,Older People - City & South,Nursing Care
Cambridgeshire County Council,09-May-19,51300888813,"-1,241.84",WOODLANDS CARE CENTRE,CARE ESTABLISHMENT,OP - City & South Locality,Older People - City & South,Nursing Care
Cambridgeshire County Council,09-May-19,51300888812,"-1,241.84",WOODLANDS CARE CENTRE,CARE ESTABLISHMENT,OP - City & South Locality,Older People - City & South,Nursing Care
Cambridgeshire County Council,09-May-19,51300888804,"-1,241.84",WOODLANDS CARE CENTRE,CARE ESTABLISHMENT,OP - City & South Locality,Older People - City & South,Nursing Care
Cambridgeshire County Council,09-May-19,51300820679,"-1,241.84",WOODLANDS CARE CENTRE,CARE ESTABLISHMENT,OP - City & South Locality,Older People - City & South,Nursing Care
Cambridgeshire County Council,09-May-19,51300888828,"-1,241.84",WOODLANDS CARE CENTRE,CARE ESTABLISHMENT,OP - City & South Locality,Older People - City & South,Nursing Care
Cambridgeshire County Council,09-May-19,51300913379,"-1,241.84",WOODLANDS CARE CENTRE,CARE ESTABLISHMENT,OP - City & South Locality,Older People - City & South,Nursing Care
Cambridgeshire County Council,09-May-19,51300828182,"-1,231.32",CONQUEST CARE HOMES PETERBOROUGH,CARE ESTABLISHMENT,LD - Hunts Locality,LD - Huntigndonshire  - Special Needs,Residential Care
Cambridgeshire County Council,30-May-19,51300966654,"-1,228.27",THERA EAST ANGLIA,CARE ESTABLISHMENT,LD - South Locality,LD - South Cambs - Special Needs,Supported Living
Cambridgeshire County Council,30-May-19,51300966630,"-1,228.27",THERA EAST ANGLIA,CARE ESTABLISHMENT,LD - South Locality,LD - South Cambs - Special Needs,Supported Living
Cambridgeshire County Council,30-May-19,51300966644,"-1,228.27",THERA EAST ANGLIA,CARE ESTABLISHMENT,LD - South Locality,LD - South Cambs - Special Needs,Supported Living
Cambridgeshire County Council,30-May-19,51300966646,"-1,228.27",THERA EAST ANGLIA,CARE ESTABLISHMENT,LD - South Locality,LD - South Cambs - Special Needs,Supported Living
Cambridgeshire County Council,30-May-19,51300966655,"-1,228.27",THERA EAST ANGLIA,CARE ESTABLISHMENT,LD - South Locality,LD - South Cambs - Special Needs,Supported Living
Cambridgeshire County Council,30-May-19,51300966616,"-1,228.27",THERA EAST ANGLIA,CARE ESTABLISHMENT,LD - South Locality,LD - South Cambs - Special Needs,Supported Living
Cambridgeshire County Council,30-May-19,51300966645,"-1,228.27",THERA EAST ANGLIA,CARE ESTABLISHMENT,LD - South Locality,LD - South Cambs - Special Needs,Supported Living
Cambridgeshire County Council,09-May-19,51300811117,"-1,227.78",THE BRAMBLES (SOHAM) LTD,CARE ESTABLISHMENT,LD - East Locality,LD - East Cambs - Special Needs,Residential Care
Cambridgeshire County Council,09-May-19,51300811116,"-1,227.78",THE BRAMBLES (SOHAM) LTD,CARE ESTABLISHMENT,LD - East Locality,LD - East Cambs - Special Needs,Residential Care
Cambridgeshire County Council,09-May-19,51300811173,"-1,227.78",THE BRAMBLES (SOHAM) LTD,CARE ESTABLISHMENT,LD - East Locality,LD - East Cambs - Special Needs,Residential Care
Cambridgeshire County Council,09-May-19,51300811125,"-1,227.78",THE BRAMBLES (SOHAM) LTD,CARE ESTABLISHMENT,LD - East Locality,LD - East Cambs - Special Needs,Residential Care
Cambridgeshire County Council,09-May-19,51300811148,"-1,227.78",THE BRAMBLES (SOHAM) LTD,CARE ESTABLISHMENT,LD - East Locality,LD - East Cambs - Special Needs,Residential Care
Cambridgeshire County Council,09-May-19,51300811139,"-1,227.78",THE BRAMBLES (SOHAM) LTD,CARE ESTABLISHMENT,LD - East Locality,LD - East Cambs - Special Needs,Residential Care
Cambridgeshire County Council,23-May-19,51300933836,"-1,227.38",THERA EAST ANGLIA,CARE ESTABLISHMENT,LD - Hunts Locality,LD - Huntigndonshire  - Special Needs,Supported Living
Cambridgeshire County Council,23-May-19,51300933822,"-1,227.38",THERA EAST ANGLIA,CARE ESTABLISHMENT,LD - Hunts Locality,LD - Huntigndonshire  - Special Needs,Supported Living
Cambridgeshire County Council,23-May-19,51300933842,"-1,227.38",THERA EAST ANGLIA,CARE ESTABLISHMENT,LD - Hunts Locality,LD - Huntigndonshire  - Special Needs,Supported Living
Cambridgeshire County Council,28-May-19,51300953043,"-1,227.38",THERA EAST ANGLIA,CARE ESTABLISHMENT,LD - Hunts Locality,LD - Huntigndonshire  - Special Needs,Supported Living
Cambridgeshire County Council,28-May-19,51300953059,"-1,227.38",THERA EAST ANGLIA,CARE ESTABLISHMENT,LD - Hunts Locality,LD - Huntigndonshire  - Special Needs,Supported Living
Cambridgeshire County Council,28-May-19,51300953053,"-1,227.38",THERA EAST ANGLIA,CARE ESTABLISHMENT,LD - Hunts Locality,LD - Huntigndonshire  - Special Needs,Supported Living
Cambridgeshire County Council,09-May-19,51300839093,"-1,225.41",HEREWARD CARE SERVICES LIMITED,CARE ESTABLISHMENT,LD - Fenland Locality,LD - Fenland  - Special Needs,Residential Care
Cambridgeshire County Council,09-May-19,51300842143,"-1,212.29",PAULINE BURNETT HOUSE,CARE ESTABLISHMENT,LD - City Locality,LD - City - Special Needs,Residential Care
Cambridgeshire County Council,03-May-19,51300868221,"-1,210.17",Redacted Personal Data,SERVICE USER,LD - East Locality,LD - East Cambs - Care,Residential Care
Cambridgeshire County Council,03-May-19,51300868218,"-1,210.17",Redacted Personal Data,SERVICE USER,LD - East Locality,LD - East Cambs - Care,Residential Care
Cambridgeshire County Council,03-May-19,51300868201,"-1,210.17",Redacted Personal Data,SERVICE USER,LD - East Locality,LD - East Cambs - Care,Residential Care
Cambridgeshire County Council,03-May-19,51300868214,"-1,210.17",Redacted Personal Data,SERVICE USER,LD - East Locality,LD - East Cambs - Care,Residential Care
Cambridgeshire County Council,03-May-19,51300868211,"-1,210.17",Redacted Personal Data,SERVICE USER,LD - East Locality,LD - East Cambs - Care,Residential Care
Cambridgeshire County Council,03-May-19,51300868219,"-1,210.17",Redacted Personal Data,SERVICE USER,LD - East Locality,LD - East Cambs - Care,Residential Care
Cambridgeshire County Council,03-May-19,51300868217,"-1,210.17",Redacted Personal Data,SERVICE USER,LD - East Locality,LD - East Cambs - Care,Residential Care
Cambridgeshire County Council,03-May-19,51300868204,"-1,210.17",Redacted Personal Data,SERVICE USER,LD - East Locality,LD - East Cambs - Care,Residential Care
Cambridgeshire County Council,03-May-19,51300868208,"-1,210.17",Redacted Personal Data,SERVICE USER,LD - East Locality,LD - East Cambs - Care,Residential Care
Cambridgeshire County Council,03-May-19,51300868216,"-1,210.17",Redacted Personal Data,SERVICE USER,LD - East Locality,LD - East Cambs - Care,Residential Care
Cambridgeshire County Council,09-May-19,51300817870,"-1,201.64",WOODLANDS CARE CENTRE,CARE ESTABLISHMENT,OPMH - City & South,Older People Mental Health City & South,Nursing Care
Cambridgeshire County Council,09-May-19,51300819815,"-1,200.00",BRAMLEY COURT,CARE ESTABLISHMENT,OP - City & South Locality,Older People - City & South,Nursing Care
Cambridgeshire County Council,09-May-19,51300819811,"-1,200.00",BRAMLEY COURT,CARE ESTABLISHMENT,OP - City & South Locality,Older People - City & South,Nursing Care
Cambridgeshire County Council,09-May-19,51300819812,"-1,200.00",BRAMLEY COURT,CARE ESTABLISHMENT,OP - City & South Locality,Older People - City & South,Nursing Care
Cambridgeshire County Council,09-May-19,51300819813,"-1,200.00",BRAMLEY COURT,CARE ESTABLISHMENT,OP - City & South Locality,Older People - City & South,Nursing Care
Cambridgeshire County Council,09-May-19,51300819816,"-1,200.00",BRAMLEY COURT,CARE ESTABLISHMENT,OP - City & South Locality,Older People - City & South,Nursing Care
Cambridgeshire County Council,09-May-19,51300819817,"-1,200.00",BRAMLEY COURT,CARE ESTABLISHMENT,OP - City & South Locality,Older People - City & South,Nursing Care
Cambridgeshire County Council,09-May-19,51300905538,"-1,198.04",CARETECH COMMUNITY SERVICES,CARE ESTABLISHMENT,LD - South Locality,LD - South Cambs - Care,Residential Care
Cambridgeshire County Council,09-May-19,51300905557,"-1,198.04",CARETECH COMMUNITY SERVICES,CARE ESTABLISHMENT,LD - South Locality,LD - South Cambs - Care,Residential Care
Cambridgeshire County Council,09-May-19,51300912676,"-1,198.04",CARETECH COMMUNITY SERVICES,CARE ESTABLISHMENT,LD - South Locality,LD - South Cambs - Care,Residential Care
Cambridgeshire County Council,09-May-19,51300912683,"-1,198.04",CARETECH COMMUNITY SERVICES,CARE ESTABLISHMENT,LD - South Locality,LD - South Cambs - Care,Residential Care
Cambridgeshire County Council,09-May-19,51300912722,"-1,198.04",CARETECH COMMUNITY SERVICES,CARE ESTABLISHMENT,LD - South Locality,LD - South Cambs - Care,Residential Care
Cambridgeshire County Council,09-May-19,51300905530,"-1,198.04",CARETECH COMMUNITY SERVICES,CARE ESTABLISHMENT,LD - South Locality,LD - South Cambs - Care,Residential Care
Cambridgeshire County Council,09-May-19,51300912677,"-1,198.04",CARETECH COMMUNITY SERVICES,CARE ESTABLISHMENT,LD - South Locality,LD - South Cambs - Care,Residential Care
Cambridgeshire County Council,09-May-19,51300905519,"-1,198.04",CARETECH COMMUNITY SERVICES,CARE ESTABLISHMENT,LD - South Locality,LD - South Cambs - Care,Residential Care
Cambridgeshire County Council,09-May-19,51300912696,"-1,198.04",CARETECH COMMUNITY SERVICES,CARE ESTABLISHMENT,LD - South Locality,LD - South Cambs - Care,Residential Care
Cambridgeshire County Council,09-May-19,51300905505,"-1,198.04",CARETECH COMMUNITY SERVICES,CARE ESTABLISHMENT,LD - South Locality,LD - South Cambs - Care,Residential Care
Cambridgeshire County Council,09-May-19,51300912697,"-1,198.04",CARETECH COMMUNITY SERVICES,CARE ESTABLISHMENT,LD - South Locality,LD - South Cambs - Care,Residential Care
Cambridgeshire County Council,09-May-19,51300912718,"-1,198.04",CARETECH COMMUNITY SERVICES,CARE ESTABLISHMENT,LD - South Locality,LD - South Cambs - Special Needs,Residential Care
Cambridgeshire County Council,09-May-19,51300912687,"-1,198.04",CARETECH COMMUNITY SERVICES,CARE ESTABLISHMENT,LD - South Locality,LD - South Cambs - Special Needs,Residential Care
Cambridgeshire County Council,09-May-19,51300905546,"-1,198.04",CARETECH COMMUNITY SERVICES,CARE ESTABLISHMENT,LD - South Locality,LD - South Cambs - Special Needs,Residential Care
Cambridgeshire County Council,09-May-19,51300905536,"-1,198.04",CARETECH COMMUNITY SERVICES,CARE ESTABLISHMENT,LD - South Locality,LD - South Cambs - Special Needs,Residential Care
Cambridgeshire County Council,09-May-19,51300905507,"-1,198.04",CARETECH COMMUNITY SERVICES,CARE ESTABLISHMENT,LD - South Locality,LD - South Cambs - Special Needs,Residential Care
Cambridgeshire County Council,09-May-19,51300905554,"-1,198.04",CARETECH COMMUNITY SERVICES,CARE ESTABLISHMENT,LD - South Locality,LD - South Cambs - Special Needs,Residential Care
Cambridgeshire County Council,09-May-19,51300912682,"-1,198.04",CARETECH COMMUNITY SERVICES,CARE ESTABLISHMENT,LD - South Locality,LD - South Cambs - Special Needs,Residential Care
Cambridgeshire County Council,09-May-19,51300912711,"-1,198.04",CARETECH COMMUNITY SERVICES,CARE ESTABLISHMENT,LD - South Locality,LD - South Cambs - Special Needs,Residential Care
Cambridgeshire County Council,09-May-19,51300912685,"-1,198.04",CARETECH COMMUNITY SERVICES,CARE ESTABLISHMENT,LD - South Locality,LD - South Cambs - Special Needs,Residential Care
Cambridgeshire County Council,09-May-19,51300905550,"-1,198.04",CARETECH COMMUNITY SERVICES,CARE ESTABLISHMENT,LD - South Locality,LD - South Cambs - Special Needs,Residential Care
Cambridgeshire County Council,09-May-19,51300912681,"-1,198.04",CARETECH COMMUNITY SERVICES,CARE ESTABLISHMENT,LD - South Locality,LD - South Cambs - Special Needs,Residential Care
Cambridgeshire County Council,09-May-19,51300905534,"-1,198.04",CARETECH COMMUNITY SERVICES,CARE ESTABLISHMENT,LD - South Locality,LD - South Cambs - Special Needs,Residential Care
Cambridgeshire County Council,09-May-19,51300905545,"-1,198.04",CARETECH COMMUNITY SERVICES,CARE ESTABLISHMENT,LD - South Locality,LD - South Cambs - Special Needs,Residential Care
Cambridgeshire County Council,09-May-19,51300905512,"-1,198.04",CARETECH COMMUNITY SERVICES,CARE ESTABLISHMENT,LD - South Locality,LD - South Cambs - Special Needs,Residential Care
Cambridgeshire County Council,09-May-19,51300912691,"-1,198.04",CARETECH COMMUNITY SERVICES,CARE ESTABLISHMENT,LD - South Locality,LD - South Cambs - Special Needs,Residential Care
Cambridgeshire County Council,09-May-19,51300912673,"-1,198.04",CARETECH COMMUNITY SERVICES,CARE ESTABLISHMENT,LD - South Locality,LD - South Cambs - Special Needs,Residential Care
Cambridgeshire County Council,09-May-19,51300905539,"-1,198.04",CARETECH COMMUNITY SERVICES,CARE ESTABLISHMENT,LD - South Locality,LD - South Cambs - Special Needs,Residential Care
Cambridgeshire County Council,09-May-19,51300912690,"-1,198.04",CARETECH COMMUNITY SERVICES,CARE ESTABLISHMENT,LD - South Locality,LD - South Cambs - Special Needs,Residential Care
Cambridgeshire County Council,09-May-19,51300905522,"-1,198.04",CARETECH COMMUNITY SERVICES,CARE ESTABLISHMENT,LD - South Locality,LD - South Cambs - Special Needs,Residential Care
Cambridgeshire County Council,09-May-19,51300912684,"-1,198.04",CARETECH COMMUNITY SERVICES,CARE ESTABLISHMENT,LD - South Locality,LD - South Cambs - Special Needs,Residential Care
Cambridgeshire County Council,09-May-19,51300905524,"-1,198.04",CARETECH COMMUNITY SERVICES,CARE ESTABLISHMENT,LD - South Locality,LD - South Cambs - Special Needs,Residential Care
Cambridgeshire County Council,09-May-19,51300905506,"-1,198.04",CARETECH COMMUNITY SERVICES,CARE ESTABLISHMENT,LD - South Locality,LD - South Cambs - Special Needs,Residential Care
Cambridgeshire County Council,09-May-19,51300905529,"-1,198.04",CARETECH COMMUNITY SERVICES,CARE ESTABLISHMENT,LD - South Locality,LD - South Cambs - Special Needs,Residential Care
Cambridgeshire County Council,09-May-19,51300905551,"-1,198.04",CARETECH COMMUNITY SERVICES,CARE ESTABLISHMENT,LD - South Locality,LD - South Cambs - Special Needs,Residential Care
Cambridgeshire County Council,09-May-19,51300912675,"-1,198.04",CARETECH COMMUNITY SERVICES,CARE ESTABLISHMENT,LD - South Locality,LD - South Cambs - Special Needs,Residential Care
Cambridgeshire County Council,09-May-19,51300905515,"-1,198.04",CARETECH COMMUNITY SERVICES,CARE ESTABLISHMENT,LD - South Locality,LD - South Cambs - Special Needs,Residential Care
Cambridgeshire County Council,09-May-19,51300912674,"-1,198.04",CARETECH COMMUNITY SERVICES,CARE ESTABLISHMENT,LD - South Locality,LD - South Cambs - Special Needs,Residential Care
Cambridgeshire County Council,09-May-19,51300912706,"-1,198.04",CARETECH COMMUNITY SERVICES,CARE ESTABLISHMENT,LD - South Locality,LD - South Cambs - Special Needs,Residential Care
Cambridgeshire County Council,09-May-19,51300905508,"-1,198.04",CARETECH COMMUNITY SERVICES,CARE ESTABLISHMENT,LD - South Locality,LD - South Cambs - Special Needs,Residential Care
Cambridgeshire County Council,09-May-19,51300912707,"-1,198.04",CARETECH COMMUNITY SERVICES,CARE ESTABLISHMENT,LD - South Locality,LD - South Cambs - Special Needs,Residential Care
Cambridgeshire County Council,09-May-19,51300912672,"-1,198.04",CARETECH COMMUNITY SERVICES,CARE ESTABLISHMENT,LD - South Locality,LD - South Cambs - Special Needs,Residential Care
Cambridgeshire County Council,09-May-19,51300912708,"-1,198.04",CARETECH COMMUNITY SERVICES,CARE ESTABLISHMENT,LD - South Locality,LD - South Cambs - Special Needs,Residential Care
Cambridgeshire County Council,09-May-19,51300905555,"-1,198.04",CARETECH COMMUNITY SERVICES,CARE ESTABLISHMENT,LD - South Locality,LD - South Cambs - Special Needs,Residential Care
Cambridgeshire County Council,09-May-19,51300912703,"-1,198.04",CARETECH COMMUNITY SERVICES,CARE ESTABLISHMENT,LD - South Locality,LD - South Cambs - Care,Residential Care
Cambridgeshire County Council,09-May-19,51300905552,"-1,198.04",CARETECH COMMUNITY SERVICES,CARE ESTABLISHMENT,LD - South Locality,LD - South Cambs - Care,Residential Care
Cambridgeshire County Council,09-May-19,51300912668,"-1,198.04",CARETECH COMMUNITY SERVICES,CARE ESTABLISHMENT,LD - South Locality,LD - South Cambs - Care,Residential Care
Cambridgeshire County Council,09-May-19,51300905558,"-1,198.04",CARETECH COMMUNITY SERVICES,CARE ESTABLISHMENT,LD - South Locality,LD - South Cambs - Care,Residential Care
Cambridgeshire County Council,09-May-19,51300905504,"-1,198.04",CARETECH COMMUNITY SERVICES,CARE ESTABLISHMENT,LD - South Locality,LD - South Cambs - Care,Residential Care
Cambridgeshire County Council,09-May-19,51300905510,"-1,198.04",CARETECH COMMUNITY SERVICES,CARE ESTABLISHMENT,LD - South Locality,LD - South Cambs - Care,Residential Care
Cambridgeshire County Council,09-May-19,51300912679,"-1,198.04",CARETECH COMMUNITY SERVICES,CARE ESTABLISHMENT,LD - South Locality,LD - South Cambs - Care,Residential Care
Cambridgeshire County Council,09-May-19,51300912678,"-1,198.04",CARETECH COMMUNITY SERVICES,CARE ESTABLISHMENT,LD - South Locality,LD - South Cambs - Care,Residential Care
Cambridgeshire County Council,09-May-19,51300912712,"-1,198.04",CARETECH COMMUNITY SERVICES,CARE ESTABLISHMENT,LD - South Locality,LD - South Cambs - Care,Residential Care
Cambridgeshire County Council,09-May-19,51300905514,"-1,198.04",CARETECH COMMUNITY SERVICES,CARE ESTABLISHMENT,LD - South Locality,LD - South Cambs - Care,Residential Care
Cambridgeshire County Council,23-May-19,51300922060,"-1,198.04",CARETECH COMMUNITY SERVICES,CARE ESTABLISHMENT,LD - South Locality,LD - South Cambs - Care,Residential Care
Cambridgeshire County Council,23-May-19,51300922063,"-1,198.04",CARETECH COMMUNITY SERVICES,CARE ESTABLISHMENT,LD - South Locality,LD - South Cambs - Care,Residential Care
Cambridgeshire County Council,23-May-19,51300922108,"-1,198.04",CARETECH COMMUNITY SERVICES,CARE ESTABLISHMENT,LD - South Locality,LD - South Cambs - Care,Residential Care
Cambridgeshire County Council,23-May-19,51300922061,"-1,198.04",CARETECH COMMUNITY SERVICES,CARE ESTABLISHMENT,LD - South Locality,LD - South Cambs - Care,Residential Care
Cambridgeshire County Council,23-May-19,51300922074,"-1,198.04",CARETECH COMMUNITY SERVICES,CARE ESTABLISHMENT,LD - South Locality,LD - South Cambs - Care,Residential Care
Cambridgeshire County Council,23-May-19,51300922055,"-1,198.04",CARETECH COMMUNITY SERVICES,CARE ESTABLISHMENT,LD - South Locality,LD - South Cambs - Care,Residential Care
Cambridgeshire County Council,23-May-19,51300922090,"-1,198.04",CARETECH COMMUNITY SERVICES,CARE ESTABLISHMENT,LD - South Locality,LD - South Cambs - Special Needs,Residential Care
Cambridgeshire County Council,23-May-19,51300922097,"-1,198.04",CARETECH COMMUNITY SERVICES,CARE ESTABLISHMENT,LD - South Locality,LD - South Cambs - Special Needs,Residential Care
Cambridgeshire County Council,23-May-19,51300922082,"-1,198.04",CARETECH COMMUNITY SERVICES,CARE ESTABLISHMENT,LD - South Locality,LD - South Cambs - Special Needs,Residential Care
Cambridgeshire County Council,23-May-19,51300922068,"-1,198.04",CARETECH COMMUNITY SERVICES,CARE ESTABLISHMENT,LD - South Locality,LD - South Cambs - Special Needs,Residential Care
Cambridgeshire County Council,23-May-19,51300922056,"-1,198.04",CARETECH COMMUNITY SERVICES,CARE ESTABLISHMENT,LD - South Locality,LD - South Cambs - Special Needs,Residential Care
Cambridgeshire County Council,23-May-19,51300922073,"-1,198.04",CARETECH COMMUNITY SERVICES,CARE ESTABLISHMENT,LD - South Locality,LD - South Cambs - Special Needs,Residential Care
Cambridgeshire County Council,23-May-19,51300922072,"-1,198.04",CARETECH COMMUNITY SERVICES,CARE ESTABLISHMENT,LD - South Locality,LD - South Cambs - Special Needs,Residential Care
Cambridgeshire County Council,23-May-19,51300922079,"-1,198.04",CARETECH COMMUNITY SERVICES,CARE ESTABLISHMENT,LD - South Locality,LD - South Cambs - Special Needs,Residential Care
Cambridgeshire County Council,23-May-19,51300922075,"-1,198.04",CARETECH COMMUNITY SERVICES,CARE ESTABLISHMENT,LD - South Locality,LD - South Cambs - Special Needs,Residential Care
Cambridgeshire County Council,23-May-19,51300922057,"-1,198.04",CARETECH COMMUNITY SERVICES,CARE ESTABLISHMENT,LD - South Locality,LD - South Cambs - Special Needs,Residential Care
Cambridgeshire County Council,23-May-19,51300922099,"-1,198.04",CARETECH COMMUNITY SERVICES,CARE ESTABLISHMENT,LD - South Locality,LD - South Cambs - Special Needs,Residential Care
Cambridgeshire County Council,23-May-19,51300922091,"-1,198.04",CARETECH COMMUNITY SERVICES,CARE ESTABLISHMENT,LD - South Locality,LD - South Cambs - Special Needs,Residential Care
Cambridgeshire County Council,23-May-19,51300922067,"-1,198.04",CARETECH COMMUNITY SERVICES,CARE ESTABLISHMENT,LD - South Locality,LD - South Cambs - Care,Residential Care
Cambridgeshire County Council,23-May-19,51300922058,"-1,198.04",CARETECH COMMUNITY SERVICES,CARE ESTABLISHMENT,LD - South Locality,LD - South Cambs - Care,Residential Care
Cambridgeshire County Council,23-May-19,51300922104,"-1,198.04",CARETECH COMMUNITY SERVICES,CARE ESTABLISHMENT,LD - South Locality,LD - South Cambs - Care,Residential Care
Cambridgeshire County Council,23-May-19,51300922083,"-1,198.04",CARETECH COMMUNITY SERVICES,CARE ESTABLISHMENT,LD - South Locality,LD - South Cambs - Care,Residential Care
Cambridgeshire County Council,23-May-19,51300922071,"-1,198.04",CARETECH COMMUNITY SERVICES,CARE ESTABLISHMENT,LD - South Locality,LD - South Cambs - Care,Residential Care
Cambridgeshire County Council,23-May-19,51300922103,"-1,198.04",CARETECH COMMUNITY SERVICES,CARE ESTABLISHMENT,LD - South Locality,LD - South Cambs - Care,Residential Care
Cambridgeshire County Council,23-May-19,51300922088,"-1,198.04",CARETECH COMMUNITY SERVICES,CARE ESTABLISHMENT,LD - South Locality,LD - South Cambs - Care,Residential Care
Cambridgeshire County Council,23-May-19,51300922066,"-1,198.04",CARETECH COMMUNITY SERVICES,CARE ESTABLISHMENT,LD - South Locality,LD - South Cambs - Care,Residential Care
Cambridgeshire County Council,23-May-19,51300922087,"-1,198.04",CARETECH COMMUNITY SERVICES,CARE ESTABLISHMENT,LD - South Locality,LD - South Cambs - Care,Residential Care
Cambridgeshire County Council,23-May-19,51300921708,"-1,197.19",THERA EAST ANGLIA,CARE ESTABLISHMENT,LD - East Locality,LD - East Cambs - Special Needs,Supported Living
Cambridgeshire County Council,23-May-19,51300919200,"-1,197.19",THERA EAST ANGLIA,CARE ESTABLISHMENT,LD - East Locality,LD - East Cambs - Special Needs,Supported Living
Cambridgeshire County Council,09-May-19,51300828238,"-1,194.91",ROYAL MENCAP SOCIETY,CARE ESTABLISHMENT,LD - South Locality,LD - South Cambs - Special Needs,Residential Care
Cambridgeshire County Council,09-May-19,51300828209,"-1,194.91",ROYAL MENCAP SOCIETY,CARE ESTABLISHMENT,LD - South Locality,LD - South Cambs - Special Needs,Residential Care
Cambridgeshire County Council,09-May-19,51300828216,"-1,194.91",ROYAL MENCAP SOCIETY,CARE ESTABLISHMENT,LD - South Locality,LD - South Cambs - Special Needs,Residential Care
Cambridgeshire County Council,09-May-19,51300828236,"-1,194.91",ROYAL MENCAP SOCIETY,CARE ESTABLISHMENT,LD - South Locality,LD - South Cambs - Special Needs,Residential Care
Cambridgeshire County Council,09-May-19,51300828227,"-1,194.91",ROYAL MENCAP SOCIETY,CARE ESTABLISHMENT,LD - South Locality,LD - South Cambs - Special Needs,Residential Care
Cambridgeshire County Council,09-May-19,51300828250,"-1,194.91",ROYAL MENCAP SOCIETY,CARE ESTABLISHMENT,LD - South Locality,LD - South Cambs - Special Needs,Residential Care
Cambridgeshire County Council,09-May-19,51300828220,"-1,194.91",ROYAL MENCAP SOCIETY,CARE ESTABLISHMENT,LD - South Locality,LD - South Cambs - Special Needs,Residential Care
Cambridgeshire County Council,09-May-19,51300828205,"-1,194.91",ROYAL MENCAP SOCIETY,CARE ESTABLISHMENT,LD - South Locality,LD - South Cambs - Special Needs,Residential Care
Cambridgeshire County Council,09-May-19,51300828223,"-1,194.91",ROYAL MENCAP SOCIETY,CARE ESTABLISHMENT,LD - South Locality,LD - South Cambs - Special Needs,Residential Care
Cambridgeshire County Council,09-May-19,51300828243,"-1,194.91",ROYAL MENCAP SOCIETY,CARE ESTABLISHMENT,LD - South Locality,LD - South Cambs - Special Needs,Residential Care
Cambridgeshire County Council,09-May-19,51300828261,"-1,194.91",ROYAL MENCAP SOCIETY,CARE ESTABLISHMENT,LD - South Locality,LD - South Cambs - Special Needs,Residential Care
Cambridgeshire County Council,09-May-19,51300828215,"-1,194.91",ROYAL MENCAP SOCIETY,CARE ESTABLISHMENT,LD - South Locality,LD - South Cambs - Special Needs,Residential Care
Cambridgeshire County Council,09-May-19,51300828228,"-1,194.91",ROYAL MENCAP SOCIETY,CARE ESTABLISHMENT,LD - South Locality,LD - South Cambs - Special Needs,Residential Care
Cambridgeshire County Council,09-May-19,51300828246,"-1,194.91",ROYAL MENCAP SOCIETY,CARE ESTABLISHMENT,LD - South Locality,LD - South Cambs - Special Needs,Residential Care
Cambridgeshire County Council,09-May-19,51300828229,"-1,194.91",ROYAL MENCAP SOCIETY,CARE ESTABLISHMENT,LD - South Locality,LD - South Cambs - Special Needs,Residential Care
Cambridgeshire County Council,09-May-19,51300828262,"-1,194.91",ROYAL MENCAP SOCIETY,CARE ESTABLISHMENT,LD - South Locality,LD - South Cambs - Special Needs,Residential Care
Cambridgeshire County Council,09-May-19,51300828247,"-1,194.91",ROYAL MENCAP SOCIETY,CARE ESTABLISHMENT,LD - South Locality,LD - South Cambs - Special Needs,Residential Care
Cambridgeshire County Council,09-May-19,51300828256,"-1,194.91",ROYAL MENCAP SOCIETY,CARE ESTABLISHMENT,LD - South Locality,LD - South Cambs - Special Needs,Residential Care
Cambridgeshire County Council,09-May-19,51300832441,"-1,181.07",MACINTYRE CARE,CARE ESTABLISHMENT,LD - City Locality,LD - City - Care,Residential Care
Cambridgeshire County Council,09-May-19,51300832434,"-1,181.07",MACINTYRE CARE,CARE ESTABLISHMENT,LD - City Locality,LD - City - Care,Residential Care
Cambridgeshire County Council,09-May-19,51300832431,"-1,181.07",MACINTYRE CARE,CARE ESTABLISHMENT,LD - City Locality,LD - City - Care,Residential Care
Cambridgeshire County Council,09-May-19,51300832429,"-1,181.07",MACINTYRE CARE,CARE ESTABLISHMENT,LD - City Locality,LD - City - Care,Residential Care
Cambridgeshire County Council,09-May-19,51300832427,"-1,181.07",MACINTYRE CARE,CARE ESTABLISHMENT,LD - City Locality,LD - City - Care,Residential Care
Cambridgeshire County Council,09-May-19,51300832440,"-1,181.07",MACINTYRE CARE,CARE ESTABLISHMENT,LD - City Locality,LD - City - Care,Residential Care
Cambridgeshire County Council,09-May-19,51300839314,"-1,181.07",MACINTYRE CARE,CARE ESTABLISHMENT,LD - South Locality,LD - South Cambs - Care,Residential Care
Cambridgeshire County Council,09-May-19,51300839312,"-1,181.07",MACINTYRE CARE,CARE ESTABLISHMENT,LD - South Locality,LD - South Cambs - Care,Residential Care
Cambridgeshire County Council,09-May-19,51300839317,"-1,181.07",MACINTYRE CARE,CARE ESTABLISHMENT,LD - South Locality,LD - South Cambs - Care,Residential Care
Cambridgeshire County Council,09-May-19,51300839308,"-1,181.07",MACINTYRE CARE,CARE ESTABLISHMENT,LD - South Locality,LD - South Cambs - Care,Residential Care
Cambridgeshire County Council,09-May-19,51300839310,"-1,181.07",MACINTYRE CARE,CARE ESTABLISHMENT,LD - South Locality,LD - South Cambs - Care,Residential Care
Cambridgeshire County Council,09-May-19,51300839316,"-1,181.07",MACINTYRE CARE,CARE ESTABLISHMENT,LD - South Locality,LD - South Cambs - Care,Residential Care
Cambridgeshire County Council,28-May-19,51300936699,"-1,180.02",THERA EAST ANGLIA,CARE ESTABLISHMENT,LD - East Locality,LD - East Cambs - Special Needs,Supported Living
Cambridgeshire County Council,28-May-19,51300936688,"-1,180.02",THERA EAST ANGLIA,CARE ESTABLISHMENT,LD - East Locality,LD - East Cambs - Special Needs,Supported Living
Cambridgeshire County Council,28-May-19,51300936657,"-1,180.02",THERA EAST ANGLIA,CARE ESTABLISHMENT,LD - East Locality,LD - East Cambs - Special Needs,Supported Living
Cambridgeshire County Council,09-May-19,51300813957,"-1,166.34",CONQUEST CARE HOMES PETERBOROUGH,CARE ESTABLISHMENT,LD - Fenland Locality,LD - Fenland  - Special Needs,Residential Care
Cambridgeshire County Council,09-May-19,51300813955,"-1,166.34",CONQUEST CARE HOMES PETERBOROUGH,CARE ESTABLISHMENT,LD - Fenland Locality,LD - Fenland  - Special Needs,Residential Care
Cambridgeshire County Council,09-May-19,51300813971,"-1,166.34",CONQUEST CARE HOMES PETERBOROUGH,CARE ESTABLISHMENT,LD - Fenland Locality,LD - Fenland  - Special Needs,Residential Care
Cambridgeshire County Council,09-May-19,51300813954,"-1,166.34",CONQUEST CARE HOMES PETERBOROUGH,CARE ESTABLISHMENT,LD - Fenland Locality,LD - Fenland  - Special Needs,Residential Care
Cambridgeshire County Council,09-May-19,51300813960,"-1,166.34",CONQUEST CARE HOMES PETERBOROUGH,CARE ESTABLISHMENT,LD - Fenland Locality,LD - Fenland  - Special Needs,Residential Care
Cambridgeshire County Council,09-May-19,51300813956,"-1,166.34",CONQUEST CARE HOMES PETERBOROUGH,CARE ESTABLISHMENT,LD - Fenland Locality,LD - Fenland  - Special Needs,Residential Care
Cambridgeshire County Council,09-May-19,51300813952,"-1,166.34",CONQUEST CARE HOMES PETERBOROUGH,CARE ESTABLISHMENT,LD - Fenland Locality,LD - Fenland  - Special Needs,Residential Care
Cambridgeshire County Council,09-May-19,51300813959,"-1,166.34",CONQUEST CARE HOMES PETERBOROUGH,CARE ESTABLISHMENT,LD - Fenland Locality,LD - Fenland  - Special Needs,Residential Care
Cambridgeshire County Council,22-May-19,51300854021,"-1,165.70",AGATE HOUSE,CARE ESTABLISHMENT,Physical Disablity,Countywide PD Service - Care,Residential Care
Cambridgeshire County Council,22-May-19,51300854018,"-1,165.70",AGATE HOUSE,CARE ESTABLISHMENT,Physical Disablity,Countywide PD Service - Care,Residential Care
Cambridgeshire County Council,22-May-19,51300854019,"-1,165.70",AGATE HOUSE,CARE ESTABLISHMENT,Physical Disablity,Countywide PD Service - Care,Residential Care
Cambridgeshire County Council,22-May-19,51300854020,"-1,165.70",AGATE HOUSE,CARE ESTABLISHMENT,Physical Disablity,Countywide PD Service - Care,Residential Care
Cambridgeshire County Council,22-May-19,51300854022,"-1,165.70",AGATE HOUSE,CARE ESTABLISHMENT,Physical Disablity,Countywide PD Service - Care,Residential Care
Cambridgeshire County Council,22-May-19,51300854017,"-1,165.70",AGATE HOUSE,CARE ESTABLISHMENT,Physical Disablity,Countywide PD Service - Care,Residential Care
Cambridgeshire County Council,09-May-19,51300840292,"-1,161.24",BARCHESTER HEALTHCARE HOMES LTD,CARE ESTABLISHMENT,Physical Disablity,Countywide PD Service - Care,Nursing Care
Cambridgeshire County Council,09-May-19,51300840297,"-1,161.24",BARCHESTER HEALTHCARE HOMES LTD,CARE ESTABLISHMENT,Physical Disablity,Countywide PD Service - Care,Nursing Care
Cambridgeshire County Council,09-May-19,51300840293,"-1,161.24",BARCHESTER HEALTHCARE HOMES LTD,CARE ESTABLISHMENT,Physical Disablity,Countywide PD Service - Care,Nursing Care
Cambridgeshire County Council,09-May-19,51300840287,"-1,161.24",BARCHESTER HEALTHCARE HOMES LTD,CARE ESTABLISHMENT,Physical Disablity,Countywide PD Service - Care,Nursing Care
Cambridgeshire County Council,09-May-19,51300840290,"-1,161.24",BARCHESTER HEALTHCARE HOMES LTD,CARE ESTABLISHMENT,Physical Disablity,Countywide PD Service - Care,Nursing Care
Cambridgeshire County Council,09-May-19,51300840300,"-1,161.24",BARCHESTER HEALTHCARE HOMES LTD,CARE ESTABLISHMENT,Physical Disablity,Countywide PD Service - Care,Nursing Care
Cambridgeshire County Council,28-May-19,51300943140,"-1,157.55",THERA EAST ANGLIA,CARE ESTABLISHMENT,LD - East Locality,LD - East Cambs - Special Needs,Supported Living
Cambridgeshire County Council,28-May-19,51300954519,"-1,156.90",THERA EAST ANGLIA,CARE ESTABLISHMENT,LD - East Locality,LD - East Cambs - Special Needs,Supported Living
Cambridgeshire County Council,09-May-19,51300817385,"-1,150.00",BRAMLEY COURT,CARE ESTABLISHMENT,OP - City & South Locality,Older People - City & South,Nursing Care
Cambridgeshire County Council,09-May-19,51300817389,"-1,150.00",BRAMLEY COURT,CARE ESTABLISHMENT,OP - City & South Locality,Older People - City & South,Nursing Care
Cambridgeshire County Council,09-May-19,51300817386,"-1,150.00",BRAMLEY COURT,CARE ESTABLISHMENT,OP - City & South Locality,Older People - City & South,Nursing Care
Cambridgeshire County Council,09-May-19,51300817388,"-1,150.00",BRAMLEY COURT,CARE ESTABLISHMENT,OP - City & South Locality,Older People - City & South,Nursing Care
Cambridgeshire County Council,09-May-19,51300817390,"-1,150.00",BRAMLEY COURT,CARE ESTABLISHMENT,OP - City & South Locality,Older People - City & South,Nursing Care
Cambridgeshire County Council,09-May-19,51300817391,"-1,150.00",BRAMLEY COURT,CARE ESTABLISHMENT,OP - City & South Locality,Older People - City & South,Nursing Care
Cambridgeshire County Council,09-May-19,51300817387,"-1,150.00",BRAMLEY COURT,CARE ESTABLISHMENT,OP - City & South Locality,Older People - City & South,Nursing Care
Cambridgeshire County Council,09-May-19,51300825917,"-1,144.95",WOODLANDS CARE CENTRE,CARE ESTABLISHMENT,Physical Disablity,Countywide PD Service - Care,Nursing Care
Cambridgeshire County Council,09-May-19,51300825924,"-1,144.95",WOODLANDS CARE CENTRE,CARE ESTABLISHMENT,Physical Disablity,Countywide PD Service - Care,Nursing Care
Cambridgeshire County Council,09-May-19,51300825925,"-1,144.95",WOODLANDS CARE CENTRE,CARE ESTABLISHMENT,Physical Disablity,Countywide PD Service - Care,Nursing Care
Cambridgeshire County Council,09-May-19,51300825918,"-1,144.95",WOODLANDS CARE CENTRE,CARE ESTABLISHMENT,Physical Disablity,Countywide PD Service - Care,Nursing Care
Cambridgeshire County Council,09-May-19,51300825926,"-1,144.95",WOODLANDS CARE CENTRE,CARE ESTABLISHMENT,Physical Disablity,Countywide PD Service - Care,Nursing Care
Cambridgeshire County Council,09-May-19,51300825923,"-1,144.95",WOODLANDS CARE CENTRE,CARE ESTABLISHMENT,Physical Disablity,Countywide PD Service - Care,Nursing Care
Cambridgeshire County Council,09-May-19,51300819367,"-1,141.84",WOODLANDS CARE CENTRE,CARE ESTABLISHMENT,OPMH - City & South,Older People Mental Health City & South,Nursing Care
Cambridgeshire County Council,09-May-19,51300819380,"-1,141.84",WOODLANDS CARE CENTRE,CARE ESTABLISHMENT,OPMH - City & South,Older People Mental Health City & South,Nursing Care
Cambridgeshire County Council,09-May-19,51300819385,"-1,141.84",WOODLANDS CARE CENTRE,CARE ESTABLISHMENT,OPMH - City & South,Older People Mental Health City & South,Nursing Care
Cambridgeshire County Council,09-May-19,51300819381,"-1,141.84",WOODLANDS CARE CENTRE,CARE ESTABLISHMENT,OPMH - City & South,Older People Mental Health City & South,Nursing Care
Cambridgeshire County Council,09-May-19,51300819366,"-1,141.84",WOODLANDS CARE CENTRE,CARE ESTABLISHMENT,OPMH - City & South,Older People Mental Health City & South,Nursing Care
Cambridgeshire County Council,09-May-19,51300819395,"-1,141.84",WOODLANDS CARE CENTRE,CARE ESTABLISHMENT,OPMH - City & South,Older People Mental Health City & South,Nursing Care
Cambridgeshire County Council,09-May-19,51300819409,"-1,141.84",WOODLANDS CARE CENTRE,CARE ESTABLISHMENT,OPMH - City & South,Older People Mental Health City & South,Nursing Care
Cambridgeshire County Council,09-May-19,51300819384,"-1,141.84",WOODLANDS CARE CENTRE,CARE ESTABLISHMENT,OPMH - City & South,Older People Mental Health City & South,Nursing Care
Cambridgeshire County Council,09-May-19,51300839929,"-1,139.49",ROYAL MENCAP SOCIETY,CARE ESTABLISHMENT,LD - South Locality,LD - South Cambs - Special Needs,Residential Care
Cambridgeshire County Council,09-May-19,51300839945,"-1,139.49",ROYAL MENCAP SOCIETY,CARE ESTABLISHMENT,LD - South Locality,LD - South Cambs - Special Needs,Residential Care
Cambridgeshire County Council,09-May-19,51300839868,"-1,139.49",ROYAL MENCAP SOCIETY,CARE ESTABLISHMENT,LD - South Locality,LD - South Cambs - Special Needs,Residential Care
Cambridgeshire County Council,09-May-19,51300839879,"-1,139.49",ROYAL MENCAP SOCIETY,CARE ESTABLISHMENT,LD - South Locality,LD - South Cambs - Special Needs,Residential Care
Cambridgeshire County Council,09-May-19,51300839942,"-1,139.49",ROYAL MENCAP SOCIETY,CARE ESTABLISHMENT,LD - South Locality,LD - South Cambs - Special Needs,Residential Care
Cambridgeshire County Council,09-May-19,51300839894,"-1,139.49",ROYAL MENCAP SOCIETY,CARE ESTABLISHMENT,LD - South Locality,LD - South Cambs - Special Needs,Residential Care
Cambridgeshire County Council,09-May-19,51300839935,"-1,139.49",ROYAL MENCAP SOCIETY,CARE ESTABLISHMENT,LD - South Locality,LD - South Cambs - Special Needs,Residential Care
Cambridgeshire County Council,09-May-19,51300839823,"-1,139.49",ROYAL MENCAP SOCIETY,CARE ESTABLISHMENT,LD - South Locality,LD - South Cambs - Special Needs,Residential Care
Cambridgeshire County Council,09-May-19,51300839832,"-1,139.49",ROYAL MENCAP SOCIETY,CARE ESTABLISHMENT,LD - South Locality,LD - South Cambs - Special Needs,Residential Care
Cambridgeshire County Council,09-May-19,51300839850,"-1,139.49",ROYAL MENCAP SOCIETY,CARE ESTABLISHMENT,LD - South Locality,LD - South Cambs - Special Needs,Residential Care
Cambridgeshire County Council,09-May-19,51300839885,"-1,139.49",ROYAL MENCAP SOCIETY,CARE ESTABLISHMENT,LD - South Locality,LD - South Cambs - Special Needs,Residential Care
Cambridgeshire County Council,09-May-19,51300839804,"-1,139.49",ROYAL MENCAP SOCIETY,CARE ESTABLISHMENT,LD - South Locality,LD - South Cambs - Special Needs,Residential Care
Cambridgeshire County Council,09-May-19,51300839928,"-1,139.49",ROYAL MENCAP SOCIETY,CARE ESTABLISHMENT,LD - South Locality,LD - South Cambs - Special Needs,Residential Care
Cambridgeshire County Council,09-May-19,51300839812,"-1,139.49",ROYAL MENCAP SOCIETY,CARE ESTABLISHMENT,LD - South Locality,LD - South Cambs - Special Needs,Residential Care
Cambridgeshire County Council,09-May-19,51300839828,"-1,139.49",ROYAL MENCAP SOCIETY,CARE ESTABLISHMENT,LD - South Locality,LD - South Cambs - Special Needs,Residential Care
Cambridgeshire County Council,09-May-19,51300839953,"-1,139.49",ROYAL MENCAP SOCIETY,CARE ESTABLISHMENT,LD - South Locality,LD - South Cambs - Special Needs,Residential Care
Cambridgeshire County Council,09-May-19,51300839886,"-1,139.49",ROYAL MENCAP SOCIETY,CARE ESTABLISHMENT,LD - South Locality,LD - South Cambs - Special Needs,Residential Care
Cambridgeshire County Council,23-May-19,51300931741,"-1,134.10",THERA EAST ANGLIA,CARE ESTABLISHMENT,LD - East Locality,LD - East Cambs - Special Needs,Supported Living
Cambridgeshire County Council,23-May-19,51300926964,"-1,134.10",THERA EAST ANGLIA,CARE ESTABLISHMENT,LD - East Locality,LD - East Cambs - Special Needs,Supported Living
Cambridgeshire County Council,23-May-19,51300926962,"-1,134.10",THERA EAST ANGLIA,CARE ESTABLISHMENT,LD - East Locality,LD - East Cambs - Special Needs,Supported Living
Cambridgeshire County Council,23-May-19,51300931761,"-1,134.10",THERA EAST ANGLIA,CARE ESTABLISHMENT,LD - East Locality,LD - East Cambs - Special Needs,Supported Living
Cambridgeshire County Council,23-May-19,51300926947,"-1,134.10",THERA EAST ANGLIA,CARE ESTABLISHMENT,LD - East Locality,LD - East Cambs - Special Needs,Supported Living
Cambridgeshire County Council,23-May-19,51300931763,"-1,134.10",THERA EAST ANGLIA,CARE ESTABLISHMENT,LD - East Locality,LD - East Cambs - Special Needs,Supported Living
Cambridgeshire County Council,03-May-19,51300810432,"-1,130.04",TARMAC TRADING LIMITED,COMPANY,Highways - 90m Mtce,Highways - 90m Mtce,Construction - External Professional Fees
Cambridgeshire County Council,09-May-19,51300899356,"-1,128.95",ALDERTON HOUSE,CARE ESTABLISHMENT,LD - East Locality,LD - East Cambs - Care,Residential Care
Cambridgeshire County Council,09-May-19,51300908881,"-1,128.95",ALDERTON HOUSE,CARE ESTABLISHMENT,LD - East Locality,LD - East Cambs - Special Needs,Residential Care
Cambridgeshire County Council,23-May-19,51300918111,"-1,128.95",ALDERTON HOUSE,CARE ESTABLISHMENT,LD - East Locality,LD - East Cambs - Special Needs,Residential Care
Cambridgeshire County Council,09-May-19,51300814732,"-1,121.30",MACINTYRE CARE,CARE ESTABLISHMENT,LD - City Locality,LD - City - Care,Residential Care
Cambridgeshire County Council,09-May-19,51300814728,"-1,121.30",MACINTYRE CARE,CARE ESTABLISHMENT,LD - City Locality,LD - City - Care,Residential Care
Cambridgeshire County Council,09-May-19,51300814733,"-1,121.30",MACINTYRE CARE,CARE ESTABLISHMENT,LD - City Locality,LD - City - Care,Residential Care
Cambridgeshire County Council,09-May-19,51300814727,"-1,121.30",MACINTYRE CARE,CARE ESTABLISHMENT,LD - City Locality,LD - City - Care,Residential Care
Cambridgeshire County Council,09-May-19,51300814731,"-1,121.30",MACINTYRE CARE,CARE ESTABLISHMENT,LD - City Locality,LD - City - Care,Residential Care
Cambridgeshire County Council,09-May-19,51300814734,"-1,121.30",MACINTYRE CARE,CARE ESTABLISHMENT,LD - City Locality,LD - City - Care,Residential Care
Cambridgeshire County Council,29-May-19,51300835581,"-1,119.15",DONEC (ELIZABETH FITROY SUPPORT),CARE ESTABLISHMENT,LD - South Locality,LD - South Cambs - Care,Residential Care
Cambridgeshire County Council,29-May-19,51300835626,"-1,119.15",DONEC (ELIZABETH FITROY SUPPORT),CARE ESTABLISHMENT,LD - South Locality,LD - South Cambs - Care,Residential Care
Cambridgeshire County Council,29-May-19,51300835610,"-1,119.15",DONEC (ELIZABETH FITROY SUPPORT),CARE ESTABLISHMENT,LD - South Locality,LD - South Cambs - Care,Residential Care
Cambridgeshire County Council,29-May-19,51300835580,"-1,119.15",DONEC (ELIZABETH FITROY SUPPORT),CARE ESTABLISHMENT,LD - South Locality,LD - South Cambs - Care,Residential Care
Cambridgeshire County Council,29-May-19,51300835663,"-1,119.15",DONEC (ELIZABETH FITROY SUPPORT),CARE ESTABLISHMENT,LD - South Locality,LD - South Cambs - Care,Residential Care
Cambridgeshire County Council,29-May-19,51300835630,"-1,119.15",DONEC (ELIZABETH FITROY SUPPORT),CARE ESTABLISHMENT,LD - South Locality,LD - South Cambs - Care,Residential Care
Cambridgeshire County Council,09-May-19,51300815711,"-1,115.93",PAULINE BURNETT HOUSE,CARE ESTABLISHMENT,LD - City Locality,LD - City - Special Needs,Residential Care
Cambridgeshire County Council,09-May-19,51300815689,"-1,115.93",PAULINE BURNETT HOUSE,CARE ESTABLISHMENT,LD - City Locality,LD - City - Special Needs,Residential Care
Cambridgeshire County Council,09-May-19,51300815708,"-1,115.93",PAULINE BURNETT HOUSE,CARE ESTABLISHMENT,LD - City Locality,LD - City - Special Needs,Residential Care
Cambridgeshire County Council,09-May-19,51300815699,"-1,115.93",PAULINE BURNETT HOUSE,CARE ESTABLISHMENT,LD - City Locality,LD - City - Special Needs,Residential Care
Cambridgeshire County Council,09-May-19,51300815698,"-1,115.93",PAULINE BURNETT HOUSE,CARE ESTABLISHMENT,LD - City Locality,LD - City - Special Needs,Residential Care
Cambridgeshire County Council,09-May-19,51300815706,"-1,115.93",PAULINE BURNETT HOUSE,CARE ESTABLISHMENT,LD - City Locality,LD - City - Special Needs,Residential Care
Cambridgeshire County Council,28-May-19,51300938715,"-1,114.88",THERA EAST ANGLIA,CARE ESTABLISHMENT,LD - East Locality,LD - East Cambs - Special Needs,Supported Living
Cambridgeshire County Council,09-May-19,51300837115,"-1,114.29",FARRINGTON CARE HOMES LTD T/A WOODLANDS RESIDENTIAL CARE HOME,CARE ESTABLISHMENT,OP - City & South Locality,Older People - City & South,Residential Care
Cambridgeshire County Council,20-May-19,51300916607,"-1,114.29",Young Foundations Ltd,CARE ESTABLISHMENT,LAC Placements,Placements - residential schools,Agency Placements - Out of  County
Cambridgeshire County Council,28-May-19,51300949262,"-1,112.01",THERA EAST ANGLIA,CARE ESTABLISHMENT,OP - Hunts Locality,Hunts O P  Team,Supported Living
Cambridgeshire County Council,28-May-19,51300949252,"-1,112.01",THERA EAST ANGLIA,CARE ESTABLISHMENT,OP - Hunts Locality,Hunts O P  Team,Supported Living
Cambridgeshire County Council,28-May-19,51300949286,"-1,112.01",THERA EAST ANGLIA,CARE ESTABLISHMENT,OP - Hunts Locality,Hunts O P  Team,Supported Living
Cambridgeshire County Council,23-May-19,51300926848,"-1,106.71",THERA EAST ANGLIA,CARE ESTABLISHMENT,LD - East Locality,LD - East Cambs - Special Needs,Supported Living
Cambridgeshire County Council,23-May-19,51300931731,"-1,106.71",THERA EAST ANGLIA,CARE ESTABLISHMENT,LD - East Locality,LD - East Cambs - Special Needs,Supported Living
Cambridgeshire County Council,23-May-19,51300829064,"-1,103.57",25 SCOTNEY STREET,CARE ESTABLISHMENT,AMH - Hunts & Fens,Hunts Mental Health Team,Supported Living
Cambridgeshire County Council,23-May-19,51300829038,"-1,103.57",25 SCOTNEY STREET,CARE ESTABLISHMENT,AMH - Hunts & Fens,Hunts Mental Health Team,Supported Living
Cambridgeshire County Council,23-May-19,51300829013,"-1,103.57",25 SCOTNEY STREET,CARE ESTABLISHMENT,AMH - Hunts & Fens,Hunts Mental Health Team,Supported Living
Cambridgeshire County Council,09-May-19,51300811866,"-1,100.40",CONQUEST CARE HOMES PETERBOROUGH,CARE ESTABLISHMENT,LD - Hunts Locality,LD - Huntigndonshire  - Special Needs,Residential Care
Cambridgeshire County Council,09-May-19,51300820340,"-1,100.00",WOODLANDS CARE CENTRE,CARE ESTABLISHMENT,Physical Disablity,Countywide PD Service - Care,Residential Care
Cambridgeshire County Council,09-May-19,51300820332,"-1,100.00",WOODLANDS CARE CENTRE,CARE ESTABLISHMENT,Physical Disablity,Countywide PD Service - Care,Residential Care
Cambridgeshire County Council,09-May-19,51300820331,"-1,100.00",WOODLANDS CARE CENTRE,CARE ESTABLISHMENT,Physical Disablity,Countywide PD Service - Care,Residential Care
Cambridgeshire County Council,09-May-19,51300820318,"-1,100.00",WOODLANDS CARE CENTRE,CARE ESTABLISHMENT,Physical Disablity,Countywide PD Service - Care,Residential Care
Cambridgeshire County Council,09-May-19,51300820327,"-1,100.00",WOODLANDS CARE CENTRE,CARE ESTABLISHMENT,Physical Disablity,Countywide PD Service - Care,Residential Care
Cambridgeshire County Council,09-May-19,51300820326,"-1,100.00",WOODLANDS CARE CENTRE,CARE ESTABLISHMENT,Physical Disablity,Countywide PD Service - Care,Residential Care
Cambridgeshire County Council,09-May-19,51300832482,"-1,100.00",WOODLANDS CARE CENTRE,CARE ESTABLISHMENT,OPMH - Under 65,Older People Mental Health - Under 65's,Nursing Care
Cambridgeshire County Council,09-May-19,51300832480,"-1,100.00",WOODLANDS CARE CENTRE,CARE ESTABLISHMENT,OPMH - Under 65,Older People Mental Health - Under 65's,Nursing Care
Cambridgeshire County Council,09-May-19,51300832481,"-1,100.00",WOODLANDS CARE CENTRE,CARE ESTABLISHMENT,OPMH - Under 65,Older People Mental Health - Under 65's,Nursing Care
Cambridgeshire County Council,09-May-19,51300832485,"-1,100.00",WOODLANDS CARE CENTRE,CARE ESTABLISHMENT,OPMH - Under 65,Older People Mental Health - Under 65's,Nursing Care
Cambridgeshire County Council,09-May-19,51300832477,"-1,100.00",WOODLANDS CARE CENTRE,CARE ESTABLISHMENT,OPMH - Under 65,Older People Mental Health - Under 65's,Nursing Care
Cambridgeshire County Council,09-May-19,51300832476,"-1,100.00",WOODLANDS CARE CENTRE,CARE ESTABLISHMENT,OPMH - Under 65,Older People Mental Health - Under 65's,Nursing Care
Cambridgeshire County Council,09-May-19,51300832484,"-1,100.00",WOODLANDS CARE CENTRE,CARE ESTABLISHMENT,OPMH - Under 65,Older People Mental Health - Under 65's,Nursing Care
Cambridgeshire County Council,09-May-19,51300832478,"-1,100.00",WOODLANDS CARE CENTRE,CARE ESTABLISHMENT,OPMH - Under 65,Older People Mental Health - Under 65's,Nursing Care
Cambridgeshire County Council,09-May-19,51300891777,"-1,100.00",WOODLANDS CARE CENTRE,CARE ESTABLISHMENT,OP - City & South Locality,Older People - City & South,Nursing Care
Cambridgeshire County Council,09-May-19,51300891781,"-1,100.00",WOODLANDS CARE CENTRE,CARE ESTABLISHMENT,OP - City & South Locality,Older People - City & South,Nursing Care
Cambridgeshire County Council,09-May-19,51300891779,"-1,100.00",WOODLANDS CARE CENTRE,CARE ESTABLISHMENT,OP - City & South Locality,Older People - City & South,Nursing Care
Cambridgeshire County Council,09-May-19,51300891776,"-1,100.00",WOODLANDS CARE CENTRE,CARE ESTABLISHMENT,OP - City & South Locality,Older People - City & South,Nursing Care
Cambridgeshire County Council,09-May-19,51300891778,"-1,100.00",WOODLANDS CARE CENTRE,CARE ESTABLISHMENT,OP - City & South Locality,Older People - City & South,Nursing Care
Cambridgeshire County Council,09-May-19,51300891775,"-1,100.00",WOODLANDS CARE CENTRE,CARE ESTABLISHMENT,OP - City & South Locality,Older People - City & South,Nursing Care
Cambridgeshire County Council,09-May-19,51300815055,"-1,098.00",CONQUEST CARE HOMES PETERBOROUGH,CARE ESTABLISHMENT,LD - Hunts Locality,LD - Huntigndonshire  - Care,Residential Care
Cambridgeshire County Council,23-May-19,51300929418,"-1,094.12",THERA EAST ANGLIA,CARE ESTABLISHMENT,LD - Fenland Locality,LD - Fenland  - Care,Supported Living
Cambridgeshire County Council,09-May-19,51300829258,"-1,092.86",WOODLANDS CARE CENTRE,CARE ESTABLISHMENT,OPMH - City & South,Older People Mental Health City & South,Nursing Care
Cambridgeshire County Council,09-May-19,51300813027,"-1,091.84",CHERRY HINTON NURSING HOME,CARE ESTABLISHMENT,OP - City & South Locality,Older People - City & South,Nursing Care
Cambridgeshire County Council,09-May-19,51300813024,"-1,091.84",CHERRY HINTON NURSING HOME,CARE ESTABLISHMENT,OP - City & South Locality,Older People - City & South,Nursing Care
Cambridgeshire County Council,09-May-19,51300813026,"-1,091.84",CHERRY HINTON NURSING HOME,CARE ESTABLISHMENT,OP - City & South Locality,Older People - City & South,Nursing Care
Cambridgeshire County Council,09-May-19,51300813028,"-1,091.84",CHERRY HINTON NURSING HOME,CARE ESTABLISHMENT,OP - City & South Locality,Older People - City & South,Nursing Care
Cambridgeshire County Council,09-May-19,51300813025,"-1,091.84",CHERRY HINTON NURSING HOME,CARE ESTABLISHMENT,OP - City & South Locality,Older People - City & South,Nursing Care
Cambridgeshire County Council,09-May-19,51300813030,"-1,091.84",CHERRY HINTON NURSING HOME,CARE ESTABLISHMENT,OP - City & South Locality,Older People - City & South,Nursing Care
Cambridgeshire County Council,23-May-19,51300921926,"-1,091.65",GUYATT HOUSE CARE LTD,CARE ESTABLISHMENT,LD - East Locality,LD - East Cambs - Special Needs,Domiciliary Care
